{"text_format":"1","workbook":"xlsx","n_sheets":5,"sheets":["INGRESO","Config","Hoja1","BASE","Calendario1"],"not_rendered":{"charts":0,"images":0,"macros":1,"external_links":0,"defined_names":14,"comments":0,"pivot_tables":0},"unopened":[],"bounds":{"document_bytes":16777216,"sheet_cells":100000,"rows_first":2000,"rows_last":500,"rows_between":2000,"halvings":0,"cell_chars":16384,"cell_head_chars":4096},"cells_cut":0,"cells_raw":0,"read":"whole","date_system":"1900"}

{"sheet":"INGRESO","index":0,"n_rows":0,"n_cols":0,"rows_kept":0,"cut":false,"hidden":false,"merged":[]}

{"sheet":"Config","index":1,"n_rows":1020,"n_cols":17,"rows_kept":1020,"cut":false,"hidden":false,"merged":[]}
["DNI","APELLIDOS Y NOMBRES","GRUPO","EDAD","JUDICIAL","NRO DE CUENTA","COD TRABA",null,{"$f":"COUNTA(J2:J17)","v":0},"DNI","TRABAJADOR","FECHA","TONELAJE","TURNO","ESPECIALIDAD","PERMISO","ASIG FAMILIAR"]
[30825449,"ABRIL MEDINA WILLIAM MARCELO",null,68,0,"00137238802100001006",127,null,{"$f":"COUNTA(INDIRECT(\"BASE!A2:A1048576\"))","v":3}]
[46322486,"ACARO DUQUE CHARLES",null,29,0,"00217074902100001006",700]
[30961524,"ADRIAZOLA ESQUIVEL CESAR MICHAEL",null,42,0,"00110973902100001006",518]
[40250927,"AGRAMAYO GUERRA EDWING JAVIER",null,40,0,"00007298902100002006",129]
[30823294,"AGRAMAYO LOPEZ JAVIER",null,65,0,"00082059302100001006",130]
[30828209,"AGUILAR CHAVEZ ELISEO",null,71,0,null,317]
[44685373,"AGUILAR DEL CASTILLO IVONNE ROCIO",null,32,0,"00176917502100002006",704]
[30830325,"AGUILAR FLORES EDMUNDO",null,71,0,null,357]
[4436224,"AGUILAR HILARI ANGEL",null,69,0,null,346]
[43898878,"AGUILAR ORTIZ JUSTINO ELIAS",null,32,0,"00031440702100002006",705]
[10555151,"AGUILAR PUENTE CHARLES MIGUEL",null,42,0,"00139065402100001006",706]
[30831164,"AGUILAR QUISPE TEODORO",null,56,0,"00063098002100002006",459]
[4417223,"AGUIRRE RAFELO VICTOR MANUEL",null,70,0,"00116422102100002006",708]
[30829137,"AIZCORBE SUMARIA VICTOR GLENI",null,55,0,"00033134602100002006",81]
[45823830,"ALARCON BANDA GILVER MAURO",null,31,0,"00054068302100002006",710]
[46612058,"ALARCON CAMPOS SOLANCH DENISSA",null,28,0,"00140933502100001006",711]
[30828355,"ALARCON DEZA OSCAR PAULINO",null,63,0,"00044548602100001006",712]
[30823451,"ALARCON RODAS SAMUEL FRANCISCO",null,66,0,"00063320202100001006",400]
[44293612,"ALBARRACIN ZEBALLOS RENNY PAUL",null,32,0,"00105637402100002006",714]
[80281118,"ALBERCA CARRASCO EDINSON DARWINS",null,40,0,"00116233002100001006",715]
[43707689,"ALCA SAYRA JESUS JUNIOR",null,34,0,"00084433402100001006",716]
[30827115,"ALEMAN GRANDE JORGE FELIX",null,77,0,null,463]
[30833890,"ALFARO BELTRAN ALEXIS CESAR",null,48,0,null,432]
[71491093,"ALFARO DELGADO LEONARDO SEBASTIAN",null,22,0,"00137240002100001006",717]
[45434083,"ALFARO FLORES JULIO CESAR",null,30,0,"00139066402100001006",718]
[4623352,"ALFARO HUANACUNI PASCUAL",null,59,0,"00116233402100001006",43]
[4634053,"ALFARO REYNOSO JUAN ARTURO",null,52,0,"00139066902100001006",719]
[43766389,"ALMANZA VEGA VICTOR HUGO",null,32,0,"00076774702100002006",720]
[42041721,"ALMONTE RODRIGUEZ JILMARE",null,35,0,null,248]
[44397485,"ALMONTE SUCASACA JUANA FRANCISCA",null,32,0,"00144336602100001006",721]
[4636044,"ALMONTE VALDIVIA LUIS ROMAN",null,53,0,"00092018902100001006",160]
[4647544,"ALMONTE VALDIVIA ROBERT JOHN",null,50,0,"00076312602100003006",722]
[4628158,"ALMONTE VALDIVIA ROBINSON MANUEL",null,55,0,"00116235002100001006",1305]
[44860883,"ALMONTE VIVANCO JORGE HERNAN",null,31,0,null,560]
[40195746,"ALMONTE VIVANCO JOSE ARMANDO",null,40,0,null,385]
[40011147,"ALVAREZ CONTRERAS CHRISTIAN ALBERTO",null,40,0,"00192010602100001006",723]
[30833950,"ALVAREZ CUBA SEGUNDO",null,49,0,null,353]
[4652099,"ALVAREZ FERNANDEZ IVAN SOANI",null,48,0,"00116235602100001006",127]
[4647106,"ALVAREZ FERNANDEZ JULIO ENRIQUE",null,46,0,"00057811502100002006",724]
[4646748,"ALVAREZ HUALPA OSWALDO LUIS",null,49,0,"00116237502100001006",199]
[4627023,"ALVAREZ LAZO ELAR",null,55,0,"00100813002100001006",725]
[30853326,"ALVAREZ VERGARA GIANNILO SANDRO",null,null,0,null,373]
[30836139,"ALVAREZ VERGARA GIORLO FABRICIO",null,50,0,null,535]
[30831631,"ALVAREZ VERGARA GIOVANI ALDO",null,56,0,null,397]
[30837818,"ALVAREZ VILCA GLORIA GERVACIA",null,45,0,"00037534002100002006",726]
[30835938,"AMADO VILCHEZ GERARDO EUSEBIO",null,47,0,null,310]
[42994411,"ANDIA OTAZU CHRISTIAN JESUS",null,37,0,null,471]
[47300406,"ANDIA OTAZU RICARDO YUZE",null,27,0,"00053550302100003006",1304]
[30825482,"ANDRADE CALLOAPAZA PABLO IGNACIO",null,null,0,null,453]
[76590196,"ANDRADE MENDOZA NICOLL",null,23,0,"00188436202100001006",727]
[44051691,"ANGULO BAUTISTA MARIA LUISA",null,38,0,"00152166102100001006",728]
[30675962,"AÑARI FLORES EDITH LOURDES",null,47,0,"00267100202100001006",4068]
[30820843,"APAZA LOAYZA VICTOR VICENTE",null,72,0,null,312]
[4645084,"APAZA SULCA VICTOR JOSE",null,49,0,"00116238402100001006",51]
[30856391,"APAZA VILCA TOMASA",null,52,0,null,4113]
[30835968,"AQUINO CHOQUEHUANCA LUIS ALBERTO",null,46,0,"00133734402100001006",729]
[42908430,"AQUINO QUISPE HILDA ROSA",null,34,0,null,336]
[30834464,"AQUISE USCAMAYTA JORGE MANUEL",null,47,0,null,330]
[72114472,"ARANIBAR PATIÑO LESLY MILAGROS",null,22,0,"00193817302100002006",730]
[30831712,"ARAPA ROSAS VICENTE",null,58,0,null,238]
[30849341,"ARENAS DELGADO JUAN RONAL",null,55,0,"00034669402100003006",549]
[30831249,"ARENAS LLAMOSAS RAFAEL GABINO",null,73,0,"00044548702100001006",732]
[70806153,"ARENAS MOSTAJO DIEGO ALFREDO",null,22,0,"00208247702100002006",733]
[25800155,"AREVALO HIDALGO LUIS CARLOS",null,44,0,"00217074502100001006",734]
[4626202,"ARIAS ARCE JULIAN WILFREDO",null,64,0,"00139067802100001006",735]
[4653318,"ARIAS COAILA ALEXANDER WILFREDO",null,42,0,"00118057902100001006",736]
[43897312,"ARIAS COAILA ANTHONY SEYMOUR",null,40,0,"00118058702100001006",737]
[1874456,"ARIAS QUISPE WILMA",null,54,0,"00140934802100001006",738]
[48288361,"ARISTA MENDOZA DAVIDE",null,25,0,"00239371902100001006",739]
[30833727,"ARIZACA ARIZACA RUBEN",null,50,0,null,180]
[30837251,"ARTEAGA MANRIQUE ANGEL WALTER",null,43,0,"00116761402100002006",740]
[30856920,"ARZOLA LA ROSA AUGUSTO RICARDO",null,46,0,null,344]
[44551325,"ASCAÑO APAZA ANYELO ANDREE",null,32,0,"00030257802100002006",373]
[4620462,"ASCAÑO CORNEJO WILVER MARTIN",null,54,0,"00074901802100002006",1036]
[30836030,"ASCUÑA ZAVALAGA IVAN EDUARDO",null,57,0,null,482]
[30833823,"ATAMARI LOVON HERNAN",null,50,0,"00143205402100001006",694]
[42814539,"ATAMARI VILCA LUZ MARINA",null,34,0,"00147245102100001006",742]
[30824455,"AYALA ALI JORGE LEONIDAS",null,62,0,"00057051502100001006",244]
[30826051,"AYALA ALI OSCAR ENRIQUE",null,54,0,"00037706902100002006",142]
[47848503,"AYALA MOLINA JULIO ERNESTO",null,26,0,"00112061402100001006",745]
[30820958,"AYHONIZ ALARCON MANUEL AGUSTIN",null,56,0,"00143206402100001006",381]
[40755700,"AZANA VARGAS CARLOS DARIO",null,40,0,"00063325902100001006",747]
[45703400,"AZANA VARGAS MARCO",null,30,0,"00069570302100001006",748]
[30863603,"BALLADARES RUELAS ROSA ELVIRA",null,42,0,"00178293602100002006",749]
[40182294,"BALLENAS ALVAREZ AYDEE BEATRIZ",null,40,0,"00159179702100001006",750]
[30820723,"BALLON REA DENIS JAVIER",null,53,0,null,132]
[30825395,"BALLON REA JOSE ALBINO",null,58,0,"00012103102100002006",100]
[71986286,"BALLON RIVERA JOE BRYAN",null,27,0,"00075833002100001006",752]
[45589883,"BALLON VARGAS JANET MARYLIN",null,30,0,"00139617102100002006",4062]
[46832249,"BALLON VARGAS NICK ANTHONY",null,27,0,"00037573402100002006",753]
[29328219,"BALUARTE REVOLLAR HERNAN FERNANDO",null,55,0,"00118059102100001006",754]
[47662269,"BANDA ALARCON VICTOR ANGEL",null,27,0,"00109634802100003006",755]
[30825937,"BAQUEDANO ALFARO FELIX HENRY",null,65,0,null,372]
[30822243,"BARRA COILA HERNAN JACINTO",null,63,0,"00147249902100001006",756]
[29467312,"BARREDA VALDIVIA HIPOLITO JUAN",null,66,0,"00006195702100002006",757]
[4630841,"BARRERA GUZMAN VICTOR SERGIO",null,63,0,"00090576602100001006",82]
[30821941,"BARRIGA BELLOTA RAUL JULIO",null,71,0,null,390]
[30835181,"BARRIGA PAZ MARCOS ALEXANDER",null,47,0,"00052996902100002006",546]
[72165903,"BARRIGA VILLEGAS MARCO FABRICIO",null,25,0,"00061502402100004006",4122]
[30831803,"BASURCO FERNANDEZ HECTOR EVERARDO",null,67,0,"00075828702100001006",55]
[43553476,"BASURCO VERSACE HECTOR JAVIER",null,37,0,"00112021802100001006",760]
[71449186,"BATALLANOS RUIZ LUIS DANIEL",null,24,0,"00037167002100002006",761]
[4623515,"BATALLANOS ZUÑIGA JOSE ANTONIO",null,63,0,"00007077402100001006",762]
[40295587,"BAYLON ALVAREZ WILMER ADAN",null,39,0,null,396]
[30825791,"BAYLON VARGAS HERNAN ESTEBAN",null,56,0,null,291]
[30829772,"BECERRA BOMBILLA JUAN BENITO",null,60,0,null,255]
[30824442,"BECERRA BOMBILLA VICENTE ALFREDO",null,58,0,"00035399002100002006",295]
[30856034,"BECERRA ORDOÑEZ JULIO CESAR",null,43,0,null,294]
[4639878,"BECERRA PINTO ILDEFONSO REYMUNDO",null,54,0,"00105884402100001006",70]
[30852492,"BEDREGAL PORTALES LUIS ANGEL ENRIQUE",null,61,0,null,467]
[30827628,"BEGAZO RODRIGUEZ SANTIAGO ALFREDO",null,63,0,"00143206802100001006",765]
[30821337,"BEGAZO TELLES EDMUNDO PEDRO",null,60,0,null,269]
[40049181,"BELLA AYMITUMA PERCY GERBER",null,46,0,"00038324302100001006",569]
[29724627,"BELTRAN SARCCO ISAAC",null,46,0,null,201]
[4642785,"BENAVENTE ARANIBAR CARLOS ENRIQUE",null,47,0,"00050996802100003006",1307]
[30829637,"BENAVIDES ZAPANA WILMER JORGE",null,52,0,null,523]
[40374952,"BERNAL DELGADO JULIO CESAR",null,41,0,"00021889602100001006",504]
[44755241,"BERNAL DELGADO RENZO ROLANDO",null,32,0,"00050832302100001006",768]
[40811045,"BERNEDO FLORES DANIEL CHARLIE",null,39,0,"00050317102100003006",4053]
[30822408,"BLANCO VERA ALEJANDRO ARMANDU",null,58,0,"00073324202100002006",576]
[72742559,"BOLAÑOS MACHACA GUSTAVO GIOVANI",null,20,0,"00277737502100001006",4096]
[30821041,"BORJA BANCOFF LUIS ALBERTO",null,null,0,null,284]
[22266268,"BRAVO HERNANDEZ MIGUEL ANGEL MARTIN",null,52,0,null,297]
[30830702,"BRICEÑO CESPEDES JORGE ALBERTO",null,61,0,"00137241102100001006",770]
[4621353,"BUENO TORREJON SEGUNDO RAFAEL",null,68,0,"00115934102100001006",18]
[40532974,"BUSTAMANTE LLERENA FERNANDO ALEXANDER",null,39,0,null,331]
[30831359,"BUTRON CARRERO ERNESTO HERNAN LADISLAO",null,65,0,null,472]
[30837494,"BUTRON LOPEZ ALEXIS JHOLVY",null,42,0,"00140936002100001006",118]
[30828735,"CABALLERO BARRIOS URSO ELISBAN",null,66,0,null,377]
[30863268,"CABOAPAZA KAHUAPAZA SANTA ELENA",null,47,0,"00153736302100001006",772]
[30835740,"CACERES ARIAS LUIS ALBERTO",null,46,0,"00050860802100001006",540]
[30852617,"CACERES BARRIGA VICTOR RAUL",null,58,0,"00143207202100001006",13]
[30824725,"CACERES CHAVEZ JULIO ALBERTO",null,72,0,"00081793002100001006",272]
[4628015,"CACERES PUERTAS ALFREDO",null,65,0,"00155665802100001006",1308]
[80384817,"CACERES TERNERO LUIS ENRIQUE",null,42,0,"00044573702100001006",214]
[30830389,"CAHUANA FLORES RAYMUNDO HERNAN",null,71,0,"00075828802100001006",319]
[30836557,"CAHUANA GUTIERREZ JULIO CESAR",null,46,0,"00137241202100001006",778]
[43095587,"CALDERON BONIFACIO CARLOS MARIO SANT",null,34,0,"00010652302100005006",779]
[72690080,"CALDERON MEDINA ARTURO ROBIN",null,27,0,"00067532502100002006",780]
[42101443,"CALDERON SAAVEDRA GONZALO EDUARDO",null,37,0,null,247]
[71584083,"CALLA AQUINO ELSA STEFANI",null,24,0,"00264100502100001006",4059]
[42214723,"CALLATA CALCIN EDGAR EDUARDO",null,36,0,null,437]
[4622086,"CAMPOS BERROA DOMINGO ROGELIO",null,62,0,"00064004902100003006",1309]
[4626103,"CAMPOS BERROA MELECIO NICOLAS",null,67,0,"00115936802100003006",162]
[4626272,"CAMPOS BERROA SANTIAGO HONORIO",null,71,0,"00116459802100001006",781]
[77691352,"CANO RODRIGUEZ JOSE EMILIO",null,21,0,"00199551302100002006",782]
[46024462,"CAPA HUISACAINA SESIBEL",null,33,0,"00275370302100001006",4093]
[70558870,"CARBAJAL AGUIRRE LUIS ANGEL",null,24,0,"00082091302100001006",783]
[29361260,"CARBAJAL CCORIMANYA HERMENEGILDO",null,70,0,null,318]
[4425384,"CARBAJAL RODRIGUEZ VICTOR JORGE",null,80,0,null,379]
[30823758,"CARDENAS NIETO JOSE ERNESTO",null,58,0,"00053662802100002006",784]
[30845817,"CARI APAZA FRANCISCO DONATO",null,63,0,null,338]
[47918559,"CARI BERVEÑO VICTOR ALONZO",null,25,0,"00134023502100001006",785]
[80511921,"CARI CABANA JACKELINE PILAR",null,39,0,"00060657102100002006",4051]
[30835614,"CARLOS CRUZ ELOY ENRIQUE",null,46,0,"00057051602100001006",575]
[30828838,"CARNERO MURILLO YURBY ZACARIAS GUILLERMO",null,64,0,"00044543202100001006",329]
[43192865,"CARNERO SAITO ANA NATALI",null,33,0,"00188436602100001006",788]
[799508,"CARPIO AROCUTIPA ROBERTO",null,50,0,"00115939202100001006",789]
[4624040,"CARPIO HIDALGO TEOFILO CASIMIRO",null,74,0,"00139069002100001006",790]
[72912168,"CARPIO MACEDO FABRIZIO GUSTAVO",null,23,0,"00127003402100001006",791]
[41099734,"CARPIO PAREDES FELIX CHARLIE",null,38,0,null,517]
[30833343,"CARPIO SANTISTEBAN ENRIQUE MIGUEL",null,53,0,"00078356602100002006",792]
[4633691,"CARRASCO MOSCOSO FRANCISCO BORJA",null,70,0,"00057230702100002006",1310]
[42508230,"CARRASCO RAMOS FRANCISCO WALTHER",null,37,0,"00064104802100002006",793]
[30835949,"CARRERO SALAVALDEZ JOSE LUIS",null,45,0,null,341]
[76636761,"CARRILLO CHOQUEPUMA MARGOT SANDRA",null,20,0,"00235784002100001006",794]
[4653605,"CARRILLO MONSALVE LUIS FERNANDO",null,40,0,"00116460902100001006",795]
[30824942,"CASAPERALTA ANCCO SALOME ALEDIO",null,70,0,"00112023602100001006",140]
[42523743,"CASAS CONDORI ANDRES MANUEL",null,35,0,"00056312302100001006",1300]
[46456570,"CASAS CONDORI ESTEFANI YENI",null,28,0,"00224525002100001006",797]
[4631626,"CASAS NAUPARI JESUS GALO",null,68,0,"00087129202100001006",1311]
[4629462,"CASTELLANOS SALINAS JOSE MANUEL",null,60,0,"00118111902100001006",4040]
[30836619,"CASTILLO AGUIRRE WILLIAM JACOB",null,44,0,"00060147102100002006",568]
[4623806,"CASTILLO PORTALES RENE BERNARDINO",null,63,0,"00116461602100001006",80]
[30827107,"CASTILLO TALAVERA GABINO EDUARDO",null,53,0,"00143208202100001006",66]
[30834481,"CASTILLO TALAVERA RICHARD PERCY",null,47,0,null,157]
[45500793,"CASTILLO TICONA FREDDY FLORENTINO",null,31,0,"00144358302100004006",800]
[30836981,"CASTRO CONTRERAS MARCO ANTONIO",null,43,0,null,521]
[30863358,"CASTRO PEÑARANDA SHIRLEY MARIANELA",null,45,0,"00013490202100001006",801]
[4632634,"CASTRO RAMIREZ FRANCISCO DANIEL",null,69,0,"00052494202100002006",38]
[4635835,"CAYETANO GARATE JOSE TOMAS",null,53,0,"00204102902100001006",26]
[48116166,"CCAHUA CONDORI YOLA",null,28,0,"00137241602100001006",802]
[44291376,"CCAHUANA MERMA ALICIA",null,32,0,"00065022602100002006",803]
[44664586,"CCALCINA ZELA ANABEL DELIA",null,31,0,"00144385902100001006",804]
[43584273,"CCALCINA ZELA VERONICA ESTELA",null,33,0,"00137242302100001006",805]
[29561988,"CCALLACCASI ANCCASI EFRAIN",null,54,0,"00050828302100001006",145]
[47292699,"CCALLOHUANCA CCALLOHUANCA NERY",null,26,0,"00144336702100001006",807]
[30847856,"CCARI FLORES APOLINAR",null,73,0,"00155655902100001006",808]
[44253951,"CCARITA MAMANI MOISES",null,35,0,"00087101902100001006",809]
[40030046,"CCORIMAYO BLAS JOSE EDWIN",null,42,0,"00064936102100002006",810]
[43330056,"CEREZO VILLASANTE EUGENIO",null,36,0,"00075840202100003006",811]
[73113736,"CESPEDES CLEMENTE JERSON GIOVANNI",null,27,0,"00072597102100002006",812]
[44616049,"CESPEDES CLEMENTE SHELY PAOLA",null,32,0,null,4116]
[43083534,"CESPEDES LLERENA FRANCO GILBERTO",null,34,0,"00052159702100005006",813]
[44615025,"CESPEDES LLERENA SANDRA MERCEDES",null,31,0,"00145972702100001006",814]
[30830529,"CESPEDES OSORIO GILBERTO LUCAS",null,63,0,"00150113702100001006",815]
[30830528,"CESPEDES OSORIO WALTER TRINIDAD",null,57,0,"00051262702100004006",816]
[4628758,"CESPEDES ZEGARRA CARLOS ANTONIO",null,65,0,"00118058802100001006",1312]
[29558959,"CHACON ESPINOZA GUSTAVO ADOLFO",null,null,0,null,412]
[41155313,"CHAMANA TORRES JAIME JOSE",null,41,0,null,342]
[40460526,"CHAMANA TORRES ROLANDO AURELIO",null,43,0,null,348]
[41340953,"CHAMBI CUTIPA JESUS DAVID",null,37,0,"00186031602100001006",817]
[30863419,"CHAMBI CUTIPA MICHAEL MARCELO",null,44,0,"00086811302100001006",818]
[46613622,"CHAMBILLA CALIZAYA YOYSSY LEYLLA",null,28,0,"00147184802100002006",819]
[30835053,"CHAMBILLA CRUZ FRANCISCO",null,47,0,"00032916902100002006",170]
[30834651,"CHAMBILLA CRUZ RUMUALDO JAIME",null,52,0,"00037431602100002006",126]
[30831118,"CHAMBILLA QUISPE RAMON FRANCISCO",null,62,0,"00075862002100001006",473]
[73372733,"CHAÑE CRUZ RUTH SARA",null,22,0,"00149256302100001006",823]
[4625103,"CHAPARRA QUISPE HIPOLITO",null,70,0,"00116463002100001006",824]
[80326862,"CHAVEZ ALVAREZ ALFREDO",null,68,0,"00144339202100001006",536]
[30828332,"CHAVEZ BAYLON AGAPITO MANOLO",null,60,0,null,293]
[30827465,"CHAVEZ MALDONADO JAIME ASUNTO",null,55,0,"00057051702100001006",697]
[30822735,"CHAVEZ MALDONADO JUAN DAVID",null,59,0,"00012669502100001006",416]
[30823604,"CHAVEZ PAREDES RICARDO ANTONIO",null,55,0,"00044573802100001006",183]
[41692194,"CHAVEZ TURPO VERONICA LISBET",null,36,0,"00140937602100001006",829]
[47044194,"CHAVEZ VILCHEZ SANDRA JIMENA",null,27,0,"00137243302100001006",830]
[30837826,"CHICAÑA QUISPE MARCOS ORLANDO",null,42,0,null,328]
[41927651,"CHINO SURCO DENIS OSCAR",null,38,0,"00069644402100002006",832]
[30843800,"CHINO SURCO SIXTO RODY",null,42,0,"00003210602100002006",831]
[30823210,"CHIRE SALAZAR VICTOR GALO",null,64,0,"00112061602100001006",7]
[4626490,"CHIRINOS AGUILAR FRANCISCO WILLIAM",null,55,0,"00155258502100001006",140]
[30831733,"CHIRINOS GALLEGOS ITALO PEDRO PABLO",null,60,0,"00026004402100001006",363]
[4634953,"CHIRINOS POLANCO RAMON ALADINO",null,61,0,"00116463702100001006",117]
[45768118,"CHIRINOS ROJAS JOEL GUILLERMO",null,32,0,"00139482702100001006",835]
[42362409,"CHIRINOS ROJAS NICEFORO JOEL",null,36,0,"00118059802100001006",836]
[30827000,"CHIRINOS SULLAYME GREGORIO MARIO",null,64,0,"00060582302100002006",161]
[30847647,"CHOQUE ACOSTA RUBEN WALTER",null,60,0,"00181166102100002006",838]
[48317929,"CHOQUE ATOCHE ANTUANET FIORELLA",null,25,0,"00264101402100001006",4055]
[43195823,"CHURA ANAHUA LUCILA",null,33,0,"00085017002100003006",4001]
[42783312,"CHURATA CHECYA JOSE ALBERTO",null,37,0,null,249]
[15299176,"CIPIRIANO SAAVEDRA VILMA REVECA",null,51,0,"00181007702100001006",839]
[43488157,"COAQUIRA COAQUIRA JUANA MILAGROS",null,null,0,"00025053102100002006",1287]
[30836038,"COARICONA JAHUIRA MIGUEL",null,45,0,null,222]
[40820444,"COELA SONCCO ISIDORA",null,38,0,"00178274102100001006",840]
[42908436,"COLQUE ESQUIVEL ABRAHAM ALAN",null,34,0,"00082021102100004006",698]
[30834996,"COLQUE QUISPE NERIO",null,47,0,null,434]
[667528,"COLQUE SURCO WILE JESUS",null,62,0,"00115942702100001006",1313]
[30844683,"COLQUE VILCA RAMON",null,null,0,null,336]
[30824133,"CONDORI BEJAR JUAN MATEO",null,56,0,"00048693302100002006",119]
[30835353,"CONDORI HUANCA VICTOR ROBERTO",null,47,0,"00143209202100001006",488]
[45576773,"CONDORI PAMPA NELLY ANGELICA",null,30,0,"00178886802100002006",843]
[43510539,"CONDORI PEREDO DE QUISPE ROXANA",null,33,0,"00227766802100001006",844]
[71979171,"CONDORI QUIRITA ERICK MANUEL",null,20,0,"00275393002100001006",4095]
[30830890,"CONDORI RAMOS JOSE LUIS",null,56,0,"00143209502100001006",563]
[48280163,"CONDORI TTICA JESUS ANGEL",null,27,0,"00188436802100001006",846]
[44661853,"CONDORI TTICA JHON GUIDO",null,33,0,"00054932502100002006",847]
[40350030,"CONTRERAS ESQUIVEL SELVY PAOLO",null,40,0,null,233]
[30834884,"CONTRERAS HERRERA MANUEL MAXIMILIANO FILAMIR",null,47,0,null,358]
[21565287,"CONTRERAS RODRIGUEZ LUIS ALBERTO",null,50,0,null,433]
[42587330,"CORDOVA ARIRAMA IMELDA",null,44,0,"00185842502100001006",848]
[41845213,"CORNEJO CALLE DEYVID EDILBERTO",null,36,0,null,408]
[4624545,"CORNEJO CARRANZA ASCENCIO MIGUEL TOM",null,61,0,"00063953702100003006",850]
[4637140,"CORNEJO CARRANZA ENRIQUE JIMMY",null,51,0,"00116471202100001006",849]
[30837857,"CORNEJO SOLIS JOSE LUIS",null,50,0,"00038279502100002006",286]
[4652503,"CORNEJO VARGAS JUAN CARLOS",null,58,0,"00139485102100001006",852]
[43418281,"CORTEZ ATOCHE MORRIS ALBERT",null,37,0,"00211908202100001006",853]
[30826822,"COSSI QUISPE JUAN",null,59,0,null,235]
[4625771,"COSSIO UTANI SALES FRANCISCO",null,61,0,"00099894402100001006",1314]
[4644960,"CROSE MEZZACASA GIOVANNI",null,52,0,"00075409902100002006",1315]
[44893366,"CRUZ ERQUINIGO BRUNO ROSSELL",null,31,0,"00069598602100001006",854]
[30828389,"CRUZ PEQUEÑA BRUNO ROSARI",null,52,0,"00074726302100001006",855]
[42012120,"CRUZ VERGARA KARINA",null,null,0,"00064958402100003006",1288]
[30822272,"CUBA GONZALES MANUEL SABINO",null,74,0,null,134]
[30833139,"CUBA RODRIGUEZ FREDDY MANUEL",null,52,0,null,220]
[30832718,"CUELA BARREDA ANGEL WANDISLAO",null,55,0,null,314]
[48756267,"CUELLAR MIRANDA ADAN JESUS",null,23,0,"00222061002100002006",4063]
[30823660,"CUELLAR RODRIGUEZ JORGE ANDRES",null,60,0,"00069598702100001006",347]
[4645279,"CUENTAS SALAS YURY GUALBERTO",null,49,0,"00118059902100001006",857]
[30856289,"CUETO MONTALVAN JULIO",null,73,0,null,292]
[30828999,"CUEVA SOLIS LUIS MANUEL FELIX",null,59,0,"00050227402100001006",691]
[43656747,"CUEVA TORRES LUIS UBERTO",null,35,0,"00014488802100003006",690]
[42409468,"CUEVAS AVILES ESTHER",null,35,0,"00137243802100001006",860]
[45380374,"CUEVAS AVILES GLADIS",null,30,0,"00140938402100001006",861]
[30828801,"CUSI ARISACA ANTONIO",null,66,0,"00086266902100001006",89]
[4429575,"CUTIPA CHAMBI NEMESIO QUINTIN",null,45,0,"00139050002100002006",863]
[4621336,"DAVILA MORON FERNANDO WALTER",null,61,0,"00203236402100001006",1316]
[4632574,"DAVILA MORON RICARDO EDUARDO",null,65,0,"00218172802100001006",864]
[30827143,"DE LA CRUZ SALINAS ERNESTO",null,65,0,"00075819702100001006",79]
[30836817,"DELGADO AMAT Y LEON LUIS WILMER",null,44,0,"00063354002100001006",866]
[71125048,"DELGADO BUENO LUIS GABRIEL",null,23,0,"00112030102100001006",867]
[30825812,"DELGADO CACERES VICTOR ALFREDO",null,67,0,"00118114302100001006",125]
[76361972,"DELGADO CARDENAS MIGUEL ANGEL",null,24,0,"00224525702100001006",868]
[30863271,"DELGADO DETAN FERNANDO WILLIAM",null,50,0,"00259375002100001006",4012]
[30857162,"DELGADO MONTES VICTOR ALFREDO",null,41,0,null,443]
[73372579,"DELGADO NINA DARIEN DORIAN",null,20,0,"00277967702100001006",4111]
[4625467,"DELGADO RAMOS ALEJANDRO",null,62,0,"00092735402100001006",142]
[4629739,"DELGADO RAMOS LORENZO LUIS",null,59,0,"00008882202100001006",1317]
[46516287,"DELGADO ROJAS CARLOS ALBERTO JUNIOR",null,29,0,"00056610702100001006",869]
[29678348,"DELGADO VALENCIA JUAN JORGE",null,55,0,null,413]
[4629461,"DELGADO ZUÑIGA VICTOR DOMINGO",null,69,0,"00118060502100001006",1318]
[30837249,"DESCALZI HERRERA HECTOR ERNESTO",null,45,0,null,251]
[41412268,"DEXTRE DIAZ ISELA DANY",null,43,0,"00035641102100002006",870]
[30830734,"DIAZ ANGULO MANUEL DAVID",null,71,0,"00112030302100001006",175]
[30823184,"DIAZ BELZO ANGEL AUGUSTO",null,57,0,null,378]
[30822729,"DIAZ BELZO MARCO MARIO",null,61,0,null,429]
[30821839,"DIAZ CARDENAS FELIX EDUARDO",null,60,0,null,452]
[30821906,"DIAZ CARDENAS JAIME AURELIO",null,75,0,null,332]
[4626888,"DIAZ CERVANTES LUIS ENRIQUE",null,67,0,"00083400502100001006",84]
[30826326,"DIAZ DIAZ ADAN ELARD",null,61,0,"00147251102100001006",17]
[74471826,"DIAZ ESQUIVEL JOHAN STIFF",null,20,0,"00272434702100001006",4080]
[30835485,"DIAZ GOMEZ ANGEL JOSE",null,45,0,null,411]
[30826767,"DIAZ GOMEZ MARCOS LUIS",null,60,0,null,410]
[25539593,"DIAZ MARTINEZ LUIS ALBERTO",null,51,0,null,4118]
[29547220,"DIAZ SONCO TEOFILO MARIO",null,51,0,null,257]
[4625947,"DILL'ERVA MAURA EVERTH ROMAN",null,61,0,"00039990202100002006",37]
[9957615,"DONAYRE ARGUEDAS LUIS MARTIN",null,43,0,"00203337902100001006",873]
[4631490,"DURAN AGUILAR JULIO EDGAR",null,60,0,"00093196302100001006",153]
[43726185,"DURAN DAVILA SELENE",null,34,0,"00034737502100002006",4083]
[40441313,"EGUILUZ ZEVALLOS GUSTAVO HONORATO",null,40,0,null,306]
[48720144,"ENOKI MOTTA ROTSEN JUNIHOR",null,25,0,"00149268202100001006",874]
[41001117,"ERQUINIGO FERNANDEZ RUBEN FRANZUA",null,38,0,"00123844902100001006",875]
[45733493,"ESCATE TORRES JUAN JOSE",null,33,0,"00143210402100001006",555]
[72516828,"ESCOBEDO MACHACA JAZMIN SELENE",null,22,0,"00272471802100001006",4074]
[30820836,"ESCUDERO SOLARI FAUSTO PEDRO",null,53,0,null,361]
[40521565,"ESPINOZA ALARCON NAVA MARCO",null,39,0,null,382]
[4624184,"ESPINOZA DELGADO FREDDY MANUEL",null,60,0,"00116137902100001006",877]
[30826086,"ESPINOZA ORTIZ ARTURO ABEL",null,64,0,"00086020302100002006",107]
[4749387,"ESPINOZA URE ALEJANDRO RAUL",null,42,0,"00116138102100001006",879]
[4649523,"ESPINOZA URE ORLANDO JAVIER",null,49,0,"00116172802100001006",880]
[47929823,"ESPINOZA VILCHEZ YUVICSA FIORELLA",null,26,0,"00043748802100002006",881]
[9186167,"ESQUIVEL LAIVE LORENZO MANUEL",null,57,0,"00145178302100001006",181]
[75539699,"ESTACA MAMANI GERALDINE VIRGINIA",null,23,0,"00137244602100001006",883]
[42347974,"ESTRADA ALVAREZ ANDRES ALONSO",null,35,0,null,436]
[80261847,"EUGENIO BERNEDO JUAN MAURO",null,45,0,null,337]
[47483252,"EVARISTO SELIS ENRIQUE GABRIEL",null,27,0,"00042188502100002006",884]
[19237694,"FACHE SANCHEZ ROGELIO ALFONSO",null,50,0,"00208598802100001006",885]
[30823045,"FERNANDEZ ALVAREZ JAVIER ALEJANDRO",null,61,0,"00112031402100001006",564]
[30415983,"FERNANDEZ BOBADILLA LUCHO ADRIEL",null,47,0,"00137244902100001006",206]
[46437324,"FERNANDEZ CUELLO LUIS ALONSO",null,null,0,"00041413602100002006",1289]
[30834722,"FERNANDEZ FLORES WILLIAM ALBERTO",null,48,0,null,234]
[44294028,"FERNANDEZ SALGADO ROLANDO MARTIN",null,32,0,null,4124]
[4633135,"FERNANDEZ TICONA JOSE ALBERTO",null,55,0,"00004365702100001006",238]
[47378837,"FLORES ANGULO WENDY",null,27,0,"00272772502100001006",4085]
[30863410,"FLORES CHOQUETICO ERIKA VIOLETA",null,44,0,"00072733002100002006",888]
[40075409,"FLORES DELGADO JHONATAN JOSEP",null,40,0,null,414]
[1855598,"FLORES PAUCAR ROGELIO",null,51,0,"00011455702100002006",889]
[30833785,"FLORES SUAREZ HUMBERTO JORGE",null,49,0,null,230]
[30823265,"FLORES VALENCIA CELEDONIO",null,76,0,"00050854202100001006",221]
[30830118,"FLORES VASQUEZ FELIPE GRIMALDO",null,62,0,"00039329302100002006",30]
[45941199,"FLOREZ PUMA EMERSON FERNANDO",null,31,0,"00117044102100001006",892]
[43962722,"FRANCO BAYLON MOISES STEFFAM",null,32,0,null,506]
[30827567,"FUENTES CARPIO JUAN GUILLERMO",null,66,0,"00083846602100001006",444]
[46044064,"FUENTES CARPIO RAUL LEONARDO",null,32,0,"00078407002100001006",894]
[30823151,"FUENTES ROCHA GERARDO ALBERTO",null,53,0,null,438]
[43002314,"FUENTES VALDIVIA RUBEN DARIO",null,34,0,"00034295802100002006",895]
[44292474,"GALARZA CAMPOS ALVARO JOAO",null,35,0,"00015490202100002006",896]
[30830303,"GALLEGOS PEREA HUGO JUAN",null,58,0,null,340]
[29637616,"GALLEGOS QUILLUYA LIZBETH",null,45,0,"00049184502100002006",897]
[4648194,"GALLEGOS ROQUE RODOLFO GUILLERMO",null,47,0,"00084745902100001006",122]
[30829218,"GALLEGOS TALAVERA DEGLI JULIO",null,57,0,"00143211002100001006",394]
[30827821,"GALLEGOS TALAVERA EDWIN RODIL DE LA CRUZ",null,59,0,"00057045302100001006",562]
[30837252,"GALLEGOS ZAMUDIO CARMEN ELENA",null,43,0,null,325]
[30856675,"GALVEZ BEJAR WUILSON YEFFER",null,42,0,"00039540902100002006",900]
[47049054,"GALVEZ CASAS YAHAIRA YOVANA",null,28,0,"00277740502100001006",4097]
[46134395,"GALVEZ CASAS YELKA DAYANA",null,31,0,"00282085502100001006",4123]
[42304686,"GAMARRA CHURA BUENAVENTURADA",null,36,0,"00211941602100001006",901]
[42440407,"GAMARRA QUISPE RENATO",null,38,0,"00184038202100001006",902]
[41603866,"GAMARRA RAMIREZ HERNAN JAIME",null,40,0,"00139483802100001006",903]
[30856568,"GARCIA AGUILAR ANTONIO ALFREDO",null,42,0,"00106683702100001006",466]
[30856869,"GARCIA AGUILAR JUAN FERNANDO",null,44,0,"00117044702100001006",33]
[40613614,"GARCIA AGUILAR MIGUEL ANGEL",null,40,0,"00143211602100001006",352]
[42898785,"GARCIA DEL CASTILLO VIVIANA",null,36,0,"00256673902100001006",1301]
[45774102,"GARCIA DELGADO WALTER HUGO",null,31,0,"00052732002100002006",907]
[80230156,"GARCIA LUCUMBER PAULA LUISA",null,44,0,"00163991302100001006",908]
[4622603,"GARCIA MADUEÑO GUIDO ALBERTO",null,70,0,"00116177002100001006",7]
[10301927,"GARCIA SOLIS WALTHER",null,45,0,"00075819802100001006",489]
[40239508,"GARCIA VALDIVIA ELVIS JERSON",null,39,0,"00183400702100001006",910]
[4643290,"GARCIA VALDIVIA GUIDO ALBERTO",null,42,0,"00116178702100001006",13]
[70420920,"GARCIA YOUNG DANIEL ALEJANDRO",null,28,0,"00139070002100001006",911]
[30820976,"GHERSI VARGAS HUMBERTO JESUS",null,58,0,null,417]
[30821255,"GODOY CARRERO ISAAC SULPICIO FERMIN",null,70,0,null,359]
[46375707,"GOMEZ CONDORI FAUSTO",null,29,0,"00116179702100001006",912]
[30850089,"GOMEZ LLAMOSAS EDWARD EUSEBIO",null,46,0,null,451]
[30831277,"GOMEZ PUMA HIPOLITO ARTURO",null,55,0,"00101365102100001006",169]
[40329928,"GONGORA CONDORI JOSE WILBER",null,42,0,"00070782302100002006",338]
[30832559,"GONZA MAMANI EDGARD IGNACIO",null,52,0,"00063313102100001006",692]
[30831557,"GONZALES MELO JOSE LUIS",null,54,0,null,243]
[40405525,"GONZALES PIMENTEL LUCIO CESAR",null,46,0,"00139070602100001006",915]
[30834912,"GONZALES ROJAS JOSE LUIS",null,48,0,"00049627602100002006",475]
[30833917,"GONZALES ROJAS JUAN EDUARDO",null,49,0,"00146287602100001006",263]
[45090574,"GONZALES VARGAS JOSE LUIS",null,31,0,"00046389602100002006",918]
[80264204,"GORDILLO SAAVEDRA MERY EVELYNDA",null,40,0,"00020899502100002006",919]
[30863709,"GUERRERO CARPIO TATIANA",null,40,0,"00221746202100001006",920]
[45750391,"GUEVARA AROTAIPE ANGEL EMILIO",null,30,0,"00018820002100002006",552]
[40522986,"GUILLEN DEWIA LUIS EMILIO",null,40,0,"00118877602100003006",922]
[22184127,"GUTIERREZ BENDEZU SANTOS ENRIQUE",null,54,0,"00063313202100001006",102]
[71870548,"GUTIERREZ CASTILLEJOS ELISEO RUBEN",null,24,0,"00133230002100001006",924]
[29358103,"GUTIERREZ PINTO JEENRRI JESUS",null,58,0,null,362]
[30823175,"GUTIERREZ SOLORZANO ABDON CLAUDIO",null,65,0,"00050643902100001006",277]
[42586930,"HANCCO HANCCO MARISOL",null,34,0,"00212664202100001006",926]
[45791809,"HERRERA VALDIVIA PEDRO ZENON",null,30,0,"00052961802100002006",927]
[80266515,"HUACHO PAZ RAUL EDMUNDO",null,40,0,"00112758102100002006",455]
[4650332,"HUALPA JANAMPA ALBERTO MAURO",null,44,0,"00116184302100001006",929]
[72202142,"HUAMAN GALLEGOS BRIGITTE",null,21,0,"00239371402100001006",930]
[29500370,"HUAMAN VARGAS SARA LUZ",null,58,0,"00088948402100001006",4065]
[30821009,"HUAMANTUCO CARRILLO JACINTO ELEODORO JOSE",null,66,0,"00143212902100001006",305]
[42408040,"HUAMANTUCO SAMATA JHOAN",null,36,0,"00212664702100001006",932]
[4623141,"HUANACUNE HUAÑEC LUIS RAUL",null,62,0,"00051541002100002006",103]
[4624609,"HUANACUNE MAQUERA WILLY ZACARIAS",null,53,0,"00139070902100001006",933]
[30834736,"HUANCA CALLO MIGUEL LEONIDAS",null,52,0,null,227]
[30829416,"HUANCA FARFAN DAVID BENJAMIN - FALLECIDO",null,71,0,null,103]
[70524269,"HUANCA GOMEZ MARIELA DEL PILAR",null,26,0,"00236224202100001006",934]
[71979151,"HUANCA TICONA SERGIO ANDRE",null,23,0,"00123377002100002006",935]
[30829982,"HUANCA VILELA TEODORO ALFREDO",null,58,0,null,435]
[42513120,"HUANCO CHURA MARGOT IRENE",null,37,0,"00203114102100001006",936]
[73372657,"HUANCOLLO MAQUERA TALY LOURDES",null,23,0,"00275360202100001006",4092]
[30824238,"HUARICALLO ESPINOZA SIMON",null,72,0,"00050821902100001006",108]
[30857358,"HUERTA ARAMAYO JOSE ANTONIO",null,40,0,null,409]
[80434697,"HUIRACOCHA CCASO ADOLFO RAFAEL",null,41,0,"00086205002100001006",938]
[29370830,"IDME CARRASCO JULIAN",null,57,0,"00118060602100001006",939]
[10880027,"ISIDRO OSORIO ANGEL RAUL",null,41,0,"00020130902100002006",940]
[42697241,"JIMENEZ DUQUE ROXANA KARINA",null,39,0,"00217074002100001006",941]
[4635172,"JIMENEZ SILVA MANUEL EDUARDO",null,70,0,"00116312002100001006",16]
[41642739,"JORDAN HUAYNACHO ABRAHAM SAMUEL",null,38,0,null,537]
[4630894,"JUAREZ JUAREZ NESTOR DIEGO",null,62,0,"00116329302100001006",942]
[4629383,"JUAREZ JUAREZ RODOLFO DANIEL",null,55,0,"00076444902100003006",151]
[23004369,"JUSTINIANO MODESTO CONSTANTIN",null,48,0,"00139071002100001006",943]
[30831876,"LARENAS HURTADO RAUL ROBERTO",null,59,0,null,423]
[30820522,"LARENAS SANCHEZ RAUL ROBERTO",null,53,0,null,392]
[4633277,"LARICO COAQUIRA NANCI MARUJA",null,54,0,"00149295102100001006",944]
[486604,"LEE YAÑEZ ALBERTO",null,50,0,null,462]
[30824727,"LEIVA VALDIVIA OFELIA MERCEDES",null,56,0,"00144342002100001006",945]
[30836448,"LEYVA PONCE ISAAC YURI",null,48,0,"00024410502100002006",529]
[71991230,"LIGUE INCA JOSE SEBASTIAN",null,26,0,"00177151402100001006",947]
[4653210,"LIMA ROJAS JOSE ALBERTO",null,41,0,"00155973302100001006",948]
[2027855,"LIPA PORTILLO SOCRATES",null,53,0,"00086212102100001006",949]
[42404553,"LIPE MEDINA IRIS KARINA",null,36,0,"00198810702100001006",950]
[30834685,"LIRA LAU CESAR ENRIQUE",null,48,0,"00058352902100002006",1290]
[30856818,"LLACMA SAMATA CALIXTO FORTUNATO",null,47,0,"00060727702100002006",186]
[42665891,"LLANOS AIMITUMA ULISES FERNANDO",null,35,0,null,525]
[45520148,"LLATA COATA VLADIMIR RAMSES",null,30,0,"00143213402100001006",501]
[30834814,"LLERENA BUTRON HUMBERTO HUGO",null,48,0,"00070141302100002006",533]
[30830530,"LLERENA DE CESPEDES MARIA LUISA DOMI",null,65,0,"00065849902100004006",954]
[30828789,"LLERENA RIVERA CARMEN ROSA",null,64,0,null,4114]
[46963364,"LLUMI NINA JOHANA ROCIO",null,34,0,"00264102802100001006",4056]
[5309171,"LLUMI PIZANGO ROLDAN",null,62,0,null,1325]
[74841431,"LONGHI CHACON ALFONSO LUCIANO",null,24,0,"00038280302100002006",955]
[41797085,"LOPE FERNANDEZ JOSUE DANTE",null,36,0,null,426]
[30835342,"LOPE MARQUINA JOSE LORENZO",null,47,0,null,199]
[4632145,"LOPEZ FLORES MARIO LORENZO",null,59,0,"00211711402100001006",53]
[43123536,"LOPEZ HUANCA JHONY RAFAEL",null,36,0,"00143214302100001006",556]
[41797066,"LOPEZ PONCE ALEXIS ELARD",null,36,0,"00075852102100001006",550]
[4629906,"LUNA QUEA JAIME",null,65,0,"00205686702100001006",121]
[30832548,"LUQUE CHAVEZ HENRY EDUARDO",null,52,0,"00068829402100002006",242]
[46591630,"LURITA HERNANDEZ KELLY JENNY",null,29,0,"00259375502100001006",4017]
[4625162,"MACEDO SANCHEZ VIRGINIO AUGUSTO",null,67,0,"00051503602100003006",1319]
[4653102,"MACEDO VALDIVIA AUGUSTO FERNANDO",null,41,0,"00116314402100001006",164]
[80595500,"MACHACA HANCCO MANUEL MARTIN",null,44,0,"00082018602100001006",565]
[4630343,"MADUEÑO VELEZ NORBERTO MANUEL",null,64,0,"00116317002100001006",960]
[30826323,"MALAGA MEDINA ELAR WALTER",null,66,0,"00065472202100002006",15]
[30856108,"MALAGA SALAS JUAN CARLOS - FALLECIDO",null,42,0,null,275]
[30827748,"MALAGA VALDIVIA ISIDORO ALFONSO",null,64,0,"00075782902100001006",110]
[30827823,"MALAGA VALDIVIA JOSE FELIX",null,56,0,"00011949402100001006",115]
[4646669,"MALLEA QUISPE HUGO MARIANO",null,47,0,"00101291902100002006",378]
[48529572,"MAMANI ARQUE IRMA",null,28,0,"00185842702100001006",964]
[41315728,"MAMANI CALLAPAZA ISMAEL ADOLFO",null,39,0,null,383]
[4625431,"MAMANI CHAMBI JESUS",null,63,0,"00007003702100001006",42]
[80501231,"MAMANI CHAÑI MARLENY JANETH",null,42,0,"00149315302100001006",965]
[70163933,"MAMANI CHIPANA JORGE ALEXANDER",null,27,0,"00139073302100001006",966]
[30852108,"MAMANI CHURA SILVIO",null,54,0,null,185]
[4648426,"MAMANI COAQUIRA SANTOS DAVID",null,45,0,"00051647702100004006",967]
[42963222,"MAMANI GARCIA JOSE LUIS",null,34,0,"00037733502100002006",968]
[46525511,"MAMANI HANCCO SENON FELIX",null,29,0,"00259376102100001006",4018]
[4749255,"MAMANI LEQUE ISIDRO GERARDO",null,44,0,"00116318302100001006",1320]
[40859238,"MAMANI LIQUE NESTOR PASTOR",null,40,0,"00067646202100002006",969]
[30837682,"MAMANI MAMANI CRISTOBAL",null,46,0,"00056784602100001006",211]
[4624886,"MAMANI MAMANI PABLO",null,58,0,"00052170202100004006",66]
[30836045,"MAMANI QUENAYA MANUEL GUSTAVO",null,48,0,null,450]
[30854136,"MAMANI VALENCIA RODOLFO",null,51,0,"00139074002100001006",971]
[4630509,"MAMANI VARGAS RENE AGRIPINO",null,68,0,"00116329802100001006",79]
[41416529,"MAMANI YANAPA MARIA MAGDALENA",null,39,0,"00196158902100001006",972]
[30823950,"MAMANI YANQUI JUAN",null,68,0,null,365]
[4745006,"MANCILLA VILCHEZ ALEJANDRO RONALD",null,55,0,"00038285202100001006",99]
[30833661,"MANRIQUE BARRIGA JOSE ERNESTO",null,49,0,null,393]
[80434530,"MANZANO RUELAS CESAR",null,40,0,"00116322502100001006",974]
[47929908,"MAQUERA ROMERO JHOSELYN CANDY",null,27,0,null,4077]
[6473264,"MARAGLIANO BELTRAN VICTOR MANUEL",null,71,0,"00114440002100001006",975]
[80594886,"MARCA ROJAS JOSE ALBERTO",null,44,0,null,246]
[30832540,"MARIN ZEVALLOS JOSE BERNARDINO",null,56,0,"00059618302100002006",976]
[30837842,"MARTINEZ ARISMENDI MARIO ENRIQUE",null,42,0,"00015199202100001006",503]
[30829713,"MARTINEZ CHOQUEHUANCA ADOLFO FLORENCIO",null,72,0,"00075253802100001006",192]
[4627409,"MARTINEZ MAURA MANUEL OSWALDO",null,71,0,"00116323502100001006",979]
[43000080,"MARTINEZ SACSI EDITH MARINA",null,36,0,"00049238702100002006",980]
[30863666,"MARTINEZ SILVERIO ANGELICA MARIA",null,41,0,"00008529602100002006",981]
[46390502,"MARTINEZ VIZCARRA WILLIAMS JESUS",null,29,0,"00136316002100001006",982]
[4634102,"MARTINEZ ZEVALLOS VIDAL",null,56,0,"00187158102100001006",1321]
[41202728,"MASCO AYALA ELENA",null,38,0,"00251068902100001006",4058]
[40146061,"MASCO AYALA SIDANELIA",null,41,0,"00043947902100002006",4100]
[80623615,"MASCO AYALA SUSANA",null,42,0,"00149296202100002006",983]
[80426027,"MASCO AYALA YESSENIA XIOMARA",null,40,0,"00203113002100001006",984]
[30832295,"MATURANA VELASQUEZ RENE RAUL",null,51,0,null,311]
[30829831,"MATURANA ZUÑIGA ERNESTO MAURO",null,66,0,"00084408202100001006",547]
[48217446,"MAYO MACEDO MARIA ZULEYKA",null,26,0,"00144343002100001006",986]
[4748026,"MEDINA ESPINOZA FABIO DEMETRIO",null,57,0,"00116325402100001006",987]
[80467227,"MEDINA GUTIERREZ SABINO",null,62,0,"00013832502100001006",558]
[30826494,"MEDINA HUANCA JUAN ERNESTO",null,59,0,"00069134002100001006",215]
[40029781,"MEDINA LIENDO CARLOS FRANCISCO",null,40,0,"00070522902100002006",990]
[30824984,"MEDINA SALAS TITO ERNESTO JULIO",null,58,0,null,324]
[32763751,"MEDINA ZAMBRANO WALTER JULIO",null,61,0,"00118060902100001006",991]
[4646078,"MEJIA SALGADO LEO BUENAVENTU",null,48,0,"00139067202100001006",992]
[30837613,"MELO VELASQUEZ EDWING ARMANDO",null,42,0,"00044098102100001006",570]
[30828750,"MENDOZA ALCOCER FAUSTO PERCY",null,64,0,"00015060102100002006",464]
[30831798,"MENDOZA BLANCO VICTOR",null,80,0,null,321]
[47251860,"MENDOZA CHAVEZ YEISON ABEL",null,27,0,"00190949402100002006",995]
[29467802,"MENDOZA GALVEZ JOSE ANTONIO",null,56,0,"00033970702100002006",279]
[30837236,"MENDOZA GALVEZ VICTOR HUGO",null,52,0,null,386]
[42719307,"MENDOZA HILARI JESUS CONSTANTINO",null,34,0,null,388]
[30830660,"MENDOZA MENDOZA JULIO",null,60,0,"00057011102100002006",495]
[43377810,"MENDOZA NINA JULIO CESAR",null,33,0,"00015118502100002006",998]
[47526772,"MENDOZA NINA JUNIOR RICHARD",null,28,0,"00112057902100001006",999]
[46834772,"MENDOZA PINO LUIS DAVID",null,28,0,"00024723302100001006",1000]
[30863446,"MENDOZA TIRADO ROCIO ESPERANZA",null,44,0,"00137247102100001006",1001]
[30834100,"MENESES LOPEZ JOSE ALFONSO",null,49,0,"00079174502100002006",384]
[4632679,"MENESES MARES LUIS ANGEL",null,61,0,"00115972602100001006",1322]
[45598611,"MERCADO CHOQUE EDITH YANETH",null,35,0,"00024857502100002006",1003]
[40736049,"MEZA ALA VEDRA BELLY YOLANDA",null,38,0,"00062915502100003006",4022]
[29318124,"MEZA DELGADO DANIEL JOSE",null,56,0,"00073241302100002006",225]
[30835510,"MEZA GALLEGOS ALBERTO GERMAN",null,45,0,null,232]
[4632456,"MEZA RIVERA LUIS JAIME",null,62,0,"00094669002100001006",69]
[42994413,"MEZA ROQUE VICTOR ARMANDO",null,34,0,null,454]
[4635505,"MEZA VALDIVIA ANDRES ABELINO",null,67,0,"00076085102100003006",83]
[44330773,"MIRANDA CECENARDO VILMA",null,32,0,"00084028202100002006",1005]
[70139419,"MIRANDA CISNARDO MARIBEL MAGNA",null,27,0,"00117201602100002006",1006]
[30825667,"MIRANDA FIGUEROA LUIS LORENZO",null,66,0,"00143214902100001006",135]
[46657968,"MOGROVEJO TIRADO ADA PATRICIA",null,29,0,"00037955402100003006",4061]
[48567113,"MOGROVEJO TIRADO LUIS ALBERTO",null,24,0,"00211910302100001006",1008]
[30829106,"MOJOROVICH URIBE RICARDO ALFREDO",null,52,0,null,250]
[30834801,"MOLINA CANAZA JUSTO MAURICIO",null,47,0,"00055494902100001006",484]
[4634628,"MOLINA DELGADO JOSE ARNALDO",null,72,0,"00115973802100001006",1010]
[30832860,"MOLINA SALAS RENE ANTONIO",null,50,0,"00057066402100001006",174]
[30831257,"MOLINA SONCCO MANUEL",null,80,0,null,189]
[4650433,"MOLINA ZAMBRANO JUAN MARCEL",null,43,0,"00116035402100001006",1012]
[4636548,"MOLINA ZAMBRANO MILTON KLEM",null,51,0,"00115974702100001006",28]
[42691394,"MONTALVO DIAZ JONNATAN FELIX",null,36,0,"00227767702100001006",1013]
[42687970,"MONTALVO DIAZ VICTOR RAUL",null,37,0,"00190261102100001006",1014]
[30831267,"MONTES DE OCA PACHECO FILIPH PABLO",null,61,0,"00112057102100001006",285]
[15595317,"MONTES SIERRA LAUREANO GUSTAVO",null,52,0,"00116036102100001006",1016]
[30820218,"MORALES MATURANA VIDAL AGAPITO",null,62,0,null,360]
[46839588,"MORALES QUISPE BEATRIZ EMILIA",null,27,0,"00247106702100001006",1291]
[4651309,"MOROCCO HANCCO MARTIN",null,48,0,"00116036302100001006",1017]
[30822200,"MOROCCO MAMANI JULIAN",null,60,0,"00072629902100002006",88]
[45833807,"MOROCCO SAIRE JULIAN CESAR",null,30,0,"00048320402100002006",486]
[45644842,"MOSCOSO NUÑEZ FERNANDO WILFREDO",null,30,0,"00075385202100001006",1020]
[4749521,"MOSTAJO ARIAS GUILLERMO HENRY",null,41,0,"00047904702100002006",273]
[4633197,"MOSTAJO ZEGARRA VALERIANO HENRY",null,60,0,"00072317902100002006",48]
[45503795,"MUCHICA HUAMANTUMA SOLEDAD YONILDA",null,30,0,"00084330102100003006",1021]
[80687547,"MULATO SAFORAS EDGAR JAIME",null,46,0,"00205850902100001006",379]
[30830500,"MUÑOZ CONDORI FREDDY MANUEL",null,55,0,"00039280802100002006",187]
[30826841,"MUÑOZ GARCIA LUIS RIGOBERTO",null,74,0,"00159180302100001006",1023]
[46484107,"MUÑOZ MOROCO FRANCISCO MARIANO",null,30,0,"00144385202100001006",1024]
[30834304,"MURRIEL HUAMAN ADRIAN STALIN",null,48,0,"00072386002100002006",4057]
[4649831,"MURRIEL PINAZO ANDRES ROY",null,64,0,"00038300902100003006",1025]
[2769504,"NAQUICHE CHAVEZ REGINA",null,50,0,"00094078202100001006",1026]
[43833224,"NAVARRO CORREA NILTON ROBERTO",null,36,0,"00030674302100001006",1027]
[30822252,"NAVARRO FLORES SEGUNDO BENIGNO",null,68,0,"00085621402100001006",120]
[43151566,"NAVARRO MATURANA BENIGNO",null,34,0,null,449]
[30829177,"NAVARRO SANTILLANA CARLOS OSCAR",null,64,0,"00012565002100001006",1029]
[41242031,"NAYHUA TAYPE UBALDO",null,37,0,null,213]
[41558050,"NEYRA APAZA YOLANDA",null,36,0,"00041277002100003006",1030]
[30827579,"NINA APAZA CLAUDIO JESUS",null,58,0,null,375]
[4625879,"NINA CAQUI GUMERCINDO",null,75,0,"00115986202100001006",1031]
[80623341,"NINA JIHUALLANCA LUIS",null,41,0.4,"00143215602100001006",557]
[41479751,"NINA OSNAYO AMELIA",null,36,0,"00082202702100001006",1033]
[46764797,"NINA PADILLA MELITA",null,52,0,"00144233702100003006",4038]
[30833744,"NINA TERNERO DAVID JUAN",null,50,0,"00143221502100001006",545]
[30832071,"NINA VARGAS CLAUDIO JESUS",null,60,0,"00111653202100001006",60]
[74977526,"NIZAMA ATOCHE MARIA FRANCESCA",null,23,0,"00159180602100001006",1036]
[30834468,"NORIEGA MACEDO MIRIAM CELBI",null,47,0,"00196160102100001006",1037]
[30831041,"NUÑEZ ALVIZURI MARIANO FERNANDO",null,57,0,null,283]
[30827650,"NUÑEZ ALVIZURI MARIO GERMAN",null,63,0,null,406]
[30848659,"NUÑEZ AÑARI ELIZABETH ELIANA",null,56,0,"00211911302100001006",1038]
[80265979,"NUÑEZ AÑARI VANESSA MASSIEL",null,47,0,"00137247602100001006",1039]
[98765432,"NUÑEZ COLOMA CARLOS",null,80,0,null,696]
[2389890,"NUÑEZ DE PARRA MARIE ROS",null,59,0,"00137247702100001006",1040]
[30835563,"NUÑEZ DEL CARPIO JUAN CARLOS",null,45,0,null,252]
[41825615,"NUÑEZ GARAY ROBERTO JULIO",null,37,0,null,478]
[4625448,"NUÑEZ MURILLO JUAN SABINO",null,63,0,"00086562002100001006",105]
[30823342,"NUÑEZ PONCE BERLI FERNANDO",null,54,0,null,356]
[2421431,"NUÑEZ QUIROZ ELARD RICARDO",null,56,0,"00076031202100001006",574]
[30857298,"NUÑEZ RIVEROS ANGEL RUBEN",null,51,0,null,320]
[45644836,"NUÑEZ RODRIGUEZ RICHARD MANUEL",null,30,0,"00072282402100003006",1042]
[29537518,"NUÑEZ RODRIGUEZ SULPICIO ILDEFONSO",null,65,0,"00115993602100001006",147]
[44035165,"NUÑEZ TEJADA GUILLERMO RAUL",null,32,0,"00081394302100002006",511]
[46424704,"NUÑEZ TEJADA SERGIO ANTONIO",null,28,0,"00071694702100002006",4026]
[30820989,"NUÑEZ TICONA RAUL VICENTE",null,64,0,null,447]
[30824571,"OBANDO ALVAREZ JOSE EDUARDO",null,74,0,null,366]
[41174927,"OBANDO SALAZAR HENRY JAVIER",null,37,0,"00149809002100001006",4]
[46842839,"OJEDA FELIPE CARLOS EDUARDO",null,28,0,"00198812102100001006",1045]
[3886918,"OLIVA QUISPE MIGUEL ANGEL",null,47,0,"00221748502100001006",1046]
[30857220,"OLIVERA YANA AGUSTIN PEDRO",null,41,0,null,287]
[30836216,"OLIVERA YANA RUBEN",null,45,0,null,461]
[46082278,"OLVEA CHAMBI JHONSON PEDRO",null,29,0,null,502]
[30834953,"ORDIALES PONCE FREDY CEFERINO",null,46,0,null,531]
[30829747,"ORDOÑEZ ROJAS ANGEL ALBERTO",null,58,0,null,205]
[7647132,"ORE TEODORO GIOVANNA CRECENCIA",null,42,0,"00154193102100002006",1047]
[4620375,"ORTIZ CARBAJAL JONY GUILLERMO",null,59,0,"00116036702100001006",19]
[73809942,"ORTIZ CARDENAS JUNIOR ALEJANDRO",null,24,0,"00221746502100001006",1048]
[30835769,"ORTIZ GONZALES ELVIS PERCY",null,47,0,"00221747202100001006",420]
[41734309,"ORTIZ GONZALES FIDEL",null,36,0,null,93]
[30822089,"ORTIZ MEDINA FIDEL HERMINIO",null,71,0,"00069538702100001006",8]
[30820266,"ORTIZ MEDINA PERCY MARCELINO",null,62,0,"00137247802100001006",92]
[30823483,"OTAZU SALAS JOSE EDILBERTO",null,60,0,null,256]
[30837465,"PABON SANCHEZ WALTER MARTIN",null,42,0,null,380]
[4621667,"PACHECO ASCAÑO FELIPE ROBERTO",null,68,0,"00094847402100001006",35]
[4621711,"PACHECO URETA VICTOR",null,65,0,"00118061402100001006",1052]
[40400533,"PACO BENITES RUDY DANIEL",null,39,0,"00051671902100002006",36]
[46435853,"PACURI QUISPE ALEX RICHARD",null,29,0,"00163751402100002006",4112]
[42373382,"PADRON FERNANDEZ JORGE LUIS",null,43,0,"00069117902100001006",1053]
[30827031,"PAJUELO CARBAJAL JUAN HUGO",null,58,0,"00146288202100001006",499]
[3853027,"PALACIOS CARRASCO LUCIA DOMINGA",null,52,0,"00203349902100001006",1055]
[40241723,"PALOMINO GALLEGOS MIROSLAVA ZENAIDA",null,40,0,"00115994402100001006",357]
[42409481,"PAREDES APAZA DE PERICHE MILENY JESSICA",null,35,0,"00144348302100001006",1056]
[4748729,"PAREDES CHIPANA EDGAR DANIEL",null,43,0,"00058828302100002006",47]
[30826077,"PAREDES GOMEZ HERNAN TEODORO",null,66,0,"00021796202100002006",85]
[30827030,"PAREDES GOMEZ NESTOR HUGO",null,62,0,"00069538802100001006",367]
[30863335,"PARI BAUTISTA ALEXANDRO ALFREDO",null,50,0,"00106357602100004006",1059]
[30830804,"PARI CHEISA FELIX JERONIMO - FALLECIDO",null,54,0,null,368]
[30825802,"PARI MENDOZA AURELIO NICOLAS",null,67,0,"00071830802100002006",207]
[30836964,"PARI QUISPE HECTOR MARTIN",null,43,0,"00033590202100002006",1061]
[72010990,"PARISACA CUELLO ANTONY YERMY",null,26,0,"00069118002100001006",1062]
[40013860,"PARIZACA LIMA CRISTIAN RUFINO",null,40,0,null,448]
[30835609,"PARODI AIZCORBE BRUNO MANUEL",null,45,0,null,184]
[30836983,"PARRA MAYTA DAVID BACILIO",null,43,0,"00027417702100001006",494]
[80268888,"PARRA MAYTA WASINGTHON HORACIO",null,47,0,null,224]
[40835816,"PARRA NUÑEZ CHEYLA MASSIELLA",null,39,0,"00137242402100001006",1064]
[30835239,"PASTOR CONTRERAS HUGO FERNANDO",null,52,0,"00082086302100001006",217]
[30836227,"PASTOR CRUZ MARCOS LUIS",null,44,0,null,334]
[71924647,"PASTOR GARCIA PABLO CESAR",null,26,0,"00127004002100001006",1066]
[30857165,"PASTOR GHERSI RENZO FERNANDO",null,41,0,"00077264602100002006",1067]
[42658581,"PASTOR TORRES DOMENIKA LORENA",null,39,0,null,516]
[30856124,"PATIÑO BOLIVAR ALFREDO",null,65,0,"00157299102100001006",141]
[73359018,"PAUCA VASQUEZ NIMROD AARON",null,23,0,"00139068102100001006",1069]
[30820901,"PAUCAR APAZA HERNAN TEOFILO",null,62,0,"00112055702100001006",21]
[30828629,"PAUCAR CACERES JESUS EPIFANIO",null,66,0,"00036786202100002006",1071]
[43024910,"PAUCAR CASAPERALTA POOL MAGNO",null,34,0,null,551]
[80502071,"PAZ CARDENAS MIGUEL ANGEL",null,41,0,null,376]
[45705422,"PAZ VARGAS OSCAR DANIEL",null,30,0,"00054109302100002006",539]
[71196275,"PAZ VARGAS POMPEYO CESAR",null,22,0,"00177842102100002006",1072]
[30830925,"PEÑA ALARCON DAVID JOSE",null,65,0,"00127005502100001006",43]
[3471537,"PEÑA ATO LESLI ISABEL",null,52,0,"00141303602100002006",4071]
[30826391,"PEÑA CHAVEZ HUGO CELESTINO",null,74,0,"00078082302100002006",512]
[30843842,"PERALES ESPINOZA ANGEL LUIS",null,44,0,null,542]
[30825955,"PERALTA DIAZ MAXIMILIANO",null,61,0,"00178272802100001006",498]
[47497937,"PERALTA MENDOZA ANGER DAVID",null,27,0,"00068811602100001006",1077]
[47185557,"PERALTILLA GUTIERREZ ERICK ALEJANDRO",null,28,0,"00072385702100003006",1078]
[45907226,"PEREA CASTILLA JAIME EDUARDO",null,29,0,"00071109002100002006",1079]
[70481343,"PEREA QUISPE JUAN CARLOS",null,27,0,"00144348502100001006",1080]
[70541099,"PEREZ MELGAR RICARDO JHUMET",null,28,0,"00203558402100003006",4000]
[44634411,"PERICHE DUEÑAS VICTOR ALEJANDRO",null,32,0,"00075538702100002006",491]
[30831837,"PERRY PUERTAS SANTIAGO ELLIT",null,67,0,"00111653302100001006",109]
[30832337,"PIMENTEL LAYME GENARO NESTOR",null,69,0,null,200]
[4749054,"PINTO CHOQUE RONNY ROY",null,41,0,"00038581202100002006",1083]
[4437139,"PINTO LINARES HELBERTH RAFAEL",null,58,0,"00115998202100001006",21]
[4635899,"PIZARRO ALCAZAR ESTANISLAO FRANCISCO",null,53,0,"00206169302100001006",85]
[4630455,"PIZARRO ALCAZAR JESUS ERIC",null,59,0,"00052008402100002006",88]
[4644450,"PIZARRO ALCAZAR JOSE LUIS",null,49,0,"00115999002100001006",133]
[4625839,"PIZARRO ALCAZAR OMAR DOMINGO",null,62,0,"00059050002100002006",136]
[78006322,"PIZARRO GUTIERREZ CHRISTIAN NILSON",null,20,0,"00247108002100001006",1084]
[30831824,"PIZARRO SUMIRE VICTOR GRACIANO",null,57,0,"00044511202100001006",695]
[30834516,"PODESTA BEDOYA HENRY MAXIMO",null,47,0,"00009724602100003006",254]
[4622938,"POLANCO LAIME ESPIRITO",null,66,0,"00116000302100001006",108]
[30832073,"POLAR GUTIERREZ TEOFILO",null,68,0,null,395]
[30830574,"PONCE DIAZ GUILLERMO",null,76,0,null,87]
[30820789,"PONCE PINTO WILLIAN TITO",null,57,0,"00143216802100001006",111]
[46030583,"PONTECIL TECSI SERGIO",null,29,0,"00211855002100002006",1087]
[4625495,"PORTOCARRERO CALIZAYA CESAR ELMER",null,57,0,"00034275002100002006",118]
[72513078,"PORTOCARRERO LOPEZ AARON ANDREE",null,20,0,"00240437002100001006",1088]
[45610183,"PORTOCARRERO PAMO LEYTON JOSE AUGUS",null,30,0,"00068183702100002006",1089]
[72470359,"PORTUGAL TICONA DANIEL YOSIMAR",null,27,0,"00062286102100002006",1090]
[30832035,"PUMA NOA HERMANISA EMILIANA",null,52,0,"00181005102100001006",1091]
[4633831,"PUMA SALLO LUCAS",null,71,0,"00116004302100001006",1092]
[80573789,"PURIZACA GONZALES FANNY",null,42,0,"00251064502100001006",1302]
[80264952,"QUEA LLERENA JORGE ARMANDO",null,39,0,"00063426402100002006",548]
[80267694,"QUEA LLERENA JOSE ALBERTO",null,40,0,"00143217502100001006",571]
[30837793,"QUEA LLERENA LUIS ANTONIO",null,45,0,null,308]
[74740196,"QUEREVALU BOYER RUTH ALEJANDRIN",null,24,0,"00203114602100001006",1095]
[41416547,"QUIJAHUAMAN MARQUEZ MARITZA ERIKA",null,37,0,"00065079402100003006",1096]
[42302395,"QUIJANO HUAMANCONDOR ROBINSON RUTDOL",null,35,0,"00024376902100002006",1097]
[29337494,"QUILLA LLAMOSAS THELMA GUADALUPE",null,52,0,"00053339802100002006",1303]
[29335198,"QUINTANA CHOQUEHUANCA JOSE LUIS",null,54,0,"00103393102100001006",1098]
[30823853,"QUIRITA HUAYHUA CIPRIANO",null,65,0,"00050796902100001006",101]
[40141622,"QUIRITA TESILLO HENRY CESAR",null,40,0,"00034378402100002006",4082]
[47704530,"QUISPE ASTUDILLO CHRISTIAN ALBERTO",null,28,0,null,386]
[47774762,"QUISPE CABANA CARMEN RUTH",null,27,0,"00147281102100001006",1100]
[186366,"QUISPE CCAMA EDGAR",null,46,0,"00067894402100003006",559]
[30856375,"QUISPE CHAMPI FAUSTINO",null,47,0,"00143217902100001006",216]
[30837223,"QUISPE COARICONA FLAVIO",null,47,0,null,237]
[30835565,"QUISPE CONTRERAS VICTOR JORGE",null,46,0,"00034572102100002006",9]
[30863378,"QUISPE CRUZ LUZDINA NORMA",null,44,0,"00147281602100001006",1104]
[46304511,"QUISPE LUPACCA JOSE LUIS",null,31,0,"00224532302100001006",1105]
[1553483,"QUISPE MIRANDA OLGA ROSA",null,43,0,"00140943602100001006",1106]
[30833782,"QUISPE PHALA TITO ROLANDO",null,48,0,"00082029602100001006",63]
[24581276,"QUISPE QUISPE JULIO",null,47,0,"00188437502100001006",1108]
[42949096,"QUISPE QUISPE MORAYMA DELIA",null,34,0,"00188438102100001006",1109]
[30842053,"QUISPE QUISPE NERI ROBERTO",null,51,0,"00080047702100002006",526]
[30863594,"QUISPE RAMOS VICTORIA FELICITAS",null,52,0,"00044819302100003006",4084]
[30847888,"QUISPE RODRIGO DE CHAVARREA ELBA NATIVIDAD",null,52,0,"00159370902100002006",1111]
[47394628,"QUISPE ROJAS MAGALY PAOLA",null,28,0,"00184078402100001006",1112]
[467093,"QUISPE ROSPIGLIOSI HUGO ALBERTO",null,50,0,"00139071702100001006",1113]
[76405206,"QUISPE SAYCO DEYSI",null,null,0,null,4039]
[29516928,"QUISPE YAURI AGUSTIN",null,49,0,null,197]
[32916495,"RACCHUMI FERNANDEZ HECTOR JESUS",null,50,0,"00144354502100001006",1114]
[4633313,"RAMIREZ BALLESTEROS WALTER MARCELINO",null,57,0,"00116004802100001006",1115]
[73372600,"RAMIREZ BARREDA ANGEL JOSE MANUE",null,21,0,"00163991902100002006",1116]
[40948134,"RAMIREZ BEJARANO FERNANDO ENRIQUE",null,37,0,"00005310702100002006",347]
[4632873,"RAMIREZ FLORES ERNESTO ANDRES",null,59,0,"00116005502100001006",259]
[3642981,"RAMIREZ MORAN TANYA",null,51,0,"00140936302100001006",1117]
[4651359,"RAMIREZ SANCHEZ JOSE MANUEL",null,43,0,"00116006002100001006",341]
[46540030,"RAMIREZ SOTO JOHN JESUS",null,29,0,"00139073102100001006",1118]
[30826530,"RAMIREZ TALAVERA JESUS HERNAN",null,53,0,"00065235602100002006",573]
[799900,"RAMIREZ VELARDE OSCAR ARMANDO",null,44,0,"00118061702100001006",1120]
[40572330,"RAMIREZ ZUÑIGA CARLOS ALBERTO",null,44,0,null,418]
[30833578,"RAMIREZ ZUÑIGA JUAN ANGEL",null,52,0,"00112055302100001006",404]
[46295551,"RAMOS ECHEGARAY JULIO MAURICIO",null,29,0,"00152222802100002006",4121]
[47311813,"RAMOS ECHEGARAY LUIS MIGUEL",null,26,0,"00147972302100003006",4120]
[71991212,"RAMOS GALLEGOS LUIS ALFREDO",null,119,0,"00267223502100001006",4069]
[30831247,"RAMOS NAVARRO DENIS HERIBERTO",null,63,0,"00112061802100001006",193]
[30831174,"RAMOS NAVARRO PEPE VICENTE",null,65,0,"00146288602100001006",49]
[30850360,"RAMOS NUÑEZ JULIO GREGORIO",null,null,0,null,442]
[30820875,"RAMOS NUÑEZ VICTOR HUILMER",null,58,0,"00146281702100001006",487]
[48539330,"RAMOS PACO GERARDO PERCY",null,24,0,"00203116202100001006",1125]
[46549050,"RAMOS PACO LISSETH NOHELIA",null,28,0,"00201513002100002006",1126]
[47234593,"RAMOS SIVINCHA EUSEBIA",null,30,0,"00224568602100001006",1127]
[30831574,"RAMOS VILCA JESUS",null,63,0,"00143218602100001006",139]
[4620716,"REINOSO CHOCANO WALTER NESTOR",null,65,0,"00139074302100001006",129]
[30836496,"REYES MUÑOZ ALEJANDRO ALBERTO",null,46,0,null,493]
[10738624,"REYES ZAMBRANO REYNA",null,42,0,"00217309802100001006",1129]
[4622923,"REYNOSO CHOCANO JORGE VICTOR",null,63,0,"00116027302100001006",342]
[6795072,"RIEGA ORAMOS GREGORIO EDGARD",null,64,0,"00062725602100001006",64]
[30830192,"RIEGA PRADO ROLANDO LEON",null,65,0,"00137243202100001006",5]
[44763685,"RIOS PEREYRA KARINA",null,32,0,"00245970902100001006",1132]
[30837285,"RIVERA ALVAREZ JUAN PABLO",null,46,0,null,427]
[30832024,"RIVERA BARREDA JOSE ALFREDO",null,56,0,"00072785202100002006",389]
[4622607,"RIVERA CARDENAS LUIS ALBERTO",null,62,0,"00116037202100001006",62]
[30826033,"RIVERA PAREJA ELIAS ANDRES MIGUEL",null,60,0,"00112053602100001006",6]
[40300097,"RIVERA PORTOCARRERO DAVID ADALBERTO",null,40,0,"00116029602100001006",1135]
[44659196,"RIVERA RODRIGUEZ JOSE LUIS",null,31,0,"00054455602100004006",483]
[72567712,"RIVERA RODRIGUEZ LUCIA EMILY",null,27,0,"00217975602100001006",1136]
[30836676,"RIVERA VALENCIA JULIO CESAR",null,44,0,null,307]
[30831830,"RIVERA ZEGARRA LUIS FELIX",null,66,0,"00038296202100001006",149]
[46566149,"ROCCA SANTA CRUZ RAQUELA",null,37,0,"00217307702100001006",1139]
[4623173,"RODRIGUEZ ALVAREZ HUGO JULIO",null,70,0,"00116038102100001006",1140]
[30830921,"RODRIGUEZ AVILA MARIO DONATO",null,73,0,null,371]
[30826670,"RODRIGUEZ CAMPOS JOSE LUIS ALBERTO",null,65,0,"00143219102100001006",56]
[30822756,"RODRIGUEZ CASAPIA ROBERTO LUCAS",null,70,0,"00247109802100001006",1142]
[42461564,"RODRIGUEZ DELGADO MIGUEL ANGEL",null,36,0,"00116038602100003006",339]
[30833587,"RODRIGUEZ ESTRADA JORGE ROOSEVELT",null,49,0,"00058437802100002006",1143]
[4627196,"RODRIGUEZ JUAREZ JORGE LUIS",null,54,0,"00116038802100001006",52]
[30849504,"RODRIGUEZ MARREROS MARTIN RICARDO",null,56,0,"00044511302100001006",73]
[30831850,"RODRIGUEZ MARREROS NICOLAS DOMINGO",null,58,0,null,399]
[4620921,"RODRIGUEZ PONCE CARLOS PAULO",null,62,0,"00094639102100001006",1145]
[30836899,"RODRIGUEZ RAMOS ARIANNA ANJANA KARINA",null,43,0,null,401]
[41162562,"RODRIGUEZ RAMOS BRUCE ROBERTO ROLANDO",null,37,0,"00049924202100006006",515]
[77432386,"RODRIGUEZ REYES JUAN CARLOS",null,22,0,"00217310502100001006",1146]
[25691950,"RODRIGUEZ ZAVALAGA ROBERTO AURELIO HUGO",null,64,0,"00074635202100003006",1147]
[40951940,"RODRIGUEZ ZUÑIGA RICARDO JESUS",null,38,0,"00064344102100003006",1148]
[4643178,"ROJAS CARDENAS CESAR ALBERTO",null,42,0,"00032750502100002006",279]
[44628887,"ROJAS OCHOA SUSAN HELLEN",null,32,0,"00178275102100001006",1149]
[30820767,"ROJAS QUISPE MARIO SEGUNDO",null,68,0,null,470]
[4643079,"ROJAS QUISPE SABINO ANDRES",null,45,0,"00116070402100001006",1150]
[30856595,"ROMERO NUÑEZ CARLOS ALBERTO",null,42,0,null,298]
[172622,"ROMERO OCHAVANO ENITH",null,57,0,"00147294102100001006",1151]
[30563295,"RONCALLA AGUIRRE CAMILO EDGAR BELISARIO",null,59,0,null,179]
[30863574,"RONDON FLORES MARLENE JULIA",null,56,0,"00137244402100001006",1152]
[44731772,"ROQUE ARIZACA MILDER MARIELA",null,36,0,"00112420302100001006",1153]
[4620974,"ROQUE CHOCANO BENEDICTO DOMINGO",null,65,0,"00116330002100001006",57]
[4623932,"ROQUE CHOCANO JUAN GUILLERMO",null,58,0,"00064719202100002006",33]
[30863257,"ROQUE MACHACA ELIDA LIZ",null,47,0,"00117232702100001006",4070]
[4652969,"ROQUE ROQUE CIPRIANO CIRILO",null,53,0,"00116071602100001006",1154]
[30845158,"ROQUE TAPIA JUAN",null,null,0,null,355]
[42568769,"ROSADO  LUIS EDUARDO",null,34,0,"00012007402100001006",1155]
[44244494,"ROSAS ALVAREZ LOURDES MARIBEL",null,35,0,"00277743202100001006",4098]
[4621123,"RUIZ ROSPIGLIOSI SEGUNDO OSCAR",null,58,0,"00064174202100002006",120]
[30848395,"SAAVEDRA DE GORDILLO MERY SOLEDAD",null,62,0,"00144348902100001006",1156]
[30837575,"SAAVEDRA DURAND CARLOS HERNAN",null,53,0,null,290]
[30831539,"SAAVEDRA RODRIGO GONZALO",null,63,0,"00143219602100001006",479]
[76800715,"SAGASTEGUI FLORES MIGUEL ANGEL",null,22,0,"00164141702100003006",1158]
[40736048,"SAHUA QUISPE JULIO MANUEL",null,38,0,"00040316102100004006",1159]
[30821852,"SAIRE ALVAREZ AQUILINO RUBEN",null,60,0,null,316]
[30833736,"SAIRE CASTRO CARLOS",null,49,0,null,245]
[30863264,"SAIRITUPAC APAZA ROSA LUPE",null,48,0,"00057629102100002006",4099]
[46506998,"SALAS BASURCO LUIYI DIAGO",null,28,0,"00032092102100002006",561]
[30826312,"SALAS GONDOLIAS GABRIEL ROLANDO",null,59,0,"00112052802100001006",98]
[42845454,"SALAS LLERENA NATALI LADY",null,34,0,"00061673902100002006",1162]
[72675821,"SALAS PORTUGAL RIVALDO VIERI",null,19,0,"00272443502100001006",4081]
[41734307,"SALAS RIVERA ROLANDO GERARDO",null,36,0,"00159180802100001006",1163]
[30856205,"SALAS SAGASTEGUI CESAR AUGUSTO",null,46,0,"00062722402100001006",1164]
[80623733,"SALAS SALAS PABLO CESAR",null,44,0,"00060455002100002006",301]
[71122432,"SALAS TICONA LUIS RAUL",null,27,0,"00031498102100002006",1166]
[30828659,"SALAS TICONA VICTOR LEONARDO",null,55,0,"00077770302100002006",94]
[71979127,"SALAS TICONA YORGINO RODRIGO",null,24,0,"00137244802100001006",1168]
[27283817,"SALAZAR ARTEAGA PEDRO DONALDO",null,48,0,"00140939302100001006",1292]
[30821935,"SALAZAR BELTRAN JULIO CESAR",null,56,0,null,428]
[30833857,"SALAZAR CHAVEZ GASPAR ALEJANDRO",null,48,0,"00144349302100001006",146]
[46126749,"SALAZAR FRANCO CARLOS ALBERTO",null,29,0,"00033782602100002006",554]
[45196321,"SALAZAR FRANCO WALDIR MANUEL",null,31,0,"00037721702100001006",572]
[30825439,"SALAZAR GALLEGOS MANUEL ASCENCIO",null,65,0,"00056457702100001006",510]
[48796318,"SALAZAR GUZMAN DELIA STEFANY",null,33,0,"00144385702100001006",1173]
[41631232,"SALAZAR QUINTANA CESAR ALBERTO",null,61,0,null,446]
[45502003,"SALAZAR ROSPIGLIOSI HECTOR ALFONSO",null,33,0,"00139075402100001006",1174]
[42936754,"SALCEDO CALATAYUD EDUARDO ELADIO",null,34,0,"00164257602100002006",350]
[42936748,"SALCEDO CALATAYUD MARCELO ELADIO",null,34,0,"00079902502100002006",351]
[30830037,"SALCEDO CHAVEZ ELADIO",null,72,0,"00062748902100002006",1177]
[76574995,"SALCEDO TEJADA CARLOS HERMOGENES",null,24,0,"00139076402100001006",1178]
[24957965,"SALCEDO TTITO GUIDO",null,54,0,null,439]
[4628860,"SALGADO VARGAS EDUARDO ELOY",null,63,0,"00118062002100001006",111]
[4631821,"SALGADO VARGAS JULIO CARLOS",null,65,0,"00116082202100001006",125]
[4624200,"SALINAS ALCAZAR ARMANDO CIRO",null,58,0,"00084155802100001006",158]
[30830701,"SALINAS VILLAVICENCIO JAIME JUAN",null,56,0,"00047274602100003006",1179]
[73218812,"SALINAS ZUÑIGA GIOVANI ALEXANDER",null,25,0,"00127004302100001006",1180]
[15688709,"SALVADOR CHAFALOTE DE ARAMBULO GLADYS NOELIA",null,52,0,"00264104102100001006",4060]
[40442814,"SAMANAMUD GUERRERO CLAUDINA VERONICA",null,39,0,"00055210802100002006",1181]
[30836412,"SANCHEZ - LUIS ALBERTO",null,46,0,"00068979402100002006",1182]
[30836382,"SANCHEZ BARRIGA EDDY OSWALDO",null,44,0,null,241]
[41160499,"SANCHEZ FERNANDEZ FERNANDO MIGUEL",null,37,0,"00099272802100003006",1183]
[29245541,"SANCHEZ RODRIGUEZ HERBET AUGUSTO",null,59,0,"00116083502100001006",24]
[43512513,"SANDOVAL BECERRA FIORELA",null,33,0,"00036165902100003006",1184]
[48735801,"SANTAMARINA CARI FERNANDO ALEXANDER",null,23,0,"00198812402100001006",1185]
[71976497,"SANTANA QUISPE ERICK PAUL",null,25,0,"00075774002100002006",1186]
[29271661,"SANTANA SANCHEZ MARCOS ZENON",null,66,0,"00065185402100004006",468]
[30827630,"SANTANA ZUÑIGA DOMINGO TEOFILO",null,71,0,"00050797002100001006",167]
[30828638,"SANTISTEBAN DEL CARPIO HENRY DAMIAN",null,62,0,"00057021302100001006",58]
[25858533,"SANTOME VARGAS GUSTAVO DAVID",null,42,0,null,387]
[30863211,"SANTOYO CHALCO LUIS HERNAN",null,50,0,null,369]
[41117585,"SEGOVIA ZAPATA MILAGROS CAROLINA",null,38,0,"00029583402100001006",1190]
[30832328,"SEGURA GONZALES JUAN PEDRO",null,51,0,null,236]
[30856437,"SERNA VARGAS JOSE ARTURO",null,64,0,"00057080202100001006",1192]
[30821842,"SERNA VARGAS RUPERTO",null,63,0,"00069575902100001006",534]
[47341108,"SERNAQUE SILUPU GINA ELIZABETH",null,28,0,"00137246402100001006",1193]
[4651901,"SILES YAYICO EUSEBIO AMERICO",null,65,0,"00203236802100001006",1323]
[30863703,"SILVA QUISPE JANETH MARGARITA",null,40,0,"00212878302100001006",1194]
[30863401,"SILVA QUISPE MARIA EUGENIA",null,47,0,null,4094]
[41962871,"SOLANO DEL CASTILLO JONATHAN MARCO",null,35,0,"00102878402100004006",1195]
[460858,"SOLOGUREN MEJIA EVERTH WILSON",null,56,0,"00084137402100001006",1196]
[48585128,"SONCO CASANI GUILLERMO SANDRO",null,24,0,"00118960402100002006",4050]
[46640721,"SORIA DIAZ LUIS GUSTAVO",null,28,0,"00071790702100002006",1197]
[30837868,"SOSA ARENAS SILVIO VIDAL",null,42,0,null,407]
[4648286,"SOTELO CORNEJO RAUL RICARDO",null,48,0,null,374]
[30863586,"SOTERO BARRIOS MERCEDES LUZ MARINA",null,47,0,null,4125]
[4629630,"SOTO ALFARO RUPERTO",null,66,0,"00139077302100001006",1198]
[4623547,"SOTO RAVELO JAVIER",null,68,0,"00026650502100002006",1199]
[45077426,"SOTO SALAS JHONATAN GIANCARLO",null,31,0,"00116086302100001006",346]
[44962639,"SOTO TORRES CARLOS ALEXIS",null,46,0,null,458]
[41603140,"SUCASACA HUAMAN HUGO",null,41,0,null,544]
[75070067,"SULCA SEGOVIA JERSON FERNANDO",null,21,0,"00203353102100001006",1200]
[30837759,"SUPO ANCCO SAMUEL JORGE",null,48,0,null,209]
[9586675,"SUYO IGNACIO MARIA MAGDALENA",null,47,0,"00103876302100001006",4072]
[30863338,"TACA RUELAS RAFAEL JOSE",null,49,0,"00159180902100001006",1201]
[46462187,"TAIPE ANAHUATINTA YENNY",null,30,0,"00133543402100002006",4091]
[30837238,"TAIRO VEGA EDUARDO GIRALDO",null,43,0,"00144350202100001006",457]
[4627296,"TALAVERA FERNANDEZ GILMAR SANTOS",null,60,0,"00062258502100002006",364]
[30829597,"TALAVERA QUEA ALBINO GREGORIO",null,63,0,"00045718802100002006",514]
[42225776,"TAMAYO SALINAS TEDDY HECTOR",null,35,0,"00040269502100005006",4033]
[30422201,"TAPIA ROMERO RITA ISABEL",null,46,0,"00225855302100001006",1204]
[30836999,"TASSARA CHIRINOS JOSEPH OCTAVIO",null,43,0,null,519]
[30825267,"TEJADA ALVAREZ ALVARO ANDRES",null,54,0,"00143220802100001006",10]
[30826332,"TEJADA ALVAREZ DOMINGO JUAN GUILLERMO",null,58,0,"00075226302100001006",469]
[30824343,"TEJADA ALVAREZ PEDRO ROBERTO",null,55,0,"00057021402100001006",465]
[70760098,"TEJADA CHAVEZ VLADIMIR ALEXANDER",null,28,0,"00247665102100001006",1208]
[30842647,"TERNERO GAMBOA VICENTE ALEJANDRO",null,56,0,null,403]
[44473225,"TERNERO GUERRA HEYSON ALEJANDRO",null,32,0,"00139332902100002006",1209]
[46735970,"TERNERO GUERRA JUAN MANUEL",null,28,0,"00074551202100002006",1210]
[30830136,"TICONA ANTEZANA RAUL JERONIMO",null,68,0,"00137246602100001006",541]
[4748137,"TICONA MAMANI NELSON OSWALDO",null,44,0,"00059573602100002006",331]
[30823078,"TICONA NORATTO HUGO ANDRES",null,68,0,"00009244202100001006",505]
[4632115,"TICONA NUÑEZ BRAULIO TEODOCIO",null,64,0,"00077739502100002006",123]
[30837086,"TICONA PRADO FRANCISCO HECTOR",null,44,0,"00078405002100003006",288]
[30836997,"TICONA PRADO HUBERT CARLOS",null,48,0,"00069540102100001006",138]
[76677434,"TICONA PRADO JULIO CESAR",null,23,0,"00127004502100001006",1215]
[42333709,"TIPO MANCILLA YUDITH ESMERALDA",null,35,0,"00196160602100001006",1216]
[30863363,"TISNADO CHURA DE ALIAGA MARGARITA CRISTINA",null,49,0,"00181067802100001006",1217]
[4646697,"TOALA TOALA CARLOS ELMER",null,48,0,"00051095102100003006",266]
[70815664,"TORRE ILACAMA JUNIOR AGUSTIN",null,24,0,"00029640302100003006",1218]
[62811537,"TORREALVA PARQUE YAIR",null,23,0,"00127004802100001006",1219]
[30846881,"TORRES APAZA JOSE FERNANDO",null,46,0,null,335]
[40040443,"TORRES BENITES GIANCARLO",null,40,0,"00204098802100001006",32]
[30857231,"TORRES BUSTAMANTE MARCELO ALEJANDRO",null,41,0,null,315]
[42640150,"TORRES CLAVERIAS CRISTHIAN FERNANDO",null,34,0,null,422]
[4649039,"TORRES CRUZ CARLOS ENRIQUE",null,62,0,"00048086402100003006",70]
[32971198,"TORRES MACHACA ALBERTO FRANCISCO",null,43,0,"00047667202100004006",1220]
[23958501,"TORRES RODRIGUEZ REONIL HOMERO",null,45,0,"00070855202100003006",4090]
[40569213,"TORRES TARQUE JUAN CARLOS",null,40,0,"00116330602100001006",1221]
[4629398,"TRAUCO MALDONADO EDGAR",null,60,0,"00101219902100001006",130]
[46348103,"TREVIÑO MENACHO NORKA NELLY",null,29,0,"00216821802100002006",4073]
[42015616,"TTITO GUTIERREZ NEVEZA",null,35,0,"00137247002100001006",1222]
[4629214,"UGARTE LEANDRO ROLANDO",null,60,0,"00076361802100002006",167]
[44174653,"UNGARO CURASI CARLOS ALBERTO",null,32,0,null,492]
[47185921,"URQUIA ROJAS MARINA EUGENIA",null,28,0,"00239370102100001006",1223]
[25714332,"URRUTIA NEYRA JUAN JOSE",null,47,0,"00148584502100001006",113]
[16570832,"VALDERRAMA SALAS SEGUNDO MANUEL",null,54,0,"00244395302100001006",1225]
[40842798,"VALDEZ ACARAPI ELIZABETH JULIANA",null,38,0,"00104653102100002006",4067]
[43183495,"VALDEZ FLORES DARWIN SALVADOR",null,35,0,"00139066502100001006",1226]
[4628381,"VALDEZ MARTINEZ JESUS MARCELINO",null,65,0,"00116099602100001006",144]
[41333318,"VALDEZ MEZA ERIC DIONICIO",null,37,0,"00116101102100001006",1294]
[4629118,"VALDIVIA ASCAÑO LUIS APOLINAR",null,64,0,"00116102402100001006",232]
[70480225,"VALDIVIA CARDENAS CARLOS ALBERTO",null,24,0,"00272426402100001006",4079]
[41494242,"VALDIVIA CUTIRE ADOLFO MANUEL",null,37,0,"00077154702100003006",4064]
[40998453,"VALDIVIA GONZALES ROMEL MANUEL",null,38,0,null,425]
[30827232,"VALDIVIA MONTES LUIS ALONSO",null,56,0,null,474]
[30833555,"VALDIVIA MOSTAJO JOSE LUIS",null,49,0,null,300]
[30822851,"VALDIVIA PACHECO JOSE LUIS",null,58,0,null,223]
[30825748,"VALDIVIA PALACIOS JUAN FRANCISCO",null,56,0,"00017113102100001006",553]
[30826290,"VALDIVIA PALACIOS MANUEL IGNACIO",null,74,0,null,195]
[4631678,"VALDIVIA PAZ MANUEL LEONCIO",null,59,0,"00116102702100001006",138]
[30826732,"VALDIVIA PEREZ LUIS ENRIQUE MELECIO",null,63,0,null,354]
[30836204,"VALDIVIA SANCHEZ FREDY ROLANDO",null,44,0,null,303]
[30823632,"VALDIVIA TRILLO JOSE PEDRO HENRRY",null,57,0,null,402]
[30835296,"VALDIVIA VILLAVICENCIO VERONICA YVONNE",null,46,0,null,4115]
[30822822,"VALDIVIA VIZCARRA JAIME HENRRY",null,69,0,"00156906802100001006",1228]
[30835556,"VALDIVIA ZEVALLOS JOSE LUIS",null,45,0,"00062722502100001006",445]
[30823222,"VALENZUELA CHACON JORGE EUSEBIO",null,59,0,null,253]
[30863448,"VALERIANO MOJO CAROLINA ELIANA",null,45,0,"00226184502100002006",4054]
[29514926,"VALERIANO MOJO TERESA",null,49,0,"00004682302100003006",1230]
[74054337,"VALERIANO VALERIANO DANIELA JEANNETH",null,20,0,"00241228802100001006",1231]
[74053716,"VALERIANO VALERIANO MONICA DEL PILAR",null,25,0,"00193731002100001006",1232]
[4622117,"VARGAS ALMESTAR VICTOR RAUL",null,70,0,"00084820902100001006",41]
[2414377,"VARGAS GOMEZ RICHARDS ALEXANDER",null,50,0,"00116104002100001006",229]
[30820425,"VARGAS NEYRA ISMAEL GRIMALDO",null,59,0,"00104530502100001006",1233]
[30824948,"VARGAS ROJAS ARMANDO",null,62,0,"00143220902100001006",148]
[4626677,"VARGAS ROJAS REYNALDO CRISTOBAL",null,70,0,"00116104802100001006",131]
[30830013,"VARGAS TEJADA ALEJANDRO SABINO",null,67,0,"00146282502100001006",173]
[30863524,"VARGAS TIRADO ANA TEODORA",null,50,0,"00008889402100002006",1236]
[80423634,"VARGAS VARGAS LUIS ARMANDO",null,41,0,null,229]
[40327726,"VASQUEZ HUARACHA JENNY ROCIO",null,40,0,"00247110402100001006",1237]
[4650914,"VASQUEZ PORRAS HUGO ROBERTO",null,43,0,"00063944502100002006",1238]
[41893352,"VASQUEZ ROJAS ROBERTO CARLOS",null,35,0,null,349]
[30821167,"VEGA DELGADO CESAR LUIS",null,57,0,"00136425602100002006",3]
[30825663,"VEGA DELGADO EFRAIN DOMINGO",null,64,0,"00050800502100001006",1240]
[30846781,"VELA VILLEGAS JORGE ANTONIO",null,45,0,null,219]
[43053799,"VELARDE CASAVERDE JUAN CARLOS",null,34,0,null,477]
[30830101,"VELASQUEZ APAZA JULIO RENE",null,65,0,"00145177502100001006",96]
[76774956,"VELASQUEZ CRUZ YUDY DOMINGA",null,24,0,null,4088]
[73652068,"VELASQUEZ FERNANDEZ ESTEFANI",null,24,0,"00196161402100001006",1242]
[4631557,"VELASQUEZ LAGUNA JOSE PERCY",null,65,0,"00116104902100001006",1243]
[30856883,"VELASQUEZ MOSCOSO MARCO ANTONIO",null,41,0,"00044505102100002006",1244]
[30821805,"VELASQUEZ ROSADO JESUS GUILLERMO",null,76,0,"00081469802100002006",507]
[4646267,"VELASQUEZ VILDOSO CESAR ENRIQUE",null,47,0,"00208014202100001006",141]
[30856809,"VELEZ CESPEDES ROBERTH LEONARDO",null,41,0,"00004214702100004006",1246]
[42983406,"VENTURA VELASQUEZ LUISA LISSET",null,35,0,"00224574102100001006",1247]
[71093691,"VERA ACOSTA SEBASTIAN ALEXANDER",null,19,0,"00228096302100003006",4036]
[30856763,"VERA ALBARRACIN MARCO ANTONIO",null,41,0,"00146290102100001006",196]
[30820235,"VERA ASTORGA PERCY ACISCLO",null,61,0,null,323]
[30834662,"VERA RODRIGUEZ VICTOR JAVIER",null,47,0,null,322]
[70915046,"VERA VILLAVICENCIO KELLER JEFFRE",null,25,0,"00036749802100003006",1249]
[45049442,"VERA VILLAVICENCIO KRISTEL JAHAYRA",null,31,0,"00282331302100001006",4119]
[30823734,"VERSACE CABRERA CESAR GUIDO",null,64,0,"00188727402100001006",106]
[30856823,"VERSACE PAJUELO PAULO CESAR AUGUSTO",null,41,0,null,430]
[4652901,"VICENTE LUYO EVERTH EDWIN",null,43,0,"00118113202100001006",255]
[45984863,"VIDAL PAUCAR DIANA",null,30,0,"00151864302100002006",4086]
[30826690,"VILCA BEJAR SILVERIO DONATO",null,68,0,"00087345902100001006",112]
[30833939,"VILCA CASTILLO UBALDO JUAN",null,50,0,null,182]
[30830976,"VILCA NUÑEZ ROGER CANCIO",null,62,0,"00143217202100001006",194]
[29734817,"VILCA SANCHO PIERINA DIANA",null,41,0,"00037124402100002006",4076]
[2360101,"VILCA VILCA MANUEL ABAD",null,68,0,"00096537102100002006",177]
[30823281,"VILCAZAN QUISPE CECILIO HIPOLITO",null,66,0,"00057023002100001006",208]
[80608976,"VILCHEZ CHUCTAYA MILAGROS PAOLA",null,39,0,"00003287202100001006",1254]
[40924612,"VILCHEZ CHUCTAYA VERONICA MARIA",null,38,0,"00184079702100001006",1255]
[70762869,"VILCHEZ DEL PINO CARLOS ISAAC",null,28,0,"00266121302100001006",4066]
[2898075,"VILCHEZ GOMEZ ELSA",null,41,0,"00124877102100002006",1256]
[2727473,"VILCHEZ GOMEZ SUSANA",null,53,0,"00136911902100002006",1257]
[30831751,"VILCHEZ HUARACHE JUAN DE DIOS",null,60,0,null,191]
[71124772,"VILCHEZ IPANAQUE JAVIER",null,25,0,"00188439202100001006",1258]
[9594136,"VILCHEZ PINTO HJILMAR RICARDO",null,52,0,null,302]
[45760012,"VILCHEZ QUISPE EDWIN JESUS",null,30,0,"00198039002100001006",4052]
[73235431,"VILDOSO CESPEDES CAMILA AZUCENA",null,20,0,"00228372502100001006",1259]
[30863223,"VILLA PARI GRISELDA CELELIA",null,50,0,"00028431902100001006",1260]
[46258315,"VILLAFUERTE VELASQUEZ GUIDO MANUEL",null,29,0,"00048198702100002006",1261]
[73145674,"VILLAFUERTE VELASQUEZ WILDER ADRIEL",null,25,0,"00137052202100002006",1262]
[4625417,"VILLALOBOS ASCAÑO SILVIA DEOLINDA",null,58,0,"00110285302100002006",348]
[43843885,"VILLANUEVA ASCAÑO DAVID JOSIMAR",null,32,0,"00205783902100001006",368]
[30824556,"VILLAVICENCIO DE PAREDES GENNY FRANCISCA",null,63,0,"00062564202100001006",1263]
[30831474,"VILLAVICENCIO FLORES EDWING ANTONIO",null,60,0,null,419]
[9279704,"VILLENA VILCHES EDDY ADOLFO",null,50,0,null,481]
[30829600,"VIVEROS VALVERDE JAVIER RAUL",null,63,0,null,421]
[30833819,"VIZCARRA CONDORI EVA VERONICA",null,48,0,"00062445602100005006",1264]
[42042643,"YANA CAIRA JULIA",null,35,0,"00159181102100001006",1265]
[44318034,"YANQUI VASQUEZ ALAN ENRIQUE",null,33,0,null,566]
[40059393,"YAÑEZ PEQARANDA SUSANA PATRICIA",null,40,0,"00188440202100001006",1266]
[30830902,"YAÑEZ VALDIVIA CARLOS ENRIQUE",null,60,0,"00143216302100001006",95]
[30857045,"YAÑEZ ZUÑIGA CARLOS ALBERTO",null,41,0,null,309]
[41819188,"YNGA MORE JULIO CESAR",null,36,0,"00159181302100001006",1268]
[80171374,"YNGA YNGA DOLORES",null,null,0,"00144341402100001006",1293]
[30857316,"YOVERA BELZO ALVARO FABRIZZIO",null,40,0,null,343]
[30856678,"YOVERA BELZO HELBERT OMAR",null,42,0,null,327]
[47999201,"YOVERA JUAREZ JUAN",null,42,0,"00198814302100001006",1269]
[9579644,"YOVERA MARTINEZ GABRIEL",null,58,0,"00140936902100001006",1270]
[46834773,"YUCRA ARQUE FREDY ERNESTO",null,27,0,"00247111102100001006",1271]
[72741028,"YUCRA CRUZ YOEL HOWARD",null,26,0,"00118062302100001006",1272]
[4653549,"YUCRA ESTUCO AMERICO RICARDO",null,41,0,"00139075602100001006",1273]
[4620521,"YUCRA ESTUCO ELDER HUGO",null,58,0,"00082506902100001006",74]
[71391224,"YUPANQUI HIDALGO MANUELA",null,null,0,null,4087]
[4633760,"ZABALA ZEBALLOS RAUL ESTEBAN",null,61,0,"00116107402100001006",172]
[30836035,"ZAPANA ATASI JUAN CARLOS",null,47,0,"00159181702100001006",1274]
[3893368,"ZAPATA FALLA GLADYS",null,47,0,"00144350802100001006",1275]
[29466045,"ZAVALA QUISPE ZENOVIO LEON",null,52,0,"00116108402100001006",1276]
[22301110,"ZAVALETA DE LA TORRE EDWUARDO HUGO",null,45,0,"00083653302100001006",352]
[43160639,"ZAVALETA GARCIA ROSA LUZ",null,34,0,"00185843802100001006",1277]
[29611012,"ZEBALLOS CAMPOS RONAL VIDAL",null,46,0,"00116330802100001006",1324]
[4627551,"ZEGARRA CARBAJAL JULIO MOISES",null,57,0,"00116109002100001006",55]
[4628754,"ZEGARRA LUNA DANIEL SATURNINO",null,58,0,"00116109302100002006",40]
[45611207,"ZELA QUIROGA ALESSANDRO WILMAR",null,30,0,"00139076202100001006",1278]
[30856059,"ZELA QUISPE LEONARDO JULIO",null,54,0,null,240]
[30826987,"ZELAYA BUSTOS JUAN CARLOS",null,55,0,"00075861902100001006",496]
[46923472,"ZENTENO QUILLA MARIA LUISA",null,28,0,"00048667502100002006",1280]
[30833137,"ZEVALLOS CARDENAS ENRIQUE VIDAL",null,51,0,null,313]
[30827756,"ZEVALLOS CARDENAS RUFINO JOSE",null,61,0,"00143215502100001006",20]
[4629488,"ZEVALLOS ESPINOZA RAUL ARCIBIADES",null,57,0,"00116330902100001006",49]
[45323901,"ZEVALLOS HUAMANI ELBA",null,30,0,null,4089]
[30829811,"ZEVALLOS PAREDES FREDDY JESUS MANUEL",null,55,0,"00143214602100001006",68]
[30821722,"ZEVALLOS PAREDES PEDRO ADOLFO",null,61,0,null,520]
[41382355,"ZEVALLOS VERGARA ADOLFO PABLO",null,37,0,null,431]
[30835693,"ZEVALLOS YAÑEZ JOSE CARLOS",null,45,0,null,522]
[40238493,"ZUBIZARRETA VERA OMAR CRISTIAN",null,40,0,"00113334002100001006",528]
[30831447,"ZULOAGA CACERES LEONARDO JESUS",null,61,0,"00067000502100002006",78]
[30824293,"ZUÑIGA CIBANA GUILLERMO CESAR",null,57,0,"00038298502100001006",490]
[18206359,"ZUÑIGA PALMA EDUARDO BERNARDO",null,41,0,null,4117]
[30836508,"ZUÑIGA RODRIGUEZ EDGAR LUIS",null,46,0,null,231]
[29626289,"ZUÑIGA RODRIGUEZ MANUEL REYMUNDO",null,44,0,null,440]
[48854994,"ZURITA IPANAQUE TATIANA MERCEDES",null,22,0,"00203116502100001006",4037]

{"sheet":"Hoja1","index":2,"n_rows":1020,"n_cols":5,"rows_kept":1020,"cut":false,"hidden":false,"merged":[]}
["DNI","APELLIDOS Y NOMBRES",null,"APELLIDOS Y NOMBRES","DNI"]
[30825449,"ABRIL MEDINA WILLIAM MARCELO",null,"ABRIL MEDINA WILLIAM MARCELO",30825449]
[46322486,"ACARO DUQUE CHARLES",null,"ACARO DUQUE CHARLES",46322486]
[30961524,"ADRIAZOLA ESQUIVEL CESAR MICHAEL",null,"ADRIAZOLA ESQUIVEL CESAR MICHAEL",30961524]
[40250927,"AGRAMAYO GUERRA EDWING JAVIER",null,"AGRAMAYO GUERRA EDWING JAVIER",40250927]
[30823294,"AGRAMAYO LOPEZ JAVIER",null,"AGRAMAYO LOPEZ JAVIER",30823294]
[30828209,"AGUILAR CHAVEZ ELISEO",null,"AGUILAR CHAVEZ ELISEO",30828209]
[44685373,"AGUILAR DEL CASTILLO IVONNE ROCIO",null,"AGUILAR DEL CASTILLO IVONNE ROCIO",44685373]
[30830325,"AGUILAR FLORES EDMUNDO",null,"AGUILAR FLORES EDMUNDO",30830325]
[4436224,"AGUILAR HILARI ANGEL",null,"AGUILAR HILARI ANGEL",4436224]
[43898878,"AGUILAR ORTIZ JUSTINO ELIAS",null,"AGUILAR ORTIZ JUSTINO ELIAS",43898878]
[10555151,"AGUILAR PUENTE CHARLES MIGUEL",null,"AGUILAR PUENTE CHARLES MIGUEL",10555151]
[30831164,"AGUILAR QUISPE TEODORO",null,"AGUILAR QUISPE TEODORO",30831164]
[4417223,"AGUIRRE RAFELO VICTOR MANUEL",null,"AGUIRRE RAFELO VICTOR MANUEL",4417223]
[30829137,"AIZCORBE SUMARIA VICTOR GLENI",null,"AIZCORBE SUMARIA VICTOR GLENI",30829137]
[45823830,"ALARCON BANDA GILVER MAURO",null,"ALARCON BANDA GILVER MAURO",45823830]
[46612058,"ALARCON CAMPOS SOLANCH DENISSA",null,"ALARCON CAMPOS SOLANCH DENISSA",46612058]
[30828355,"ALARCON DEZA OSCAR PAULINO",null,"ALARCON DEZA OSCAR PAULINO",30828355]
[30823451,"ALARCON RODAS SAMUEL FRANCISCO",null,"ALARCON RODAS SAMUEL FRANCISCO",30823451]
[44293612,"ALBARRACIN ZEBALLOS RENNY PAUL",null,"ALBARRACIN ZEBALLOS RENNY PAUL",44293612]
[80281118,"ALBERCA CARRASCO EDINSON DARWINS",null,"ALBERCA CARRASCO EDINSON DARWINS",80281118]
[43707689,"ALCA SAYRA JESUS JUNIOR",null,"ALCA SAYRA JESUS JUNIOR",43707689]
[30827115,"ALEMAN GRANDE JORGE FELIX",null,"ALEMAN GRANDE JORGE FELIX",30827115]
[30833890,"ALFARO BELTRAN ALEXIS CESAR",null,"ALFARO BELTRAN ALEXIS CESAR",30833890]
[71491093,"ALFARO DELGADO LEONARDO SEBASTIAN",null,"ALFARO DELGADO LEONARDO SEBASTIAN",71491093]
[45434083,"ALFARO FLORES JULIO CESAR",null,"ALFARO FLORES JULIO CESAR",45434083]
[4623352,"ALFARO HUANACUNI PASCUAL",null,"ALFARO HUANACUNI PASCUAL",4623352]
[4634053,"ALFARO REYNOSO JUAN ARTURO",null,"ALFARO REYNOSO JUAN ARTURO",4634053]
[43766389,"ALMANZA VEGA VICTOR HUGO",null,"ALMANZA VEGA VICTOR HUGO",43766389]
[42041721,"ALMONTE RODRIGUEZ JILMARE",null,"ALMONTE RODRIGUEZ JILMARE",42041721]
[44397485,"ALMONTE SUCASACA JUANA FRANCISCA",null,"ALMONTE SUCASACA JUANA FRANCISCA",44397485]
[4636044,"ALMONTE VALDIVIA LUIS ROMAN",null,"ALMONTE VALDIVIA LUIS ROMAN",4636044]
[4647544,"ALMONTE VALDIVIA ROBERT JOHN",null,"ALMONTE VALDIVIA ROBERT JOHN",4647544]
[4628158,"ALMONTE VALDIVIA ROBINSON MANUEL",null,"ALMONTE VALDIVIA ROBINSON MANUEL",4628158]
[44860883,"ALMONTE VIVANCO JORGE HERNAN",null,"ALMONTE VIVANCO JORGE HERNAN",44860883]
[40195746,"ALMONTE VIVANCO JOSE ARMANDO",null,"ALMONTE VIVANCO JOSE ARMANDO",40195746]
[40011147,"ALVAREZ CONTRERAS CHRISTIAN ALBERTO",null,"ALVAREZ CONTRERAS CHRISTIAN ALBERTO",40011147]
[30833950,"ALVAREZ CUBA SEGUNDO",null,"ALVAREZ CUBA SEGUNDO",30833950]
[4652099,"ALVAREZ FERNANDEZ IVAN SOANI",null,"ALVAREZ FERNANDEZ IVAN SOANI",4652099]
[4647106,"ALVAREZ FERNANDEZ JULIO ENRIQUE",null,"ALVAREZ FERNANDEZ JULIO ENRIQUE",4647106]
[4646748,"ALVAREZ HUALPA OSWALDO LUIS",null,"ALVAREZ HUALPA OSWALDO LUIS",4646748]
[4627023,"ALVAREZ LAZO ELAR",null,"ALVAREZ LAZO ELAR",4627023]
[30853326,"ALVAREZ VERGARA GIANNILO SANDRO",null,"ALVAREZ VERGARA GIANNILO SANDRO",30853326]
[30836139,"ALVAREZ VERGARA GIORLO FABRICIO",null,"ALVAREZ VERGARA GIORLO FABRICIO",30836139]
[30831631,"ALVAREZ VERGARA GIOVANI ALDO",null,"ALVAREZ VERGARA GIOVANI ALDO",30831631]
[30837818,"ALVAREZ VILCA GLORIA GERVACIA",null,"ALVAREZ VILCA GLORIA GERVACIA",30837818]
[30835938,"AMADO VILCHEZ GERARDO EUSEBIO",null,"AMADO VILCHEZ GERARDO EUSEBIO",30835938]
[42994411,"ANDIA OTAZU CHRISTIAN JESUS",null,"ANDIA OTAZU CHRISTIAN JESUS",42994411]
[47300406,"ANDIA OTAZU RICARDO YUZE",null,"ANDIA OTAZU RICARDO YUZE",47300406]
[30825482,"ANDRADE CALLOAPAZA PABLO IGNACIO",null,"ANDRADE CALLOAPAZA PABLO IGNACIO",30825482]
[76590196,"ANDRADE MENDOZA NICOLL",null,"ANDRADE MENDOZA NICOLL",76590196]
[44051691,"ANGULO BAUTISTA MARIA LUISA",null,"ANGULO BAUTISTA MARIA LUISA",44051691]
[30675962,"AÑARI FLORES EDITH LOURDES",null,"AÑARI FLORES EDITH LOURDES",30675962]
[30820843,"APAZA LOAYZA VICTOR VICENTE",null,"APAZA LOAYZA VICTOR VICENTE",30820843]
[4645084,"APAZA SULCA VICTOR JOSE",null,"APAZA SULCA VICTOR JOSE",4645084]
[30856391,"APAZA VILCA TOMASA",null,"APAZA VILCA TOMASA",30856391]
[30835968,"AQUINO CHOQUEHUANCA LUIS ALBERTO",null,"AQUINO CHOQUEHUANCA LUIS ALBERTO",30835968]
[42908430,"AQUINO QUISPE HILDA ROSA",null,"AQUINO QUISPE HILDA ROSA",42908430]
[30834464,"AQUISE USCAMAYTA JORGE MANUEL",null,"AQUISE USCAMAYTA JORGE MANUEL",30834464]
[72114472,"ARANIBAR PATIÑO LESLY MILAGROS",null,"ARANIBAR PATIÑO LESLY MILAGROS",72114472]
[30831712,"ARAPA ROSAS VICENTE",null,"ARAPA ROSAS VICENTE",30831712]
[30849341,"ARENAS DELGADO JUAN RONAL",null,"ARENAS DELGADO JUAN RONAL",30849341]
[30831249,"ARENAS LLAMOSAS RAFAEL GABINO",null,"ARENAS LLAMOSAS RAFAEL GABINO",30831249]
[70806153,"ARENAS MOSTAJO DIEGO ALFREDO",null,"ARENAS MOSTAJO DIEGO ALFREDO",70806153]
[25800155,"AREVALO HIDALGO LUIS CARLOS",null,"AREVALO HIDALGO LUIS CARLOS",25800155]
[4626202,"ARIAS ARCE JULIAN WILFREDO",null,"ARIAS ARCE JULIAN WILFREDO",4626202]
[4653318,"ARIAS COAILA ALEXANDER WILFREDO",null,"ARIAS COAILA ALEXANDER WILFREDO",4653318]
[43897312,"ARIAS COAILA ANTHONY SEYMOUR",null,"ARIAS COAILA ANTHONY SEYMOUR",43897312]
[1874456,"ARIAS QUISPE WILMA",null,"ARIAS QUISPE WILMA",1874456]
[48288361,"ARISTA MENDOZA DAVIDE",null,"ARISTA MENDOZA DAVIDE",48288361]
[30833727,"ARIZACA ARIZACA RUBEN",null,"ARIZACA ARIZACA RUBEN",30833727]
[30837251,"ARTEAGA MANRIQUE ANGEL WALTER",null,"ARTEAGA MANRIQUE ANGEL WALTER",30837251]
[30856920,"ARZOLA LA ROSA AUGUSTO RICARDO",null,"ARZOLA LA ROSA AUGUSTO RICARDO",30856920]
[44551325,"ASCAÑO APAZA ANYELO ANDREE",null,"ASCAÑO APAZA ANYELO ANDREE",44551325]
[4620462,"ASCAÑO CORNEJO WILVER MARTIN",null,"ASCAÑO CORNEJO WILVER MARTIN",4620462]
[30836030,"ASCUÑA ZAVALAGA IVAN EDUARDO",null,"ASCUÑA ZAVALAGA IVAN EDUARDO",30836030]
[30833823,"ATAMARI LOVON HERNAN",null,"ATAMARI LOVON HERNAN",30833823]
[42814539,"ATAMARI VILCA LUZ MARINA",null,"ATAMARI VILCA LUZ MARINA",42814539]
[30824455,"AYALA ALI JORGE LEONIDAS",null,"AYALA ALI JORGE LEONIDAS",30824455]
[30826051,"AYALA ALI OSCAR ENRIQUE",null,"AYALA ALI OSCAR ENRIQUE",30826051]
[47848503,"AYALA MOLINA JULIO ERNESTO",null,"AYALA MOLINA JULIO ERNESTO",47848503]
[30820958,"AYHONIZ ALARCON MANUEL AGUSTIN",null,"AYHONIZ ALARCON MANUEL AGUSTIN",30820958]
[40755700,"AZANA VARGAS CARLOS DARIO",null,"AZANA VARGAS CARLOS DARIO",40755700]
[45703400,"AZANA VARGAS MARCO",null,"AZANA VARGAS MARCO",45703400]
[30863603,"BALLADARES RUELAS ROSA ELVIRA",null,"BALLADARES RUELAS ROSA ELVIRA",30863603]
[40182294,"BALLENAS ALVAREZ AYDEE BEATRIZ",null,"BALLENAS ALVAREZ AYDEE BEATRIZ",40182294]
[30820723,"BALLON REA DENIS JAVIER",null,"BALLON REA DENIS JAVIER",30820723]
[30825395,"BALLON REA JOSE ALBINO",null,"BALLON REA JOSE ALBINO",30825395]
[71986286,"BALLON RIVERA JOE BRYAN",null,"BALLON RIVERA JOE BRYAN",71986286]
[45589883,"BALLON VARGAS JANET MARYLIN",null,"BALLON VARGAS JANET MARYLIN",45589883]
[46832249,"BALLON VARGAS NICK ANTHONY",null,"BALLON VARGAS NICK ANTHONY",46832249]
[29328219,"BALUARTE REVOLLAR HERNAN FERNANDO",null,"BALUARTE REVOLLAR HERNAN FERNANDO",29328219]
[47662269,"BANDA ALARCON VICTOR ANGEL",null,"BANDA ALARCON VICTOR ANGEL",47662269]
[30825937,"BAQUEDANO ALFARO FELIX HENRY",null,"BAQUEDANO ALFARO FELIX HENRY",30825937]
[30822243,"BARRA COILA HERNAN JACINTO",null,"BARRA COILA HERNAN JACINTO",30822243]
[29467312,"BARREDA VALDIVIA HIPOLITO JUAN",null,"BARREDA VALDIVIA HIPOLITO JUAN",29467312]
[4630841,"BARRERA GUZMAN VICTOR SERGIO",null,"BARRERA GUZMAN VICTOR SERGIO",4630841]
[30821941,"BARRIGA BELLOTA RAUL JULIO",null,"BARRIGA BELLOTA RAUL JULIO",30821941]
[30835181,"BARRIGA PAZ MARCOS ALEXANDER",null,"BARRIGA PAZ MARCOS ALEXANDER",30835181]
[72165903,"BARRIGA VILLEGAS MARCO FABRICIO",null,"BARRIGA VILLEGAS MARCO FABRICIO",72165903]
[30831803,"BASURCO FERNANDEZ HECTOR EVERARDO",null,"BASURCO FERNANDEZ HECTOR EVERARDO",30831803]
[43553476,"BASURCO VERSACE HECTOR JAVIER",null,"BASURCO VERSACE HECTOR JAVIER",43553476]
[71449186,"BATALLANOS RUIZ LUIS DANIEL",null,"BATALLANOS RUIZ LUIS DANIEL",71449186]
[4623515,"BATALLANOS ZUÑIGA JOSE ANTONIO",null,"BATALLANOS ZUÑIGA JOSE ANTONIO",4623515]
[40295587,"BAYLON ALVAREZ WILMER ADAN",null,"BAYLON ALVAREZ WILMER ADAN",40295587]
[30825791,"BAYLON VARGAS HERNAN ESTEBAN",null,"BAYLON VARGAS HERNAN ESTEBAN",30825791]
[30829772,"BECERRA BOMBILLA JUAN BENITO",null,"BECERRA BOMBILLA JUAN BENITO",30829772]
[30824442,"BECERRA BOMBILLA VICENTE ALFREDO",null,"BECERRA BOMBILLA VICENTE ALFREDO",30824442]
[30856034,"BECERRA ORDOÑEZ JULIO CESAR",null,"BECERRA ORDOÑEZ JULIO CESAR",30856034]
[4639878,"BECERRA PINTO ILDEFONSO REYMUNDO",null,"BECERRA PINTO ILDEFONSO REYMUNDO",4639878]
[30852492,"BEDREGAL PORTALES LUIS ANGEL ENRIQUE",null,"BEDREGAL PORTALES LUIS ANGEL ENRIQUE",30852492]
[30827628,"BEGAZO RODRIGUEZ SANTIAGO ALFREDO",null,"BEGAZO RODRIGUEZ SANTIAGO ALFREDO",30827628]
[30821337,"BEGAZO TELLES EDMUNDO PEDRO",null,"BEGAZO TELLES EDMUNDO PEDRO",30821337]
[40049181,"BELLA AYMITUMA PERCY GERBER",null,"BELLA AYMITUMA PERCY GERBER",40049181]
[29724627,"BELTRAN SARCCO ISAAC",null,"BELTRAN SARCCO ISAAC",29724627]
[4642785,"BENAVENTE ARANIBAR CARLOS ENRIQUE",null,"BENAVENTE ARANIBAR CARLOS ENRIQUE",4642785]
[30829637,"BENAVIDES ZAPANA WILMER JORGE",null,"BENAVIDES ZAPANA WILMER JORGE",30829637]
[40374952,"BERNAL DELGADO JULIO CESAR",null,"BERNAL DELGADO JULIO CESAR",40374952]
[44755241,"BERNAL DELGADO RENZO ROLANDO",null,"BERNAL DELGADO RENZO ROLANDO",44755241]
[40811045,"BERNEDO FLORES DANIEL CHARLIE",null,"BERNEDO FLORES DANIEL CHARLIE",40811045]
[30822408,"BLANCO VERA ALEJANDRO ARMANDU",null,"BLANCO VERA ALEJANDRO ARMANDU",30822408]
[72742559,"BOLAÑOS MACHACA GUSTAVO GIOVANI",null,"BOLAÑOS MACHACA GUSTAVO GIOVANI",72742559]
[30821041,"BORJA BANCOFF LUIS ALBERTO",null,"BORJA BANCOFF LUIS ALBERTO",30821041]
[22266268,"BRAVO HERNANDEZ MIGUEL ANGEL MARTIN",null,"BRAVO HERNANDEZ MIGUEL ANGEL MARTIN",22266268]
[30830702,"BRICEÑO CESPEDES JORGE ALBERTO",null,"BRICEÑO CESPEDES JORGE ALBERTO",30830702]
[4621353,"BUENO TORREJON SEGUNDO RAFAEL",null,"BUENO TORREJON SEGUNDO RAFAEL",4621353]
[40532974,"BUSTAMANTE LLERENA FERNANDO ALEXANDER",null,"BUSTAMANTE LLERENA FERNANDO ALEXANDER",40532974]
[30831359,"BUTRON CARRERO ERNESTO HERNAN LADISLAO",null,"BUTRON CARRERO ERNESTO HERNAN LADISLAO",30831359]
[30837494,"BUTRON LOPEZ ALEXIS JHOLVY",null,"BUTRON LOPEZ ALEXIS JHOLVY",30837494]
[30828735,"CABALLERO BARRIOS URSO ELISBAN",null,"CABALLERO BARRIOS URSO ELISBAN",30828735]
[30863268,"CABOAPAZA KAHUAPAZA SANTA ELENA",null,"CABOAPAZA KAHUAPAZA SANTA ELENA",30863268]
[30835740,"CACERES ARIAS LUIS ALBERTO",null,"CACERES ARIAS LUIS ALBERTO",30835740]
[30852617,"CACERES BARRIGA VICTOR RAUL",null,"CACERES BARRIGA VICTOR RAUL",30852617]
[30824725,"CACERES CHAVEZ JULIO ALBERTO",null,"CACERES CHAVEZ JULIO ALBERTO",30824725]
[4628015,"CACERES PUERTAS ALFREDO",null,"CACERES PUERTAS ALFREDO",4628015]
[80384817,"CACERES TERNERO LUIS ENRIQUE",null,"CACERES TERNERO LUIS ENRIQUE",80384817]
[30830389,"CAHUANA FLORES RAYMUNDO HERNAN",null,"CAHUANA FLORES RAYMUNDO HERNAN",30830389]
[30836557,"CAHUANA GUTIERREZ JULIO CESAR",null,"CAHUANA GUTIERREZ JULIO CESAR",30836557]
[43095587,"CALDERON BONIFACIO CARLOS MARIO SANT",null,"CALDERON BONIFACIO CARLOS MARIO SANT",43095587]
[72690080,"CALDERON MEDINA ARTURO ROBIN",null,"CALDERON MEDINA ARTURO ROBIN",72690080]
[42101443,"CALDERON SAAVEDRA GONZALO EDUARDO",null,"CALDERON SAAVEDRA GONZALO EDUARDO",42101443]
[71584083,"CALLA AQUINO ELSA STEFANI",null,"CALLA AQUINO ELSA STEFANI",71584083]
[42214723,"CALLATA CALCIN EDGAR EDUARDO",null,"CALLATA CALCIN EDGAR EDUARDO",42214723]
[4622086,"CAMPOS BERROA DOMINGO ROGELIO",null,"CAMPOS BERROA DOMINGO ROGELIO",4622086]
[4626103,"CAMPOS BERROA MELECIO NICOLAS",null,"CAMPOS BERROA MELECIO NICOLAS",4626103]
[4626272,"CAMPOS BERROA SANTIAGO HONORIO",null,"CAMPOS BERROA SANTIAGO HONORIO",4626272]
[77691352,"CANO RODRIGUEZ JOSE EMILIO",null,"CANO RODRIGUEZ JOSE EMILIO",77691352]
[46024462,"CAPA HUISACAINA SESIBEL",null,"CAPA HUISACAINA SESIBEL",46024462]
[70558870,"CARBAJAL AGUIRRE LUIS ANGEL",null,"CARBAJAL AGUIRRE LUIS ANGEL",70558870]
[29361260,"CARBAJAL CCORIMANYA HERMENEGILDO",null,"CARBAJAL CCORIMANYA HERMENEGILDO",29361260]
[4425384,"CARBAJAL RODRIGUEZ VICTOR JORGE",null,"CARBAJAL RODRIGUEZ VICTOR JORGE",4425384]
[30823758,"CARDENAS NIETO JOSE ERNESTO",null,"CARDENAS NIETO JOSE ERNESTO",30823758]
[30845817,"CARI APAZA FRANCISCO DONATO",null,"CARI APAZA FRANCISCO DONATO",30845817]
[47918559,"CARI BERVEÑO VICTOR ALONZO",null,"CARI BERVEÑO VICTOR ALONZO",47918559]
[80511921,"CARI CABANA JACKELINE PILAR",null,"CARI CABANA JACKELINE PILAR",80511921]
[30835614,"CARLOS CRUZ ELOY ENRIQUE",null,"CARLOS CRUZ ELOY ENRIQUE",30835614]
[30828838,"CARNERO MURILLO YURBY ZACARIAS GUILLERMO",null,"CARNERO MURILLO YURBY ZACARIAS GUILLERMO",30828838]
[43192865,"CARNERO SAITO ANA NATALI",null,"CARNERO SAITO ANA NATALI",43192865]
[799508,"CARPIO AROCUTIPA ROBERTO",null,"CARPIO AROCUTIPA ROBERTO",799508]
[4624040,"CARPIO HIDALGO TEOFILO CASIMIRO",null,"CARPIO HIDALGO TEOFILO CASIMIRO",4624040]
[72912168,"CARPIO MACEDO FABRIZIO GUSTAVO",null,"CARPIO MACEDO FABRIZIO GUSTAVO",72912168]
[41099734,"CARPIO PAREDES FELIX CHARLIE",null,"CARPIO PAREDES FELIX CHARLIE",41099734]
[30833343,"CARPIO SANTISTEBAN ENRIQUE MIGUEL",null,"CARPIO SANTISTEBAN ENRIQUE MIGUEL",30833343]
[4633691,"CARRASCO MOSCOSO FRANCISCO BORJA",null,"CARRASCO MOSCOSO FRANCISCO BORJA",4633691]
[42508230,"CARRASCO RAMOS FRANCISCO WALTHER",null,"CARRASCO RAMOS FRANCISCO WALTHER",42508230]
[30835949,"CARRERO SALAVALDEZ JOSE LUIS",null,"CARRERO SALAVALDEZ JOSE LUIS",30835949]
[76636761,"CARRILLO CHOQUEPUMA MARGOT SANDRA",null,"CARRILLO CHOQUEPUMA MARGOT SANDRA",76636761]
[4653605,"CARRILLO MONSALVE LUIS FERNANDO",null,"CARRILLO MONSALVE LUIS FERNANDO",4653605]
[30824942,"CASAPERALTA ANCCO SALOME ALEDIO",null,"CASAPERALTA ANCCO SALOME ALEDIO",30824942]
[42523743,"CASAS CONDORI ANDRES MANUEL",null,"CASAS CONDORI ANDRES MANUEL",42523743]
[46456570,"CASAS CONDORI ESTEFANI YENI",null,"CASAS CONDORI ESTEFANI YENI",46456570]
[4631626,"CASAS NAUPARI JESUS GALO",null,"CASAS NAUPARI JESUS GALO",4631626]
[4629462,"CASTELLANOS SALINAS JOSE MANUEL",null,"CASTELLANOS SALINAS JOSE MANUEL",4629462]
[30836619,"CASTILLO AGUIRRE WILLIAM JACOB",null,"CASTILLO AGUIRRE WILLIAM JACOB",30836619]
[4623806,"CASTILLO PORTALES RENE BERNARDINO",null,"CASTILLO PORTALES RENE BERNARDINO",4623806]
[30827107,"CASTILLO TALAVERA GABINO EDUARDO",null,"CASTILLO TALAVERA GABINO EDUARDO",30827107]
[30834481,"CASTILLO TALAVERA RICHARD PERCY",null,"CASTILLO TALAVERA RICHARD PERCY",30834481]
[45500793,"CASTILLO TICONA FREDDY FLORENTINO",null,"CASTILLO TICONA FREDDY FLORENTINO",45500793]
[30836981,"CASTRO CONTRERAS MARCO ANTONIO",null,"CASTRO CONTRERAS MARCO ANTONIO",30836981]
[30863358,"CASTRO PEÑARANDA SHIRLEY MARIANELA",null,"CASTRO PEÑARANDA SHIRLEY MARIANELA",30863358]
[4632634,"CASTRO RAMIREZ FRANCISCO DANIEL",null,"CASTRO RAMIREZ FRANCISCO DANIEL",4632634]
[4635835,"CAYETANO GARATE JOSE TOMAS",null,"CAYETANO GARATE JOSE TOMAS",4635835]
[48116166,"CCAHUA CONDORI YOLA",null,"CCAHUA CONDORI YOLA",48116166]
[44291376,"CCAHUANA MERMA ALICIA",null,"CCAHUANA MERMA ALICIA",44291376]
[44664586,"CCALCINA ZELA ANABEL DELIA",null,"CCALCINA ZELA ANABEL DELIA",44664586]
[43584273,"CCALCINA ZELA VERONICA ESTELA",null,"CCALCINA ZELA VERONICA ESTELA",43584273]
[29561988,"CCALLACCASI ANCCASI EFRAIN",null,"CCALLACCASI ANCCASI EFRAIN",29561988]
[47292699,"CCALLOHUANCA CCALLOHUANCA NERY",null,"CCALLOHUANCA CCALLOHUANCA NERY",47292699]
[30847856,"CCARI FLORES APOLINAR",null,"CCARI FLORES APOLINAR",30847856]
[44253951,"CCARITA MAMANI MOISES",null,"CCARITA MAMANI MOISES",44253951]
[40030046,"CCORIMAYO BLAS JOSE EDWIN",null,"CCORIMAYO BLAS JOSE EDWIN",40030046]
[43330056,"CEREZO VILLASANTE EUGENIO",null,"CEREZO VILLASANTE EUGENIO",43330056]
[73113736,"CESPEDES CLEMENTE JERSON GIOVANNI",null,"CESPEDES CLEMENTE JERSON GIOVANNI",73113736]
[44616049,"CESPEDES CLEMENTE SHELY PAOLA",null,"CESPEDES CLEMENTE SHELY PAOLA",44616049]
[43083534,"CESPEDES LLERENA FRANCO GILBERTO",null,"CESPEDES LLERENA FRANCO GILBERTO",43083534]
[44615025,"CESPEDES LLERENA SANDRA MERCEDES",null,"CESPEDES LLERENA SANDRA MERCEDES",44615025]
[30830529,"CESPEDES OSORIO GILBERTO LUCAS",null,"CESPEDES OSORIO GILBERTO LUCAS",30830529]
[30830528,"CESPEDES OSORIO WALTER TRINIDAD",null,"CESPEDES OSORIO WALTER TRINIDAD",30830528]
[4628758,"CESPEDES ZEGARRA CARLOS ANTONIO",null,"CESPEDES ZEGARRA CARLOS ANTONIO",4628758]
[29558959,"CHACON ESPINOZA GUSTAVO ADOLFO",null,"CHACON ESPINOZA GUSTAVO ADOLFO",29558959]
[41155313,"CHAMANA TORRES JAIME JOSE",null,"CHAMANA TORRES JAIME JOSE",41155313]
[40460526,"CHAMANA TORRES ROLANDO AURELIO",null,"CHAMANA TORRES ROLANDO AURELIO",40460526]
[41340953,"CHAMBI CUTIPA JESUS DAVID",null,"CHAMBI CUTIPA JESUS DAVID",41340953]
[30863419,"CHAMBI CUTIPA MICHAEL MARCELO",null,"CHAMBI CUTIPA MICHAEL MARCELO",30863419]
[46613622,"CHAMBILLA CALIZAYA YOYSSY LEYLLA",null,"CHAMBILLA CALIZAYA YOYSSY LEYLLA",46613622]
[30835053,"CHAMBILLA CRUZ FRANCISCO",null,"CHAMBILLA CRUZ FRANCISCO",30835053]
[30834651,"CHAMBILLA CRUZ RUMUALDO JAIME",null,"CHAMBILLA CRUZ RUMUALDO JAIME",30834651]
[30831118,"CHAMBILLA QUISPE RAMON FRANCISCO",null,"CHAMBILLA QUISPE RAMON FRANCISCO",30831118]
[73372733,"CHAÑE CRUZ RUTH SARA",null,"CHAÑE CRUZ RUTH SARA",73372733]
[4625103,"CHAPARRA QUISPE HIPOLITO",null,"CHAPARRA QUISPE HIPOLITO",4625103]
[80326862,"CHAVEZ ALVAREZ ALFREDO",null,"CHAVEZ ALVAREZ ALFREDO",80326862]
[30828332,"CHAVEZ BAYLON AGAPITO MANOLO",null,"CHAVEZ BAYLON AGAPITO MANOLO",30828332]
[30827465,"CHAVEZ MALDONADO JAIME ASUNTO",null,"CHAVEZ MALDONADO JAIME ASUNTO",30827465]
[30822735,"CHAVEZ MALDONADO JUAN DAVID",null,"CHAVEZ MALDONADO JUAN DAVID",30822735]
[30823604,"CHAVEZ PAREDES RICARDO ANTONIO",null,"CHAVEZ PAREDES RICARDO ANTONIO",30823604]
[41692194,"CHAVEZ TURPO VERONICA LISBET",null,"CHAVEZ TURPO VERONICA LISBET",41692194]
[47044194,"CHAVEZ VILCHEZ SANDRA JIMENA",null,"CHAVEZ VILCHEZ SANDRA JIMENA",47044194]
[30837826,"CHICAÑA QUISPE MARCOS ORLANDO",null,"CHICAÑA QUISPE MARCOS ORLANDO",30837826]
[41927651,"CHINO SURCO DENIS OSCAR",null,"CHINO SURCO DENIS OSCAR",41927651]
[30843800,"CHINO SURCO SIXTO RODY",null,"CHINO SURCO SIXTO RODY",30843800]
[30823210,"CHIRE SALAZAR VICTOR GALO",null,"CHIRE SALAZAR VICTOR GALO",30823210]
[4626490,"CHIRINOS AGUILAR FRANCISCO WILLIAM",null,"CHIRINOS AGUILAR FRANCISCO WILLIAM",4626490]
[30831733,"CHIRINOS GALLEGOS ITALO PEDRO PABLO",null,"CHIRINOS GALLEGOS ITALO PEDRO PABLO",30831733]
[4634953,"CHIRINOS POLANCO RAMON ALADINO",null,"CHIRINOS POLANCO RAMON ALADINO",4634953]
[45768118,"CHIRINOS ROJAS JOEL GUILLERMO",null,"CHIRINOS ROJAS JOEL GUILLERMO",45768118]
[42362409,"CHIRINOS ROJAS NICEFORO JOEL",null,"CHIRINOS ROJAS NICEFORO JOEL",42362409]
[30827000,"CHIRINOS SULLAYME GREGORIO MARIO",null,"CHIRINOS SULLAYME GREGORIO MARIO",30827000]
[30847647,"CHOQUE ACOSTA RUBEN WALTER",null,"CHOQUE ACOSTA RUBEN WALTER",30847647]
[48317929,"CHOQUE ATOCHE ANTUANET FIORELLA",null,"CHOQUE ATOCHE ANTUANET FIORELLA",48317929]
[43195823,"CHURA ANAHUA LUCILA",null,"CHURA ANAHUA LUCILA",43195823]
[42783312,"CHURATA CHECYA JOSE ALBERTO",null,"CHURATA CHECYA JOSE ALBERTO",42783312]
[15299176,"CIPIRIANO SAAVEDRA VILMA REVECA",null,"CIPIRIANO SAAVEDRA VILMA REVECA",15299176]
[43488157,"COAQUIRA COAQUIRA JUANA MILAGROS",null,"COAQUIRA COAQUIRA JUANA MILAGROS",43488157]
[30836038,"COARICONA JAHUIRA MIGUEL",null,"COARICONA JAHUIRA MIGUEL",30836038]
[40820444,"COELA SONCCO ISIDORA",null,"COELA SONCCO ISIDORA",40820444]
[42908436,"COLQUE ESQUIVEL ABRAHAM ALAN",null,"COLQUE ESQUIVEL ABRAHAM ALAN",42908436]
[30834996,"COLQUE QUISPE NERIO",null,"COLQUE QUISPE NERIO",30834996]
[667528,"COLQUE SURCO WILE JESUS",null,"COLQUE SURCO WILE JESUS",667528]
[30844683,"COLQUE VILCA RAMON",null,"COLQUE VILCA RAMON",30844683]
[30824133,"CONDORI BEJAR JUAN MATEO",null,"CONDORI BEJAR JUAN MATEO",30824133]
[30835353,"CONDORI HUANCA VICTOR ROBERTO",null,"CONDORI HUANCA VICTOR ROBERTO",30835353]
[45576773,"CONDORI PAMPA NELLY ANGELICA",null,"CONDORI PAMPA NELLY ANGELICA",45576773]
[43510539,"CONDORI PEREDO DE QUISPE ROXANA",null,"CONDORI PEREDO DE QUISPE ROXANA",43510539]
[71979171,"CONDORI QUIRITA ERICK MANUEL",null,"CONDORI QUIRITA ERICK MANUEL",71979171]
[30830890,"CONDORI RAMOS JOSE LUIS",null,"CONDORI RAMOS JOSE LUIS",30830890]
[48280163,"CONDORI TTICA JESUS ANGEL",null,"CONDORI TTICA JESUS ANGEL",48280163]
[44661853,"CONDORI TTICA JHON GUIDO",null,"CONDORI TTICA JHON GUIDO",44661853]
[40350030,"CONTRERAS ESQUIVEL SELVY PAOLO",null,"CONTRERAS ESQUIVEL SELVY PAOLO",40350030]
[30834884,"CONTRERAS HERRERA MANUEL MAXIMILIANO FILAMIR",null,"CONTRERAS HERRERA MANUEL MAXIMILIANO FILAMIR",30834884]
[21565287,"CONTRERAS RODRIGUEZ LUIS ALBERTO",null,"CONTRERAS RODRIGUEZ LUIS ALBERTO",21565287]
[42587330,"CORDOVA ARIRAMA IMELDA",null,"CORDOVA ARIRAMA IMELDA",42587330]
[41845213,"CORNEJO CALLE DEYVID EDILBERTO",null,"CORNEJO CALLE DEYVID EDILBERTO",41845213]
[4624545,"CORNEJO CARRANZA ASCENCIO MIGUEL TOM",null,"CORNEJO CARRANZA ASCENCIO MIGUEL TOM",4624545]
[4637140,"CORNEJO CARRANZA ENRIQUE JIMMY",null,"CORNEJO CARRANZA ENRIQUE JIMMY",4637140]
[30837857,"CORNEJO SOLIS JOSE LUIS",null,"CORNEJO SOLIS JOSE LUIS",30837857]
[4652503,"CORNEJO VARGAS JUAN CARLOS",null,"CORNEJO VARGAS JUAN CARLOS",4652503]
[43418281,"CORTEZ ATOCHE MORRIS ALBERT",null,"CORTEZ ATOCHE MORRIS ALBERT",43418281]
[30826822,"COSSI QUISPE JUAN",null,"COSSI QUISPE JUAN",30826822]
[4625771,"COSSIO UTANI SALES FRANCISCO",null,"COSSIO UTANI SALES FRANCISCO",4625771]
[4644960,"CROSE MEZZACASA GIOVANNI",null,"CROSE MEZZACASA GIOVANNI",4644960]
[44893366,"CRUZ ERQUINIGO BRUNO ROSSELL",null,"CRUZ ERQUINIGO BRUNO ROSSELL",44893366]
[30828389,"CRUZ PEQUEÑA BRUNO ROSARI",null,"CRUZ PEQUEÑA BRUNO ROSARI",30828389]
[42012120,"CRUZ VERGARA KARINA",null,"CRUZ VERGARA KARINA",42012120]
[30822272,"CUBA GONZALES MANUEL SABINO",null,"CUBA GONZALES MANUEL SABINO",30822272]
[30833139,"CUBA RODRIGUEZ FREDDY MANUEL",null,"CUBA RODRIGUEZ FREDDY MANUEL",30833139]
[30832718,"CUELA BARREDA ANGEL WANDISLAO",null,"CUELA BARREDA ANGEL WANDISLAO",30832718]
[48756267,"CUELLAR MIRANDA ADAN JESUS",null,"CUELLAR MIRANDA ADAN JESUS",48756267]
[30823660,"CUELLAR RODRIGUEZ JORGE ANDRES",null,"CUELLAR RODRIGUEZ JORGE ANDRES",30823660]
[4645279,"CUENTAS SALAS YURY GUALBERTO",null,"CUENTAS SALAS YURY GUALBERTO",4645279]
[30856289,"CUETO MONTALVAN JULIO",null,"CUETO MONTALVAN JULIO",30856289]
[30828999,"CUEVA SOLIS LUIS MANUEL FELIX",null,"CUEVA SOLIS LUIS MANUEL FELIX",30828999]
[43656747,"CUEVA TORRES LUIS UBERTO",null,"CUEVA TORRES LUIS UBERTO",43656747]
[42409468,"CUEVAS AVILES ESTHER",null,"CUEVAS AVILES ESTHER",42409468]
[45380374,"CUEVAS AVILES GLADIS",null,"CUEVAS AVILES GLADIS",45380374]
[30828801,"CUSI ARISACA ANTONIO",null,"CUSI ARISACA ANTONIO",30828801]
[4429575,"CUTIPA CHAMBI NEMESIO QUINTIN",null,"CUTIPA CHAMBI NEMESIO QUINTIN",4429575]
[4621336,"DAVILA MORON FERNANDO WALTER",null,"DAVILA MORON FERNANDO WALTER",4621336]
[4632574,"DAVILA MORON RICARDO EDUARDO",null,"DAVILA MORON RICARDO EDUARDO",4632574]
[30827143,"DE LA CRUZ SALINAS ERNESTO",null,"DE LA CRUZ SALINAS ERNESTO",30827143]
[30836817,"DELGADO AMAT Y LEON LUIS WILMER",null,"DELGADO AMAT Y LEON LUIS WILMER",30836817]
[71125048,"DELGADO BUENO LUIS GABRIEL",null,"DELGADO BUENO LUIS GABRIEL",71125048]
[30825812,"DELGADO CACERES VICTOR ALFREDO",null,"DELGADO CACERES VICTOR ALFREDO",30825812]
[76361972,"DELGADO CARDENAS MIGUEL ANGEL",null,"DELGADO CARDENAS MIGUEL ANGEL",76361972]
[30863271,"DELGADO DETAN FERNANDO WILLIAM",null,"DELGADO DETAN FERNANDO WILLIAM",30863271]
[30857162,"DELGADO MONTES VICTOR ALFREDO",null,"DELGADO MONTES VICTOR ALFREDO",30857162]
[73372579,"DELGADO NINA DARIEN DORIAN",null,"DELGADO NINA DARIEN DORIAN",73372579]
[4625467,"DELGADO RAMOS ALEJANDRO",null,"DELGADO RAMOS ALEJANDRO",4625467]
[4629739,"DELGADO RAMOS LORENZO LUIS",null,"DELGADO RAMOS LORENZO LUIS",4629739]
[46516287,"DELGADO ROJAS CARLOS ALBERTO JUNIOR",null,"DELGADO ROJAS CARLOS ALBERTO JUNIOR",46516287]
[29678348,"DELGADO VALENCIA JUAN JORGE",null,"DELGADO VALENCIA JUAN JORGE",29678348]
[4629461,"DELGADO ZUÑIGA VICTOR DOMINGO",null,"DELGADO ZUÑIGA VICTOR DOMINGO",4629461]
[30837249,"DESCALZI HERRERA HECTOR ERNESTO",null,"DESCALZI HERRERA HECTOR ERNESTO",30837249]
[41412268,"DEXTRE DIAZ ISELA DANY",null,"DEXTRE DIAZ ISELA DANY",41412268]
[30830734,"DIAZ ANGULO MANUEL DAVID",null,"DIAZ ANGULO MANUEL DAVID",30830734]
[30823184,"DIAZ BELZO ANGEL AUGUSTO",null,"DIAZ BELZO ANGEL AUGUSTO",30823184]
[30822729,"DIAZ BELZO MARCO MARIO",null,"DIAZ BELZO MARCO MARIO",30822729]
[30821839,"DIAZ CARDENAS FELIX EDUARDO",null,"DIAZ CARDENAS FELIX EDUARDO",30821839]
[30821906,"DIAZ CARDENAS JAIME AURELIO",null,"DIAZ CARDENAS JAIME AURELIO",30821906]
[4626888,"DIAZ CERVANTES LUIS ENRIQUE",null,"DIAZ CERVANTES LUIS ENRIQUE",4626888]
[30826326,"DIAZ DIAZ ADAN ELARD",null,"DIAZ DIAZ ADAN ELARD",30826326]
[74471826,"DIAZ ESQUIVEL JOHAN STIFF",null,"DIAZ ESQUIVEL JOHAN STIFF",74471826]
[30835485,"DIAZ GOMEZ ANGEL JOSE",null,"DIAZ GOMEZ ANGEL JOSE",30835485]
[30826767,"DIAZ GOMEZ MARCOS LUIS",null,"DIAZ GOMEZ MARCOS LUIS",30826767]
[25539593,"DIAZ MARTINEZ LUIS ALBERTO",null,"DIAZ MARTINEZ LUIS ALBERTO",25539593]
[29547220,"DIAZ SONCO TEOFILO MARIO",null,"DIAZ SONCO TEOFILO MARIO",29547220]
[4625947,"DILL'ERVA MAURA EVERTH ROMAN",null,"DILL'ERVA MAURA EVERTH ROMAN",4625947]
[9957615,"DONAYRE ARGUEDAS LUIS MARTIN",null,"DONAYRE ARGUEDAS LUIS MARTIN",9957615]
[4631490,"DURAN AGUILAR JULIO EDGAR",null,"DURAN AGUILAR JULIO EDGAR",4631490]
[43726185,"DURAN DAVILA SELENE",null,"DURAN DAVILA SELENE",43726185]
[40441313,"EGUILUZ ZEVALLOS GUSTAVO HONORATO",null,"EGUILUZ ZEVALLOS GUSTAVO HONORATO",40441313]
[48720144,"ENOKI MOTTA ROTSEN JUNIHOR",null,"ENOKI MOTTA ROTSEN JUNIHOR",48720144]
[41001117,"ERQUINIGO FERNANDEZ RUBEN FRANZUA",null,"ERQUINIGO FERNANDEZ RUBEN FRANZUA",41001117]
[45733493,"ESCATE TORRES JUAN JOSE",null,"ESCATE TORRES JUAN JOSE",45733493]
[72516828,"ESCOBEDO MACHACA JAZMIN SELENE",null,"ESCOBEDO MACHACA JAZMIN SELENE",72516828]
[30820836,"ESCUDERO SOLARI FAUSTO PEDRO",null,"ESCUDERO SOLARI FAUSTO PEDRO",30820836]
[40521565,"ESPINOZA ALARCON NAVA MARCO",null,"ESPINOZA ALARCON NAVA MARCO",40521565]
[4624184,"ESPINOZA DELGADO FREDDY MANUEL",null,"ESPINOZA DELGADO FREDDY MANUEL",4624184]
[30826086,"ESPINOZA ORTIZ ARTURO ABEL",null,"ESPINOZA ORTIZ ARTURO ABEL",30826086]
[4749387,"ESPINOZA URE ALEJANDRO RAUL",null,"ESPINOZA URE ALEJANDRO RAUL",4749387]
[4649523,"ESPINOZA URE ORLANDO JAVIER",null,"ESPINOZA URE ORLANDO JAVIER",4649523]
[47929823,"ESPINOZA VILCHEZ YUVICSA FIORELLA",null,"ESPINOZA VILCHEZ YUVICSA FIORELLA",47929823]
[9186167,"ESQUIVEL LAIVE LORENZO MANUEL",null,"ESQUIVEL LAIVE LORENZO MANUEL",9186167]
[75539699,"ESTACA MAMANI GERALDINE VIRGINIA",null,"ESTACA MAMANI GERALDINE VIRGINIA",75539699]
[42347974,"ESTRADA ALVAREZ ANDRES ALONSO",null,"ESTRADA ALVAREZ ANDRES ALONSO",42347974]
[80261847,"EUGENIO BERNEDO JUAN MAURO",null,"EUGENIO BERNEDO JUAN MAURO",80261847]
[47483252,"EVARISTO SELIS ENRIQUE GABRIEL",null,"EVARISTO SELIS ENRIQUE GABRIEL",47483252]
[19237694,"FACHE SANCHEZ ROGELIO ALFONSO",null,"FACHE SANCHEZ ROGELIO ALFONSO",19237694]
[30823045,"FERNANDEZ ALVAREZ JAVIER ALEJANDRO",null,"FERNANDEZ ALVAREZ JAVIER ALEJANDRO",30823045]
[30415983,"FERNANDEZ BOBADILLA LUCHO ADRIEL",null,"FERNANDEZ BOBADILLA LUCHO ADRIEL",30415983]
[46437324,"FERNANDEZ CUELLO LUIS ALONSO",null,"FERNANDEZ CUELLO LUIS ALONSO",46437324]
[30834722,"FERNANDEZ FLORES WILLIAM ALBERTO",null,"FERNANDEZ FLORES WILLIAM ALBERTO",30834722]
[44294028,"FERNANDEZ SALGADO ROLANDO MARTIN",null,"FERNANDEZ SALGADO ROLANDO MARTIN",44294028]
[4633135,"FERNANDEZ TICONA JOSE ALBERTO",null,"FERNANDEZ TICONA JOSE ALBERTO",4633135]
[47378837,"FLORES ANGULO WENDY",null,"FLORES ANGULO WENDY",47378837]
[30863410,"FLORES CHOQUETICO ERIKA VIOLETA",null,"FLORES CHOQUETICO ERIKA VIOLETA",30863410]
[40075409,"FLORES DELGADO JHONATAN JOSEP",null,"FLORES DELGADO JHONATAN JOSEP",40075409]
[1855598,"FLORES PAUCAR ROGELIO",null,"FLORES PAUCAR ROGELIO",1855598]
[30833785,"FLORES SUAREZ HUMBERTO JORGE",null,"FLORES SUAREZ HUMBERTO JORGE",30833785]
[30823265,"FLORES VALENCIA CELEDONIO",null,"FLORES VALENCIA CELEDONIO",30823265]
[30830118,"FLORES VASQUEZ FELIPE GRIMALDO",null,"FLORES VASQUEZ FELIPE GRIMALDO",30830118]
[45941199,"FLOREZ PUMA EMERSON FERNANDO",null,"FLOREZ PUMA EMERSON FERNANDO",45941199]
[43962722,"FRANCO BAYLON MOISES STEFFAM",null,"FRANCO BAYLON MOISES STEFFAM",43962722]
[30827567,"FUENTES CARPIO JUAN GUILLERMO",null,"FUENTES CARPIO JUAN GUILLERMO",30827567]
[46044064,"FUENTES CARPIO RAUL LEONARDO",null,"FUENTES CARPIO RAUL LEONARDO",46044064]
[30823151,"FUENTES ROCHA GERARDO ALBERTO",null,"FUENTES ROCHA GERARDO ALBERTO",30823151]
[43002314,"FUENTES VALDIVIA RUBEN DARIO",null,"FUENTES VALDIVIA RUBEN DARIO",43002314]
[44292474,"GALARZA CAMPOS ALVARO JOAO",null,"GALARZA CAMPOS ALVARO JOAO",44292474]
[30830303,"GALLEGOS PEREA HUGO JUAN",null,"GALLEGOS PEREA HUGO JUAN",30830303]
[29637616,"GALLEGOS QUILLUYA LIZBETH",null,"GALLEGOS QUILLUYA LIZBETH",29637616]
[4648194,"GALLEGOS ROQUE RODOLFO GUILLERMO",null,"GALLEGOS ROQUE RODOLFO GUILLERMO",4648194]
[30829218,"GALLEGOS TALAVERA DEGLI JULIO",null,"GALLEGOS TALAVERA DEGLI JULIO",30829218]
[30827821,"GALLEGOS TALAVERA EDWIN RODIL DE LA CRUZ",null,"GALLEGOS TALAVERA EDWIN RODIL DE LA CRUZ",30827821]
[30837252,"GALLEGOS ZAMUDIO CARMEN ELENA",null,"GALLEGOS ZAMUDIO CARMEN ELENA",30837252]
[30856675,"GALVEZ BEJAR WUILSON YEFFER",null,"GALVEZ BEJAR WUILSON YEFFER",30856675]
[47049054,"GALVEZ CASAS YAHAIRA YOVANA",null,"GALVEZ CASAS YAHAIRA YOVANA",47049054]
[46134395,"GALVEZ CASAS YELKA DAYANA",null,"GALVEZ CASAS YELKA DAYANA",46134395]
[42304686,"GAMARRA CHURA BUENAVENTURADA",null,"GAMARRA CHURA BUENAVENTURADA",42304686]
[42440407,"GAMARRA QUISPE RENATO",null,"GAMARRA QUISPE RENATO",42440407]
[41603866,"GAMARRA RAMIREZ HERNAN JAIME",null,"GAMARRA RAMIREZ HERNAN JAIME",41603866]
[30856568,"GARCIA AGUILAR ANTONIO ALFREDO",null,"GARCIA AGUILAR ANTONIO ALFREDO",30856568]
[30856869,"GARCIA AGUILAR JUAN FERNANDO",null,"GARCIA AGUILAR JUAN FERNANDO",30856869]
[40613614,"GARCIA AGUILAR MIGUEL ANGEL",null,"GARCIA AGUILAR MIGUEL ANGEL",40613614]
[42898785,"GARCIA DEL CASTILLO VIVIANA",null,"GARCIA DEL CASTILLO VIVIANA",42898785]
[45774102,"GARCIA DELGADO WALTER HUGO",null,"GARCIA DELGADO WALTER HUGO",45774102]
[80230156,"GARCIA LUCUMBER PAULA LUISA",null,"GARCIA LUCUMBER PAULA LUISA",80230156]
[4622603,"GARCIA MADUEÑO GUIDO ALBERTO",null,"GARCIA MADUEÑO GUIDO ALBERTO",4622603]
[10301927,"GARCIA SOLIS WALTHER",null,"GARCIA SOLIS WALTHER",10301927]
[40239508,"GARCIA VALDIVIA ELVIS JERSON",null,"GARCIA VALDIVIA ELVIS JERSON",40239508]
[4643290,"GARCIA VALDIVIA GUIDO ALBERTO",null,"GARCIA VALDIVIA GUIDO ALBERTO",4643290]
[70420920,"GARCIA YOUNG DANIEL ALEJANDRO",null,"GARCIA YOUNG DANIEL ALEJANDRO",70420920]
[30820976,"GHERSI VARGAS HUMBERTO JESUS",null,"GHERSI VARGAS HUMBERTO JESUS",30820976]
[30821255,"GODOY CARRERO ISAAC SULPICIO FERMIN",null,"GODOY CARRERO ISAAC SULPICIO FERMIN",30821255]
[46375707,"GOMEZ CONDORI FAUSTO",null,"GOMEZ CONDORI FAUSTO",46375707]
[30850089,"GOMEZ LLAMOSAS EDWARD EUSEBIO",null,"GOMEZ LLAMOSAS EDWARD EUSEBIO",30850089]
[30831277,"GOMEZ PUMA HIPOLITO ARTURO",null,"GOMEZ PUMA HIPOLITO ARTURO",30831277]
[40329928,"GONGORA CONDORI JOSE WILBER",null,"GONGORA CONDORI JOSE WILBER",40329928]
[30832559,"GONZA MAMANI EDGARD IGNACIO",null,"GONZA MAMANI EDGARD IGNACIO",30832559]
[30831557,"GONZALES MELO JOSE LUIS",null,"GONZALES MELO JOSE LUIS",30831557]
[40405525,"GONZALES PIMENTEL LUCIO CESAR",null,"GONZALES PIMENTEL LUCIO CESAR",40405525]
[30834912,"GONZALES ROJAS JOSE LUIS",null,"GONZALES ROJAS JOSE LUIS",30834912]
[30833917,"GONZALES ROJAS JUAN EDUARDO",null,"GONZALES ROJAS JUAN EDUARDO",30833917]
[45090574,"GONZALES VARGAS JOSE LUIS",null,"GONZALES VARGAS JOSE LUIS",45090574]
[80264204,"GORDILLO SAAVEDRA MERY EVELYNDA",null,"GORDILLO SAAVEDRA MERY EVELYNDA",80264204]
[30863709,"GUERRERO CARPIO TATIANA",null,"GUERRERO CARPIO TATIANA",30863709]
[45750391,"GUEVARA AROTAIPE ANGEL EMILIO",null,"GUEVARA AROTAIPE ANGEL EMILIO",45750391]
[40522986,"GUILLEN DEWIA LUIS EMILIO",null,"GUILLEN DEWIA LUIS EMILIO",40522986]
[22184127,"GUTIERREZ BENDEZU SANTOS ENRIQUE",null,"GUTIERREZ BENDEZU SANTOS ENRIQUE",22184127]
[71870548,"GUTIERREZ CASTILLEJOS ELISEO RUBEN",null,"GUTIERREZ CASTILLEJOS ELISEO RUBEN",71870548]
[29358103,"GUTIERREZ PINTO JEENRRI JESUS",null,"GUTIERREZ PINTO JEENRRI JESUS",29358103]
[30823175,"GUTIERREZ SOLORZANO ABDON CLAUDIO",null,"GUTIERREZ SOLORZANO ABDON CLAUDIO",30823175]
[42586930,"HANCCO HANCCO MARISOL",null,"HANCCO HANCCO MARISOL",42586930]
[45791809,"HERRERA VALDIVIA PEDRO ZENON",null,"HERRERA VALDIVIA PEDRO ZENON",45791809]
[80266515,"HUACHO PAZ RAUL EDMUNDO",null,"HUACHO PAZ RAUL EDMUNDO",80266515]
[4650332,"HUALPA JANAMPA ALBERTO MAURO",null,"HUALPA JANAMPA ALBERTO MAURO",4650332]
[72202142,"HUAMAN GALLEGOS BRIGITTE",null,"HUAMAN GALLEGOS BRIGITTE",72202142]
[29500370,"HUAMAN VARGAS SARA LUZ",null,"HUAMAN VARGAS SARA LUZ",29500370]
[30821009,"HUAMANTUCO CARRILLO JACINTO ELEODORO JOSE",null,"HUAMANTUCO CARRILLO JACINTO ELEODORO JOSE",30821009]
[42408040,"HUAMANTUCO SAMATA JHOAN",null,"HUAMANTUCO SAMATA JHOAN",42408040]
[4623141,"HUANACUNE HUAÑEC LUIS RAUL",null,"HUANACUNE HUAÑEC LUIS RAUL",4623141]
[4624609,"HUANACUNE MAQUERA WILLY ZACARIAS",null,"HUANACUNE MAQUERA WILLY ZACARIAS",4624609]
[30834736,"HUANCA CALLO MIGUEL LEONIDAS",null,"HUANCA CALLO MIGUEL LEONIDAS",30834736]
[30829416,"HUANCA FARFAN DAVID BENJAMIN - FALLECIDO",null,"HUANCA FARFAN DAVID BENJAMIN - FALLECIDO",30829416]
[70524269,"HUANCA GOMEZ MARIELA DEL PILAR",null,"HUANCA GOMEZ MARIELA DEL PILAR",70524269]
[71979151,"HUANCA TICONA SERGIO ANDRE",null,"HUANCA TICONA SERGIO ANDRE",71979151]
[30829982,"HUANCA VILELA TEODORO ALFREDO",null,"HUANCA VILELA TEODORO ALFREDO",30829982]
[42513120,"HUANCO CHURA MARGOT IRENE",null,"HUANCO CHURA MARGOT IRENE",42513120]
[73372657,"HUANCOLLO MAQUERA TALY LOURDES",null,"HUANCOLLO MAQUERA TALY LOURDES",73372657]
[30824238,"HUARICALLO ESPINOZA SIMON",null,"HUARICALLO ESPINOZA SIMON",30824238]
[30857358,"HUERTA ARAMAYO JOSE ANTONIO",null,"HUERTA ARAMAYO JOSE ANTONIO",30857358]
[80434697,"HUIRACOCHA CCASO ADOLFO RAFAEL",null,"HUIRACOCHA CCASO ADOLFO RAFAEL",80434697]
[29370830,"IDME CARRASCO JULIAN",null,"IDME CARRASCO JULIAN",29370830]
[10880027,"ISIDRO OSORIO ANGEL RAUL",null,"ISIDRO OSORIO ANGEL RAUL",10880027]
[42697241,"JIMENEZ DUQUE ROXANA KARINA",null,"JIMENEZ DUQUE ROXANA KARINA",42697241]
[4635172,"JIMENEZ SILVA MANUEL EDUARDO",null,"JIMENEZ SILVA MANUEL EDUARDO",4635172]
[41642739,"JORDAN HUAYNACHO ABRAHAM SAMUEL",null,"JORDAN HUAYNACHO ABRAHAM SAMUEL",41642739]
[4630894,"JUAREZ JUAREZ NESTOR DIEGO",null,"JUAREZ JUAREZ NESTOR DIEGO",4630894]
[4629383,"JUAREZ JUAREZ RODOLFO DANIEL",null,"JUAREZ JUAREZ RODOLFO DANIEL",4629383]
[23004369,"JUSTINIANO MODESTO CONSTANTIN",null,"JUSTINIANO MODESTO CONSTANTIN",23004369]
[30831876,"LARENAS HURTADO RAUL ROBERTO",null,"LARENAS HURTADO RAUL ROBERTO",30831876]
[30820522,"LARENAS SANCHEZ RAUL ROBERTO",null,"LARENAS SANCHEZ RAUL ROBERTO",30820522]
[4633277,"LARICO COAQUIRA NANCI MARUJA",null,"LARICO COAQUIRA NANCI MARUJA",4633277]
[486604,"LEE YAÑEZ ALBERTO",null,"LEE YAÑEZ ALBERTO",486604]
[30824727,"LEIVA VALDIVIA OFELIA MERCEDES",null,"LEIVA VALDIVIA OFELIA MERCEDES",30824727]
[30836448,"LEYVA PONCE ISAAC YURI",null,"LEYVA PONCE ISAAC YURI",30836448]
[71991230,"LIGUE INCA JOSE SEBASTIAN",null,"LIGUE INCA JOSE SEBASTIAN",71991230]
[4653210,"LIMA ROJAS JOSE ALBERTO",null,"LIMA ROJAS JOSE ALBERTO",4653210]
[2027855,"LIPA PORTILLO SOCRATES",null,"LIPA PORTILLO SOCRATES",2027855]
[42404553,"LIPE MEDINA IRIS KARINA",null,"LIPE MEDINA IRIS KARINA",42404553]
[30834685,"LIRA LAU CESAR ENRIQUE",null,"LIRA LAU CESAR ENRIQUE",30834685]
[30856818,"LLACMA SAMATA CALIXTO FORTUNATO",null,"LLACMA SAMATA CALIXTO FORTUNATO",30856818]
[42665891,"LLANOS AIMITUMA ULISES FERNANDO",null,"LLANOS AIMITUMA ULISES FERNANDO",42665891]
[45520148,"LLATA COATA VLADIMIR RAMSES",null,"LLATA COATA VLADIMIR RAMSES",45520148]
[30834814,"LLERENA BUTRON HUMBERTO HUGO",null,"LLERENA BUTRON HUMBERTO HUGO",30834814]
[30830530,"LLERENA DE CESPEDES MARIA LUISA DOMI",null,"LLERENA DE CESPEDES MARIA LUISA DOMI",30830530]
[30828789,"LLERENA RIVERA CARMEN ROSA",null,"LLERENA RIVERA CARMEN ROSA",30828789]
[46963364,"LLUMI NINA JOHANA ROCIO",null,"LLUMI NINA JOHANA ROCIO",46963364]
[5309171,"LLUMI PIZANGO ROLDAN",null,"LLUMI PIZANGO ROLDAN",5309171]
[74841431,"LONGHI CHACON ALFONSO LUCIANO",null,"LONGHI CHACON ALFONSO LUCIANO",74841431]
[41797085,"LOPE FERNANDEZ JOSUE DANTE",null,"LOPE FERNANDEZ JOSUE DANTE",41797085]
[30835342,"LOPE MARQUINA JOSE LORENZO",null,"LOPE MARQUINA JOSE LORENZO",30835342]
[4632145,"LOPEZ FLORES MARIO LORENZO",null,"LOPEZ FLORES MARIO LORENZO",4632145]
[43123536,"LOPEZ HUANCA JHONY RAFAEL",null,"LOPEZ HUANCA JHONY RAFAEL",43123536]
[41797066,"LOPEZ PONCE ALEXIS ELARD",null,"LOPEZ PONCE ALEXIS ELARD",41797066]
[4629906,"LUNA QUEA JAIME",null,"LUNA QUEA JAIME",4629906]
[30832548,"LUQUE CHAVEZ HENRY EDUARDO",null,"LUQUE CHAVEZ HENRY EDUARDO",30832548]
[46591630,"LURITA HERNANDEZ KELLY JENNY",null,"LURITA HERNANDEZ KELLY JENNY",46591630]
[4625162,"MACEDO SANCHEZ VIRGINIO AUGUSTO",null,"MACEDO SANCHEZ VIRGINIO AUGUSTO",4625162]
[4653102,"MACEDO VALDIVIA AUGUSTO FERNANDO",null,"MACEDO VALDIVIA AUGUSTO FERNANDO",4653102]
[80595500,"MACHACA HANCCO MANUEL MARTIN",null,"MACHACA HANCCO MANUEL MARTIN",80595500]
[4630343,"MADUEÑO VELEZ NORBERTO MANUEL",null,"MADUEÑO VELEZ NORBERTO MANUEL",4630343]
[30826323,"MALAGA MEDINA ELAR WALTER",null,"MALAGA MEDINA ELAR WALTER",30826323]
[30856108,"MALAGA SALAS JUAN CARLOS - FALLECIDO",null,"MALAGA SALAS JUAN CARLOS - FALLECIDO",30856108]
[30827748,"MALAGA VALDIVIA ISIDORO ALFONSO",null,"MALAGA VALDIVIA ISIDORO ALFONSO",30827748]
[30827823,"MALAGA VALDIVIA JOSE FELIX",null,"MALAGA VALDIVIA JOSE FELIX",30827823]
[4646669,"MALLEA QUISPE HUGO MARIANO",null,"MALLEA QUISPE HUGO MARIANO",4646669]
[48529572,"MAMANI ARQUE IRMA",null,"MAMANI ARQUE IRMA",48529572]
[41315728,"MAMANI CALLAPAZA ISMAEL ADOLFO",null,"MAMANI CALLAPAZA ISMAEL ADOLFO",41315728]
[4625431,"MAMANI CHAMBI JESUS",null,"MAMANI CHAMBI JESUS",4625431]
[80501231,"MAMANI CHAÑI MARLENY JANETH",null,"MAMANI CHAÑI MARLENY JANETH",80501231]
[70163933,"MAMANI CHIPANA JORGE ALEXANDER",null,"MAMANI CHIPANA JORGE ALEXANDER",70163933]
[30852108,"MAMANI CHURA SILVIO",null,"MAMANI CHURA SILVIO",30852108]
[4648426,"MAMANI COAQUIRA SANTOS DAVID",null,"MAMANI COAQUIRA SANTOS DAVID",4648426]
[42963222,"MAMANI GARCIA JOSE LUIS",null,"MAMANI GARCIA JOSE LUIS",42963222]
[46525511,"MAMANI HANCCO SENON FELIX",null,"MAMANI HANCCO SENON FELIX",46525511]
[4749255,"MAMANI LEQUE ISIDRO GERARDO",null,"MAMANI LEQUE ISIDRO GERARDO",4749255]
[40859238,"MAMANI LIQUE NESTOR PASTOR",null,"MAMANI LIQUE NESTOR PASTOR",40859238]
[30837682,"MAMANI MAMANI CRISTOBAL",null,"MAMANI MAMANI CRISTOBAL",30837682]
[4624886,"MAMANI MAMANI PABLO",null,"MAMANI MAMANI PABLO",4624886]
[30836045,"MAMANI QUENAYA MANUEL GUSTAVO",null,"MAMANI QUENAYA MANUEL GUSTAVO",30836045]
[30854136,"MAMANI VALENCIA RODOLFO",null,"MAMANI VALENCIA RODOLFO",30854136]
[4630509,"MAMANI VARGAS RENE AGRIPINO",null,"MAMANI VARGAS RENE AGRIPINO",4630509]
[41416529,"MAMANI YANAPA MARIA MAGDALENA",null,"MAMANI YANAPA MARIA MAGDALENA",41416529]
[30823950,"MAMANI YANQUI JUAN",null,"MAMANI YANQUI JUAN",30823950]
[4745006,"MANCILLA VILCHEZ ALEJANDRO RONALD",null,"MANCILLA VILCHEZ ALEJANDRO RONALD",4745006]
[30833661,"MANRIQUE BARRIGA JOSE ERNESTO",null,"MANRIQUE BARRIGA JOSE ERNESTO",30833661]
[80434530,"MANZANO RUELAS CESAR",null,"MANZANO RUELAS CESAR",80434530]
[47929908,"MAQUERA ROMERO JHOSELYN CANDY",null,"MAQUERA ROMERO JHOSELYN CANDY",47929908]
[6473264,"MARAGLIANO BELTRAN VICTOR MANUEL",null,"MARAGLIANO BELTRAN VICTOR MANUEL",6473264]
[80594886,"MARCA ROJAS JOSE ALBERTO",null,"MARCA ROJAS JOSE ALBERTO",80594886]
[30832540,"MARIN ZEVALLOS JOSE BERNARDINO",null,"MARIN ZEVALLOS JOSE BERNARDINO",30832540]
[30837842,"MARTINEZ ARISMENDI MARIO ENRIQUE",null,"MARTINEZ ARISMENDI MARIO ENRIQUE",30837842]
[30829713,"MARTINEZ CHOQUEHUANCA ADOLFO FLORENCIO",null,"MARTINEZ CHOQUEHUANCA ADOLFO FLORENCIO",30829713]
[4627409,"MARTINEZ MAURA MANUEL OSWALDO",null,"MARTINEZ MAURA MANUEL OSWALDO",4627409]
[43000080,"MARTINEZ SACSI EDITH MARINA",null,"MARTINEZ SACSI EDITH MARINA",43000080]
[30863666,"MARTINEZ SILVERIO ANGELICA MARIA",null,"MARTINEZ SILVERIO ANGELICA MARIA",30863666]
[46390502,"MARTINEZ VIZCARRA WILLIAMS JESUS",null,"MARTINEZ VIZCARRA WILLIAMS JESUS",46390502]
[4634102,"MARTINEZ ZEVALLOS VIDAL",null,"MARTINEZ ZEVALLOS VIDAL",4634102]
[41202728,"MASCO AYALA ELENA",null,"MASCO AYALA ELENA",41202728]
[40146061,"MASCO AYALA SIDANELIA",null,"MASCO AYALA SIDANELIA",40146061]
[80623615,"MASCO AYALA SUSANA",null,"MASCO AYALA SUSANA",80623615]
[80426027,"MASCO AYALA YESSENIA XIOMARA",null,"MASCO AYALA YESSENIA XIOMARA",80426027]
[30832295,"MATURANA VELASQUEZ RENE RAUL",null,"MATURANA VELASQUEZ RENE RAUL",30832295]
[30829831,"MATURANA ZUÑIGA ERNESTO MAURO",null,"MATURANA ZUÑIGA ERNESTO MAURO",30829831]
[48217446,"MAYO MACEDO MARIA ZULEYKA",null,"MAYO MACEDO MARIA ZULEYKA",48217446]
[4748026,"MEDINA ESPINOZA FABIO DEMETRIO",null,"MEDINA ESPINOZA FABIO DEMETRIO",4748026]
[80467227,"MEDINA GUTIERREZ SABINO",null,"MEDINA GUTIERREZ SABINO",80467227]
[30826494,"MEDINA HUANCA JUAN ERNESTO",null,"MEDINA HUANCA JUAN ERNESTO",30826494]
[40029781,"MEDINA LIENDO CARLOS FRANCISCO",null,"MEDINA LIENDO CARLOS FRANCISCO",40029781]
[30824984,"MEDINA SALAS TITO ERNESTO JULIO",null,"MEDINA SALAS TITO ERNESTO JULIO",30824984]
[32763751,"MEDINA ZAMBRANO WALTER JULIO",null,"MEDINA ZAMBRANO WALTER JULIO",32763751]
[4646078,"MEJIA SALGADO LEO BUENAVENTU",null,"MEJIA SALGADO LEO BUENAVENTU",4646078]
[30837613,"MELO VELASQUEZ EDWING ARMANDO",null,"MELO VELASQUEZ EDWING ARMANDO",30837613]
[30828750,"MENDOZA ALCOCER FAUSTO PERCY",null,"MENDOZA ALCOCER FAUSTO PERCY",30828750]
[30831798,"MENDOZA BLANCO VICTOR",null,"MENDOZA BLANCO VICTOR",30831798]
[47251860,"MENDOZA CHAVEZ YEISON ABEL",null,"MENDOZA CHAVEZ YEISON ABEL",47251860]
[29467802,"MENDOZA GALVEZ JOSE ANTONIO",null,"MENDOZA GALVEZ JOSE ANTONIO",29467802]
[30837236,"MENDOZA GALVEZ VICTOR HUGO",null,"MENDOZA GALVEZ VICTOR HUGO",30837236]
[42719307,"MENDOZA HILARI JESUS CONSTANTINO",null,"MENDOZA HILARI JESUS CONSTANTINO",42719307]
[30830660,"MENDOZA MENDOZA JULIO",null,"MENDOZA MENDOZA JULIO",30830660]
[43377810,"MENDOZA NINA JULIO CESAR",null,"MENDOZA NINA JULIO CESAR",43377810]
[47526772,"MENDOZA NINA JUNIOR RICHARD",null,"MENDOZA NINA JUNIOR RICHARD",47526772]
[46834772,"MENDOZA PINO LUIS DAVID",null,"MENDOZA PINO LUIS DAVID",46834772]
[30863446,"MENDOZA TIRADO ROCIO ESPERANZA",null,"MENDOZA TIRADO ROCIO ESPERANZA",30863446]
[30834100,"MENESES LOPEZ JOSE ALFONSO",null,"MENESES LOPEZ JOSE ALFONSO",30834100]
[4632679,"MENESES MARES LUIS ANGEL",null,"MENESES MARES LUIS ANGEL",4632679]
[45598611,"MERCADO CHOQUE EDITH YANETH",null,"MERCADO CHOQUE EDITH YANETH",45598611]
[40736049,"MEZA ALA VEDRA BELLY YOLANDA",null,"MEZA ALA VEDRA BELLY YOLANDA",40736049]
[29318124,"MEZA DELGADO DANIEL JOSE",null,"MEZA DELGADO DANIEL JOSE",29318124]
[30835510,"MEZA GALLEGOS ALBERTO GERMAN",null,"MEZA GALLEGOS ALBERTO GERMAN",30835510]
[4632456,"MEZA RIVERA LUIS JAIME",null,"MEZA RIVERA LUIS JAIME",4632456]
[42994413,"MEZA ROQUE VICTOR ARMANDO",null,"MEZA ROQUE VICTOR ARMANDO",42994413]
[4635505,"MEZA VALDIVIA ANDRES ABELINO",null,"MEZA VALDIVIA ANDRES ABELINO",4635505]
[44330773,"MIRANDA CECENARDO VILMA",null,"MIRANDA CECENARDO VILMA",44330773]
[70139419,"MIRANDA CISNARDO MARIBEL MAGNA",null,"MIRANDA CISNARDO MARIBEL MAGNA",70139419]
[30825667,"MIRANDA FIGUEROA LUIS LORENZO",null,"MIRANDA FIGUEROA LUIS LORENZO",30825667]
[46657968,"MOGROVEJO TIRADO ADA PATRICIA",null,"MOGROVEJO TIRADO ADA PATRICIA",46657968]
[48567113,"MOGROVEJO TIRADO LUIS ALBERTO",null,"MOGROVEJO TIRADO LUIS ALBERTO",48567113]
[30829106,"MOJOROVICH URIBE RICARDO ALFREDO",null,"MOJOROVICH URIBE RICARDO ALFREDO",30829106]
[30834801,"MOLINA CANAZA JUSTO MAURICIO",null,"MOLINA CANAZA JUSTO MAURICIO",30834801]
[4634628,"MOLINA DELGADO JOSE ARNALDO",null,"MOLINA DELGADO JOSE ARNALDO",4634628]
[30832860,"MOLINA SALAS RENE ANTONIO",null,"MOLINA SALAS RENE ANTONIO",30832860]
[30831257,"MOLINA SONCCO MANUEL",null,"MOLINA SONCCO MANUEL",30831257]
[4650433,"MOLINA ZAMBRANO JUAN MARCEL",null,"MOLINA ZAMBRANO JUAN MARCEL",4650433]
[4636548,"MOLINA ZAMBRANO MILTON KLEM",null,"MOLINA ZAMBRANO MILTON KLEM",4636548]
[42691394,"MONTALVO DIAZ JONNATAN FELIX",null,"MONTALVO DIAZ JONNATAN FELIX",42691394]
[42687970,"MONTALVO DIAZ VICTOR RAUL",null,"MONTALVO DIAZ VICTOR RAUL",42687970]
[30831267,"MONTES DE OCA PACHECO FILIPH PABLO",null,"MONTES DE OCA PACHECO FILIPH PABLO",30831267]
[15595317,"MONTES SIERRA LAUREANO GUSTAVO",null,"MONTES SIERRA LAUREANO GUSTAVO",15595317]
[30820218,"MORALES MATURANA VIDAL AGAPITO",null,"MORALES MATURANA VIDAL AGAPITO",30820218]
[46839588,"MORALES QUISPE BEATRIZ EMILIA",null,"MORALES QUISPE BEATRIZ EMILIA",46839588]
[4651309,"MOROCCO HANCCO MARTIN",null,"MOROCCO HANCCO MARTIN",4651309]
[30822200,"MOROCCO MAMANI JULIAN",null,"MOROCCO MAMANI JULIAN",30822200]
[45833807,"MOROCCO SAIRE JULIAN CESAR",null,"MOROCCO SAIRE JULIAN CESAR",45833807]
[45644842,"MOSCOSO NUÑEZ FERNANDO WILFREDO",null,"MOSCOSO NUÑEZ FERNANDO WILFREDO",45644842]
[4749521,"MOSTAJO ARIAS GUILLERMO HENRY",null,"MOSTAJO ARIAS GUILLERMO HENRY",4749521]
[4633197,"MOSTAJO ZEGARRA VALERIANO HENRY",null,"MOSTAJO ZEGARRA VALERIANO HENRY",4633197]
[45503795,"MUCHICA HUAMANTUMA SOLEDAD YONILDA",null,"MUCHICA HUAMANTUMA SOLEDAD YONILDA",45503795]
[80687547,"MULATO SAFORAS EDGAR JAIME",null,"MULATO SAFORAS EDGAR JAIME",80687547]
[30830500,"MUÑOZ CONDORI FREDDY MANUEL",null,"MUÑOZ CONDORI FREDDY MANUEL",30830500]
[30826841,"MUÑOZ GARCIA LUIS RIGOBERTO",null,"MUÑOZ GARCIA LUIS RIGOBERTO",30826841]
[46484107,"MUÑOZ MOROCO FRANCISCO MARIANO",null,"MUÑOZ MOROCO FRANCISCO MARIANO",46484107]
[30834304,"MURRIEL HUAMAN ADRIAN STALIN",null,"MURRIEL HUAMAN ADRIAN STALIN",30834304]
[4649831,"MURRIEL PINAZO ANDRES ROY",null,"MURRIEL PINAZO ANDRES ROY",4649831]
[2769504,"NAQUICHE CHAVEZ REGINA",null,"NAQUICHE CHAVEZ REGINA",2769504]
[43833224,"NAVARRO CORREA NILTON ROBERTO",null,"NAVARRO CORREA NILTON ROBERTO",43833224]
[30822252,"NAVARRO FLORES SEGUNDO BENIGNO",null,"NAVARRO FLORES SEGUNDO BENIGNO",30822252]
[43151566,"NAVARRO MATURANA BENIGNO",null,"NAVARRO MATURANA BENIGNO",43151566]
[30829177,"NAVARRO SANTILLANA CARLOS OSCAR",null,"NAVARRO SANTILLANA CARLOS OSCAR",30829177]
[41242031,"NAYHUA TAYPE UBALDO",null,"NAYHUA TAYPE UBALDO",41242031]
[41558050,"NEYRA APAZA YOLANDA",null,"NEYRA APAZA YOLANDA",41558050]
[30827579,"NINA APAZA CLAUDIO JESUS",null,"NINA APAZA CLAUDIO JESUS",30827579]
[4625879,"NINA CAQUI GUMERCINDO",null,"NINA CAQUI GUMERCINDO",4625879]
[80623341,"NINA JIHUALLANCA LUIS",null,"NINA JIHUALLANCA LUIS",80623341]
[41479751,"NINA OSNAYO AMELIA",null,"NINA OSNAYO AMELIA",41479751]
[46764797,"NINA PADILLA MELITA",null,"NINA PADILLA MELITA",46764797]
[30833744,"NINA TERNERO DAVID JUAN",null,"NINA TERNERO DAVID JUAN",30833744]
[30832071,"NINA VARGAS CLAUDIO JESUS",null,"NINA VARGAS CLAUDIO JESUS",30832071]
[74977526,"NIZAMA ATOCHE MARIA FRANCESCA",null,"NIZAMA ATOCHE MARIA FRANCESCA",74977526]
[30834468,"NORIEGA MACEDO MIRIAM CELBI",null,"NORIEGA MACEDO MIRIAM CELBI",30834468]
[30831041,"NUÑEZ ALVIZURI MARIANO FERNANDO",null,"NUÑEZ ALVIZURI MARIANO FERNANDO",30831041]
[30827650,"NUÑEZ ALVIZURI MARIO GERMAN",null,"NUÑEZ ALVIZURI MARIO GERMAN",30827650]
[30848659,"NUÑEZ AÑARI ELIZABETH ELIANA",null,"NUÑEZ AÑARI ELIZABETH ELIANA",30848659]
[80265979,"NUÑEZ AÑARI VANESSA MASSIEL",null,"NUÑEZ AÑARI VANESSA MASSIEL",80265979]
[98765432,"NUÑEZ COLOMA CARLOS",null,"NUÑEZ COLOMA CARLOS",98765432]
[2389890,"NUÑEZ DE PARRA MARIE ROS",null,"NUÑEZ DE PARRA MARIE ROS",2389890]
[30835563,"NUÑEZ DEL CARPIO JUAN CARLOS",null,"NUÑEZ DEL CARPIO JUAN CARLOS",30835563]
[41825615,"NUÑEZ GARAY ROBERTO JULIO",null,"NUÑEZ GARAY ROBERTO JULIO",41825615]
[4625448,"NUÑEZ MURILLO JUAN SABINO",null,"NUÑEZ MURILLO JUAN SABINO",4625448]
[30823342,"NUÑEZ PONCE BERLI FERNANDO",null,"NUÑEZ PONCE BERLI FERNANDO",30823342]
[2421431,"NUÑEZ QUIROZ ELARD RICARDO",null,"NUÑEZ QUIROZ ELARD RICARDO",2421431]
[30857298,"NUÑEZ RIVEROS ANGEL RUBEN",null,"NUÑEZ RIVEROS ANGEL RUBEN",30857298]
[45644836,"NUÑEZ RODRIGUEZ RICHARD MANUEL",null,"NUÑEZ RODRIGUEZ RICHARD MANUEL",45644836]
[29537518,"NUÑEZ RODRIGUEZ SULPICIO ILDEFONSO",null,"NUÑEZ RODRIGUEZ SULPICIO ILDEFONSO",29537518]
[44035165,"NUÑEZ TEJADA GUILLERMO RAUL",null,"NUÑEZ TEJADA GUILLERMO RAUL",44035165]
[46424704,"NUÑEZ TEJADA SERGIO ANTONIO",null,"NUÑEZ TEJADA SERGIO ANTONIO",46424704]
[30820989,"NUÑEZ TICONA RAUL VICENTE",null,"NUÑEZ TICONA RAUL VICENTE",30820989]
[30824571,"OBANDO ALVAREZ JOSE EDUARDO",null,"OBANDO ALVAREZ JOSE EDUARDO",30824571]
[41174927,"OBANDO SALAZAR HENRY JAVIER",null,"OBANDO SALAZAR HENRY JAVIER",41174927]
[46842839,"OJEDA FELIPE CARLOS EDUARDO",null,"OJEDA FELIPE CARLOS EDUARDO",46842839]
[3886918,"OLIVA QUISPE MIGUEL ANGEL",null,"OLIVA QUISPE MIGUEL ANGEL",3886918]
[30857220,"OLIVERA YANA AGUSTIN PEDRO",null,"OLIVERA YANA AGUSTIN PEDRO",30857220]
[30836216,"OLIVERA YANA RUBEN",null,"OLIVERA YANA RUBEN",30836216]
[46082278,"OLVEA CHAMBI JHONSON PEDRO",null,"OLVEA CHAMBI JHONSON PEDRO",46082278]
[30834953,"ORDIALES PONCE FREDY CEFERINO",null,"ORDIALES PONCE FREDY CEFERINO",30834953]
[30829747,"ORDOÑEZ ROJAS ANGEL ALBERTO",null,"ORDOÑEZ ROJAS ANGEL ALBERTO",30829747]
[7647132,"ORE TEODORO GIOVANNA CRECENCIA",null,"ORE TEODORO GIOVANNA CRECENCIA",7647132]
[4620375,"ORTIZ CARBAJAL JONY GUILLERMO",null,"ORTIZ CARBAJAL JONY GUILLERMO",4620375]
[73809942,"ORTIZ CARDENAS JUNIOR ALEJANDRO",null,"ORTIZ CARDENAS JUNIOR ALEJANDRO",73809942]
[30835769,"ORTIZ GONZALES ELVIS PERCY",null,"ORTIZ GONZALES ELVIS PERCY",30835769]
[41734309,"ORTIZ GONZALES FIDEL",null,"ORTIZ GONZALES FIDEL",41734309]
[30822089,"ORTIZ MEDINA FIDEL HERMINIO",null,"ORTIZ MEDINA FIDEL HERMINIO",30822089]
[30820266,"ORTIZ MEDINA PERCY MARCELINO",null,"ORTIZ MEDINA PERCY MARCELINO",30820266]
[30823483,"OTAZU SALAS JOSE EDILBERTO",null,"OTAZU SALAS JOSE EDILBERTO",30823483]
[30837465,"PABON SANCHEZ WALTER MARTIN",null,"PABON SANCHEZ WALTER MARTIN",30837465]
[4621667,"PACHECO ASCAÑO FELIPE ROBERTO",null,"PACHECO ASCAÑO FELIPE ROBERTO",4621667]
[4621711,"PACHECO URETA VICTOR",null,"PACHECO URETA VICTOR",4621711]
[40400533,"PACO BENITES RUDY DANIEL",null,"PACO BENITES RUDY DANIEL",40400533]
[46435853,"PACURI QUISPE ALEX RICHARD",null,"PACURI QUISPE ALEX RICHARD",46435853]
[42373382,"PADRON FERNANDEZ JORGE LUIS",null,"PADRON FERNANDEZ JORGE LUIS",42373382]
[30827031,"PAJUELO CARBAJAL JUAN HUGO",null,"PAJUELO CARBAJAL JUAN HUGO",30827031]
[3853027,"PALACIOS CARRASCO LUCIA DOMINGA",null,"PALACIOS CARRASCO LUCIA DOMINGA",3853027]
[40241723,"PALOMINO GALLEGOS MIROSLAVA ZENAIDA",null,"PALOMINO GALLEGOS MIROSLAVA ZENAIDA",40241723]
[42409481,"PAREDES APAZA DE PERICHE MILENY JESSICA",null,"PAREDES APAZA DE PERICHE MILENY JESSICA",42409481]
[4748729,"PAREDES CHIPANA EDGAR DANIEL",null,"PAREDES CHIPANA EDGAR DANIEL",4748729]
[30826077,"PAREDES GOMEZ HERNAN TEODORO",null,"PAREDES GOMEZ HERNAN TEODORO",30826077]
[30827030,"PAREDES GOMEZ NESTOR HUGO",null,"PAREDES GOMEZ NESTOR HUGO",30827030]
[30863335,"PARI BAUTISTA ALEXANDRO ALFREDO",null,"PARI BAUTISTA ALEXANDRO ALFREDO",30863335]
[30830804,"PARI CHEISA FELIX JERONIMO - FALLECIDO",null,"PARI CHEISA FELIX JERONIMO - FALLECIDO",30830804]
[30825802,"PARI MENDOZA AURELIO NICOLAS",null,"PARI MENDOZA AURELIO NICOLAS",30825802]
[30836964,"PARI QUISPE HECTOR MARTIN",null,"PARI QUISPE HECTOR MARTIN",30836964]
[72010990,"PARISACA CUELLO ANTONY YERMY",null,"PARISACA CUELLO ANTONY YERMY",72010990]
[40013860,"PARIZACA LIMA CRISTIAN RUFINO",null,"PARIZACA LIMA CRISTIAN RUFINO",40013860]
[30835609,"PARODI AIZCORBE BRUNO MANUEL",null,"PARODI AIZCORBE BRUNO MANUEL",30835609]
[30836983,"PARRA MAYTA DAVID BACILIO",null,"PARRA MAYTA DAVID BACILIO",30836983]
[80268888,"PARRA MAYTA WASINGTHON HORACIO",null,"PARRA MAYTA WASINGTHON HORACIO",80268888]
[40835816,"PARRA NUÑEZ CHEYLA MASSIELLA",null,"PARRA NUÑEZ CHEYLA MASSIELLA",40835816]
[30835239,"PASTOR CONTRERAS HUGO FERNANDO",null,"PASTOR CONTRERAS HUGO FERNANDO",30835239]
[30836227,"PASTOR CRUZ MARCOS LUIS",null,"PASTOR CRUZ MARCOS LUIS",30836227]
[71924647,"PASTOR GARCIA PABLO CESAR",null,"PASTOR GARCIA PABLO CESAR",71924647]
[30857165,"PASTOR GHERSI RENZO FERNANDO",null,"PASTOR GHERSI RENZO FERNANDO",30857165]
[42658581,"PASTOR TORRES DOMENIKA LORENA",null,"PASTOR TORRES DOMENIKA LORENA",42658581]
[30856124,"PATIÑO BOLIVAR ALFREDO",null,"PATIÑO BOLIVAR ALFREDO",30856124]
[73359018,"PAUCA VASQUEZ NIMROD AARON",null,"PAUCA VASQUEZ NIMROD AARON",73359018]
[30820901,"PAUCAR APAZA HERNAN TEOFILO",null,"PAUCAR APAZA HERNAN TEOFILO",30820901]
[30828629,"PAUCAR CACERES JESUS EPIFANIO",null,"PAUCAR CACERES JESUS EPIFANIO",30828629]
[43024910,"PAUCAR CASAPERALTA POOL MAGNO",null,"PAUCAR CASAPERALTA POOL MAGNO",43024910]
[80502071,"PAZ CARDENAS MIGUEL ANGEL",null,"PAZ CARDENAS MIGUEL ANGEL",80502071]
[45705422,"PAZ VARGAS OSCAR DANIEL",null,"PAZ VARGAS OSCAR DANIEL",45705422]
[71196275,"PAZ VARGAS POMPEYO CESAR",null,"PAZ VARGAS POMPEYO CESAR",71196275]
[30830925,"PEÑA ALARCON DAVID JOSE",null,"PEÑA ALARCON DAVID JOSE",30830925]
[3471537,"PEÑA ATO LESLI ISABEL",null,"PEÑA ATO LESLI ISABEL",3471537]
[30826391,"PEÑA CHAVEZ HUGO CELESTINO",null,"PEÑA CHAVEZ HUGO CELESTINO",30826391]
[30843842,"PERALES ESPINOZA ANGEL LUIS",null,"PERALES ESPINOZA ANGEL LUIS",30843842]
[30825955,"PERALTA DIAZ MAXIMILIANO",null,"PERALTA DIAZ MAXIMILIANO",30825955]
[47497937,"PERALTA MENDOZA ANGER DAVID",null,"PERALTA MENDOZA ANGER DAVID",47497937]
[47185557,"PERALTILLA GUTIERREZ ERICK ALEJANDRO",null,"PERALTILLA GUTIERREZ ERICK ALEJANDRO",47185557]
[45907226,"PEREA CASTILLA JAIME EDUARDO",null,"PEREA CASTILLA JAIME EDUARDO",45907226]
[70481343,"PEREA QUISPE JUAN CARLOS",null,"PEREA QUISPE JUAN CARLOS",70481343]
[70541099,"PEREZ MELGAR RICARDO JHUMET",null,"PEREZ MELGAR RICARDO JHUMET",70541099]
[44634411,"PERICHE DUEÑAS VICTOR ALEJANDRO",null,"PERICHE DUEÑAS VICTOR ALEJANDRO",44634411]
[30831837,"PERRY PUERTAS SANTIAGO ELLIT",null,"PERRY PUERTAS SANTIAGO ELLIT",30831837]
[30832337,"PIMENTEL LAYME GENARO NESTOR",null,"PIMENTEL LAYME GENARO NESTOR",30832337]
[4749054,"PINTO CHOQUE RONNY ROY",null,"PINTO CHOQUE RONNY ROY",4749054]
[4437139,"PINTO LINARES HELBERTH RAFAEL",null,"PINTO LINARES HELBERTH RAFAEL",4437139]
[4635899,"PIZARRO ALCAZAR ESTANISLAO FRANCISCO",null,"PIZARRO ALCAZAR ESTANISLAO FRANCISCO",4635899]
[4630455,"PIZARRO ALCAZAR JESUS ERIC",null,"PIZARRO ALCAZAR JESUS ERIC",4630455]
[4644450,"PIZARRO ALCAZAR JOSE LUIS",null,"PIZARRO ALCAZAR JOSE LUIS",4644450]
[4625839,"PIZARRO ALCAZAR OMAR DOMINGO",null,"PIZARRO ALCAZAR OMAR DOMINGO",4625839]
[78006322,"PIZARRO GUTIERREZ CHRISTIAN NILSON",null,"PIZARRO GUTIERREZ CHRISTIAN NILSON",78006322]
[30831824,"PIZARRO SUMIRE VICTOR GRACIANO",null,"PIZARRO SUMIRE VICTOR GRACIANO",30831824]
[30834516,"PODESTA BEDOYA HENRY MAXIMO",null,"PODESTA BEDOYA HENRY MAXIMO",30834516]
[4622938,"POLANCO LAIME ESPIRITO",null,"POLANCO LAIME ESPIRITO",4622938]
[30832073,"POLAR GUTIERREZ TEOFILO",null,"POLAR GUTIERREZ TEOFILO",30832073]
[30830574,"PONCE DIAZ GUILLERMO",null,"PONCE DIAZ GUILLERMO",30830574]
[30820789,"PONCE PINTO WILLIAN TITO",null,"PONCE PINTO WILLIAN TITO",30820789]
[46030583,"PONTECIL TECSI SERGIO",null,"PONTECIL TECSI SERGIO",46030583]
[4625495,"PORTOCARRERO CALIZAYA CESAR ELMER",null,"PORTOCARRERO CALIZAYA CESAR ELMER",4625495]
[72513078,"PORTOCARRERO LOPEZ AARON ANDREE",null,"PORTOCARRERO LOPEZ AARON ANDREE",72513078]
[45610183,"PORTOCARRERO PAMO LEYTON JOSE AUGUS",null,"PORTOCARRERO PAMO LEYTON JOSE AUGUS",45610183]
[72470359,"PORTUGAL TICONA DANIEL YOSIMAR",null,"PORTUGAL TICONA DANIEL YOSIMAR",72470359]
[30832035,"PUMA NOA HERMANISA EMILIANA",null,"PUMA NOA HERMANISA EMILIANA",30832035]
[4633831,"PUMA SALLO LUCAS",null,"PUMA SALLO LUCAS",4633831]
[80573789,"PURIZACA GONZALES FANNY",null,"PURIZACA GONZALES FANNY",80573789]
[80264952,"QUEA LLERENA JORGE ARMANDO",null,"QUEA LLERENA JORGE ARMANDO",80264952]
[80267694,"QUEA LLERENA JOSE ALBERTO",null,"QUEA LLERENA JOSE ALBERTO",80267694]
[30837793,"QUEA LLERENA LUIS ANTONIO",null,"QUEA LLERENA LUIS ANTONIO",30837793]
[74740196,"QUEREVALU BOYER RUTH ALEJANDRIN",null,"QUEREVALU BOYER RUTH ALEJANDRIN",74740196]
[41416547,"QUIJAHUAMAN MARQUEZ MARITZA ERIKA",null,"QUIJAHUAMAN MARQUEZ MARITZA ERIKA",41416547]
[42302395,"QUIJANO HUAMANCONDOR ROBINSON RUTDOL",null,"QUIJANO HUAMANCONDOR ROBINSON RUTDOL",42302395]
[29337494,"QUILLA LLAMOSAS THELMA GUADALUPE",null,"QUILLA LLAMOSAS THELMA GUADALUPE",29337494]
[29335198,"QUINTANA CHOQUEHUANCA JOSE LUIS",null,"QUINTANA CHOQUEHUANCA JOSE LUIS",29335198]
[30823853,"QUIRITA HUAYHUA CIPRIANO",null,"QUIRITA HUAYHUA CIPRIANO",30823853]
[40141622,"QUIRITA TESILLO HENRY CESAR",null,"QUIRITA TESILLO HENRY CESAR",40141622]
[47704530,"QUISPE ASTUDILLO CHRISTIAN ALBERTO",null,"QUISPE ASTUDILLO CHRISTIAN ALBERTO",47704530]
[47774762,"QUISPE CABANA CARMEN RUTH",null,"QUISPE CABANA CARMEN RUTH",47774762]
[186366,"QUISPE CCAMA EDGAR",null,"QUISPE CCAMA EDGAR",186366]
[30856375,"QUISPE CHAMPI FAUSTINO",null,"QUISPE CHAMPI FAUSTINO",30856375]
[30837223,"QUISPE COARICONA FLAVIO",null,"QUISPE COARICONA FLAVIO",30837223]
[30835565,"QUISPE CONTRERAS VICTOR JORGE",null,"QUISPE CONTRERAS VICTOR JORGE",30835565]
[30863378,"QUISPE CRUZ LUZDINA NORMA",null,"QUISPE CRUZ LUZDINA NORMA",30863378]
[46304511,"QUISPE LUPACCA JOSE LUIS",null,"QUISPE LUPACCA JOSE LUIS",46304511]
[1553483,"QUISPE MIRANDA OLGA ROSA",null,"QUISPE MIRANDA OLGA ROSA",1553483]
[30833782,"QUISPE PHALA TITO ROLANDO",null,"QUISPE PHALA TITO ROLANDO",30833782]
[24581276,"QUISPE QUISPE JULIO",null,"QUISPE QUISPE JULIO",24581276]
[42949096,"QUISPE QUISPE MORAYMA DELIA",null,"QUISPE QUISPE MORAYMA DELIA",42949096]
[30842053,"QUISPE QUISPE NERI ROBERTO",null,"QUISPE QUISPE NERI ROBERTO",30842053]
[30863594,"QUISPE RAMOS VICTORIA FELICITAS",null,"QUISPE RAMOS VICTORIA FELICITAS",30863594]
[30847888,"QUISPE RODRIGO DE CHAVARREA ELBA NATIVIDAD",null,"QUISPE RODRIGO DE CHAVARREA ELBA NATIVIDAD",30847888]
[47394628,"QUISPE ROJAS MAGALY PAOLA",null,"QUISPE ROJAS MAGALY PAOLA",47394628]
[467093,"QUISPE ROSPIGLIOSI HUGO ALBERTO",null,"QUISPE ROSPIGLIOSI HUGO ALBERTO",467093]
[76405206,"QUISPE SAYCO DEYSI",null,"QUISPE SAYCO DEYSI",76405206]
[29516928,"QUISPE YAURI AGUSTIN",null,"QUISPE YAURI AGUSTIN",29516928]
[32916495,"RACCHUMI FERNANDEZ HECTOR JESUS",null,"RACCHUMI FERNANDEZ HECTOR JESUS",32916495]
[4633313,"RAMIREZ BALLESTEROS WALTER MARCELINO",null,"RAMIREZ BALLESTEROS WALTER MARCELINO",4633313]
[73372600,"RAMIREZ BARREDA ANGEL JOSE MANUE",null,"RAMIREZ BARREDA ANGEL JOSE MANUE",73372600]
[40948134,"RAMIREZ BEJARANO FERNANDO ENRIQUE",null,"RAMIREZ BEJARANO FERNANDO ENRIQUE",40948134]
[4632873,"RAMIREZ FLORES ERNESTO ANDRES",null,"RAMIREZ FLORES ERNESTO ANDRES",4632873]
[3642981,"RAMIREZ MORAN TANYA",null,"RAMIREZ MORAN TANYA",3642981]
[4651359,"RAMIREZ SANCHEZ JOSE MANUEL",null,"RAMIREZ SANCHEZ JOSE MANUEL",4651359]
[46540030,"RAMIREZ SOTO JOHN JESUS",null,"RAMIREZ SOTO JOHN JESUS",46540030]
[30826530,"RAMIREZ TALAVERA JESUS HERNAN",null,"RAMIREZ TALAVERA JESUS HERNAN",30826530]
[799900,"RAMIREZ VELARDE OSCAR ARMANDO",null,"RAMIREZ VELARDE OSCAR ARMANDO",799900]
[40572330,"RAMIREZ ZUÑIGA CARLOS ALBERTO",null,"RAMIREZ ZUÑIGA CARLOS ALBERTO",40572330]
[30833578,"RAMIREZ ZUÑIGA JUAN ANGEL",null,"RAMIREZ ZUÑIGA JUAN ANGEL",30833578]
[46295551,"RAMOS ECHEGARAY JULIO MAURICIO",null,"RAMOS ECHEGARAY JULIO MAURICIO",46295551]
[47311813,"RAMOS ECHEGARAY LUIS MIGUEL",null,"RAMOS ECHEGARAY LUIS MIGUEL",47311813]
[71991212,"RAMOS GALLEGOS LUIS ALFREDO",null,"RAMOS GALLEGOS LUIS ALFREDO",71991212]
[30831247,"RAMOS NAVARRO DENIS HERIBERTO",null,"RAMOS NAVARRO DENIS HERIBERTO",30831247]
[30831174,"RAMOS NAVARRO PEPE VICENTE",null,"RAMOS NAVARRO PEPE VICENTE",30831174]
[30850360,"RAMOS NUÑEZ JULIO GREGORIO",null,"RAMOS NUÑEZ JULIO GREGORIO",30850360]
[30820875,"RAMOS NUÑEZ VICTOR HUILMER",null,"RAMOS NUÑEZ VICTOR HUILMER",30820875]
[48539330,"RAMOS PACO GERARDO PERCY",null,"RAMOS PACO GERARDO PERCY",48539330]
[46549050,"RAMOS PACO LISSETH NOHELIA",null,"RAMOS PACO LISSETH NOHELIA",46549050]
[47234593,"RAMOS SIVINCHA EUSEBIA",null,"RAMOS SIVINCHA EUSEBIA",47234593]
[30831574,"RAMOS VILCA JESUS",null,"RAMOS VILCA JESUS",30831574]
[4620716,"REINOSO CHOCANO WALTER NESTOR",null,"REINOSO CHOCANO WALTER NESTOR",4620716]
[30836496,"REYES MUÑOZ ALEJANDRO ALBERTO",null,"REYES MUÑOZ ALEJANDRO ALBERTO",30836496]
[10738624,"REYES ZAMBRANO REYNA",null,"REYES ZAMBRANO REYNA",10738624]
[4622923,"REYNOSO CHOCANO JORGE VICTOR",null,"REYNOSO CHOCANO JORGE VICTOR",4622923]
[6795072,"RIEGA ORAMOS GREGORIO EDGARD",null,"RIEGA ORAMOS GREGORIO EDGARD",6795072]
[30830192,"RIEGA PRADO ROLANDO LEON",null,"RIEGA PRADO ROLANDO LEON",30830192]
[44763685,"RIOS PEREYRA KARINA",null,"RIOS PEREYRA KARINA",44763685]
[30837285,"RIVERA ALVAREZ JUAN PABLO",null,"RIVERA ALVAREZ JUAN PABLO",30837285]
[30832024,"RIVERA BARREDA JOSE ALFREDO",null,"RIVERA BARREDA JOSE ALFREDO",30832024]
[4622607,"RIVERA CARDENAS LUIS ALBERTO",null,"RIVERA CARDENAS LUIS ALBERTO",4622607]
[30826033,"RIVERA PAREJA ELIAS ANDRES MIGUEL",null,"RIVERA PAREJA ELIAS ANDRES MIGUEL",30826033]
[40300097,"RIVERA PORTOCARRERO DAVID ADALBERTO",null,"RIVERA PORTOCARRERO DAVID ADALBERTO",40300097]
[44659196,"RIVERA RODRIGUEZ JOSE LUIS",null,"RIVERA RODRIGUEZ JOSE LUIS",44659196]
[72567712,"RIVERA RODRIGUEZ LUCIA EMILY",null,"RIVERA RODRIGUEZ LUCIA EMILY",72567712]
[30836676,"RIVERA VALENCIA JULIO CESAR",null,"RIVERA VALENCIA JULIO CESAR",30836676]
[30831830,"RIVERA ZEGARRA LUIS FELIX",null,"RIVERA ZEGARRA LUIS FELIX",30831830]
[46566149,"ROCCA SANTA CRUZ RAQUELA",null,"ROCCA SANTA CRUZ RAQUELA",46566149]
[4623173,"RODRIGUEZ ALVAREZ HUGO JULIO",null,"RODRIGUEZ ALVAREZ HUGO JULIO",4623173]
[30830921,"RODRIGUEZ AVILA MARIO DONATO",null,"RODRIGUEZ AVILA MARIO DONATO",30830921]
[30826670,"RODRIGUEZ CAMPOS JOSE LUIS ALBERTO",null,"RODRIGUEZ CAMPOS JOSE LUIS ALBERTO",30826670]
[30822756,"RODRIGUEZ CASAPIA ROBERTO LUCAS",null,"RODRIGUEZ CASAPIA ROBERTO LUCAS",30822756]
[42461564,"RODRIGUEZ DELGADO MIGUEL ANGEL",null,"RODRIGUEZ DELGADO MIGUEL ANGEL",42461564]
[30833587,"RODRIGUEZ ESTRADA JORGE ROOSEVELT",null,"RODRIGUEZ ESTRADA JORGE ROOSEVELT",30833587]
[4627196,"RODRIGUEZ JUAREZ JORGE LUIS",null,"RODRIGUEZ JUAREZ JORGE LUIS",4627196]
[30849504,"RODRIGUEZ MARREROS MARTIN RICARDO",null,"RODRIGUEZ MARREROS MARTIN RICARDO",30849504]
[30831850,"RODRIGUEZ MARREROS NICOLAS DOMINGO",null,"RODRIGUEZ MARREROS NICOLAS DOMINGO",30831850]
[4620921,"RODRIGUEZ PONCE CARLOS PAULO",null,"RODRIGUEZ PONCE CARLOS PAULO",4620921]
[30836899,"RODRIGUEZ RAMOS ARIANNA ANJANA KARINA",null,"RODRIGUEZ RAMOS ARIANNA ANJANA KARINA",30836899]
[41162562,"RODRIGUEZ RAMOS BRUCE ROBERTO ROLANDO",null,"RODRIGUEZ RAMOS BRUCE ROBERTO ROLANDO",41162562]
[77432386,"RODRIGUEZ REYES JUAN CARLOS",null,"RODRIGUEZ REYES JUAN CARLOS",77432386]
[25691950,"RODRIGUEZ ZAVALAGA ROBERTO AURELIO HUGO",null,"RODRIGUEZ ZAVALAGA ROBERTO AURELIO HUGO",25691950]
[40951940,"RODRIGUEZ ZUÑIGA RICARDO JESUS",null,"RODRIGUEZ ZUÑIGA RICARDO JESUS",40951940]
[4643178,"ROJAS CARDENAS CESAR ALBERTO",null,"ROJAS CARDENAS CESAR ALBERTO",4643178]
[44628887,"ROJAS OCHOA SUSAN HELLEN",null,"ROJAS OCHOA SUSAN HELLEN",44628887]
[30820767,"ROJAS QUISPE MARIO SEGUNDO",null,"ROJAS QUISPE MARIO SEGUNDO",30820767]
[4643079,"ROJAS QUISPE SABINO ANDRES",null,"ROJAS QUISPE SABINO ANDRES",4643079]
[30856595,"ROMERO NUÑEZ CARLOS ALBERTO",null,"ROMERO NUÑEZ CARLOS ALBERTO",30856595]
[172622,"ROMERO OCHAVANO ENITH",null,"ROMERO OCHAVANO ENITH",172622]
[30563295,"RONCALLA AGUIRRE CAMILO EDGAR BELISARIO",null,"RONCALLA AGUIRRE CAMILO EDGAR BELISARIO",30563295]
[30863574,"RONDON FLORES MARLENE JULIA",null,"RONDON FLORES MARLENE JULIA",30863574]
[44731772,"ROQUE ARIZACA MILDER MARIELA",null,"ROQUE ARIZACA MILDER MARIELA",44731772]
[4620974,"ROQUE CHOCANO BENEDICTO DOMINGO",null,"ROQUE CHOCANO BENEDICTO DOMINGO",4620974]
[4623932,"ROQUE CHOCANO JUAN GUILLERMO",null,"ROQUE CHOCANO JUAN GUILLERMO",4623932]
[30863257,"ROQUE MACHACA ELIDA LIZ",null,"ROQUE MACHACA ELIDA LIZ",30863257]
[4652969,"ROQUE ROQUE CIPRIANO CIRILO",null,"ROQUE ROQUE CIPRIANO CIRILO",4652969]
[30845158,"ROQUE TAPIA JUAN",null,"ROQUE TAPIA JUAN",30845158]
[42568769,"ROSADO  LUIS EDUARDO",null,"ROSADO  LUIS EDUARDO",42568769]
[44244494,"ROSAS ALVAREZ LOURDES MARIBEL",null,"ROSAS ALVAREZ LOURDES MARIBEL",44244494]
[4621123,"RUIZ ROSPIGLIOSI SEGUNDO OSCAR",null,"RUIZ ROSPIGLIOSI SEGUNDO OSCAR",4621123]
[30848395,"SAAVEDRA DE GORDILLO MERY SOLEDAD",null,"SAAVEDRA DE GORDILLO MERY SOLEDAD",30848395]
[30837575,"SAAVEDRA DURAND CARLOS HERNAN",null,"SAAVEDRA DURAND CARLOS HERNAN",30837575]
[30831539,"SAAVEDRA RODRIGO GONZALO",null,"SAAVEDRA RODRIGO GONZALO",30831539]
[76800715,"SAGASTEGUI FLORES MIGUEL ANGEL",null,"SAGASTEGUI FLORES MIGUEL ANGEL",76800715]
[40736048,"SAHUA QUISPE JULIO MANUEL",null,"SAHUA QUISPE JULIO MANUEL",40736048]
[30821852,"SAIRE ALVAREZ AQUILINO RUBEN",null,"SAIRE ALVAREZ AQUILINO RUBEN",30821852]
[30833736,"SAIRE CASTRO CARLOS",null,"SAIRE CASTRO CARLOS",30833736]
[30863264,"SAIRITUPAC APAZA ROSA LUPE",null,"SAIRITUPAC APAZA ROSA LUPE",30863264]
[46506998,"SALAS BASURCO LUIYI DIAGO",null,"SALAS BASURCO LUIYI DIAGO",46506998]
[30826312,"SALAS GONDOLIAS GABRIEL ROLANDO",null,"SALAS GONDOLIAS GABRIEL ROLANDO",30826312]
[42845454,"SALAS LLERENA NATALI LADY",null,"SALAS LLERENA NATALI LADY",42845454]
[72675821,"SALAS PORTUGAL RIVALDO VIERI",null,"SALAS PORTUGAL RIVALDO VIERI",72675821]
[41734307,"SALAS RIVERA ROLANDO GERARDO",null,"SALAS RIVERA ROLANDO GERARDO",41734307]
[30856205,"SALAS SAGASTEGUI CESAR AUGUSTO",null,"SALAS SAGASTEGUI CESAR AUGUSTO",30856205]
[80623733,"SALAS SALAS PABLO CESAR",null,"SALAS SALAS PABLO CESAR",80623733]
[71122432,"SALAS TICONA LUIS RAUL",null,"SALAS TICONA LUIS RAUL",71122432]
[30828659,"SALAS TICONA VICTOR LEONARDO",null,"SALAS TICONA VICTOR LEONARDO",30828659]
[71979127,"SALAS TICONA YORGINO RODRIGO",null,"SALAS TICONA YORGINO RODRIGO",71979127]
[27283817,"SALAZAR ARTEAGA PEDRO DONALDO",null,"SALAZAR ARTEAGA PEDRO DONALDO",27283817]
[30821935,"SALAZAR BELTRAN JULIO CESAR",null,"SALAZAR BELTRAN JULIO CESAR",30821935]
[30833857,"SALAZAR CHAVEZ GASPAR ALEJANDRO",null,"SALAZAR CHAVEZ GASPAR ALEJANDRO",30833857]
[46126749,"SALAZAR FRANCO CARLOS ALBERTO",null,"SALAZAR FRANCO CARLOS ALBERTO",46126749]
[45196321,"SALAZAR FRANCO WALDIR MANUEL",null,"SALAZAR FRANCO WALDIR MANUEL",45196321]
[30825439,"SALAZAR GALLEGOS MANUEL ASCENCIO",null,"SALAZAR GALLEGOS MANUEL ASCENCIO",30825439]
[48796318,"SALAZAR GUZMAN DELIA STEFANY",null,"SALAZAR GUZMAN DELIA STEFANY",48796318]
[41631232,"SALAZAR QUINTANA CESAR ALBERTO",null,"SALAZAR QUINTANA CESAR ALBERTO",41631232]
[45502003,"SALAZAR ROSPIGLIOSI HECTOR ALFONSO",null,"SALAZAR ROSPIGLIOSI HECTOR ALFONSO",45502003]
[42936754,"SALCEDO CALATAYUD EDUARDO ELADIO",null,"SALCEDO CALATAYUD EDUARDO ELADIO",42936754]
[42936748,"SALCEDO CALATAYUD MARCELO ELADIO",null,"SALCEDO CALATAYUD MARCELO ELADIO",42936748]
[30830037,"SALCEDO CHAVEZ ELADIO",null,"SALCEDO CHAVEZ ELADIO",30830037]
[76574995,"SALCEDO TEJADA CARLOS HERMOGENES",null,"SALCEDO TEJADA CARLOS HERMOGENES",76574995]
[24957965,"SALCEDO TTITO GUIDO",null,"SALCEDO TTITO GUIDO",24957965]
[4628860,"SALGADO VARGAS EDUARDO ELOY",null,"SALGADO VARGAS EDUARDO ELOY",4628860]
[4631821,"SALGADO VARGAS JULIO CARLOS",null,"SALGADO VARGAS JULIO CARLOS",4631821]
[4624200,"SALINAS ALCAZAR ARMANDO CIRO",null,"SALINAS ALCAZAR ARMANDO CIRO",4624200]
[30830701,"SALINAS VILLAVICENCIO JAIME JUAN",null,"SALINAS VILLAVICENCIO JAIME JUAN",30830701]
[73218812,"SALINAS ZUÑIGA GIOVANI ALEXANDER",null,"SALINAS ZUÑIGA GIOVANI ALEXANDER",73218812]
[15688709,"SALVADOR CHAFALOTE DE ARAMBULO GLADYS NOELIA",null,"SALVADOR CHAFALOTE DE ARAMBULO GLADYS NOELIA",15688709]
[40442814,"SAMANAMUD GUERRERO CLAUDINA VERONICA",null,"SAMANAMUD GUERRERO CLAUDINA VERONICA",40442814]
[30836412,"SANCHEZ - LUIS ALBERTO",null,"SANCHEZ - LUIS ALBERTO",30836412]
[30836382,"SANCHEZ BARRIGA EDDY OSWALDO",null,"SANCHEZ BARRIGA EDDY OSWALDO",30836382]
[41160499,"SANCHEZ FERNANDEZ FERNANDO MIGUEL",null,"SANCHEZ FERNANDEZ FERNANDO MIGUEL",41160499]
[29245541,"SANCHEZ RODRIGUEZ HERBET AUGUSTO",null,"SANCHEZ RODRIGUEZ HERBET AUGUSTO",29245541]
[43512513,"SANDOVAL BECERRA FIORELA",null,"SANDOVAL BECERRA FIORELA",43512513]
[48735801,"SANTAMARINA CARI FERNANDO ALEXANDER",null,"SANTAMARINA CARI FERNANDO ALEXANDER",48735801]
[71976497,"SANTANA QUISPE ERICK PAUL",null,"SANTANA QUISPE ERICK PAUL",71976497]
[29271661,"SANTANA SANCHEZ MARCOS ZENON",null,"SANTANA SANCHEZ MARCOS ZENON",29271661]
[30827630,"SANTANA ZUÑIGA DOMINGO TEOFILO",null,"SANTANA ZUÑIGA DOMINGO TEOFILO",30827630]
[30828638,"SANTISTEBAN DEL CARPIO HENRY DAMIAN",null,"SANTISTEBAN DEL CARPIO HENRY DAMIAN",30828638]
[25858533,"SANTOME VARGAS GUSTAVO DAVID",null,"SANTOME VARGAS GUSTAVO DAVID",25858533]
[30863211,"SANTOYO CHALCO LUIS HERNAN",null,"SANTOYO CHALCO LUIS HERNAN",30863211]
[41117585,"SEGOVIA ZAPATA MILAGROS CAROLINA",null,"SEGOVIA ZAPATA MILAGROS CAROLINA",41117585]
[30832328,"SEGURA GONZALES JUAN PEDRO",null,"SEGURA GONZALES JUAN PEDRO",30832328]
[30856437,"SERNA VARGAS JOSE ARTURO",null,"SERNA VARGAS JOSE ARTURO",30856437]
[30821842,"SERNA VARGAS RUPERTO",null,"SERNA VARGAS RUPERTO",30821842]
[47341108,"SERNAQUE SILUPU GINA ELIZABETH",null,"SERNAQUE SILUPU GINA ELIZABETH",47341108]
[4651901,"SILES YAYICO EUSEBIO AMERICO",null,"SILES YAYICO EUSEBIO AMERICO",4651901]
[30863703,"SILVA QUISPE JANETH MARGARITA",null,"SILVA QUISPE JANETH MARGARITA",30863703]
[30863401,"SILVA QUISPE MARIA EUGENIA",null,"SILVA QUISPE MARIA EUGENIA",30863401]
[41962871,"SOLANO DEL CASTILLO JONATHAN MARCO",null,"SOLANO DEL CASTILLO JONATHAN MARCO",41962871]
[460858,"SOLOGUREN MEJIA EVERTH WILSON",null,"SOLOGUREN MEJIA EVERTH WILSON",460858]
[48585128,"SONCO CASANI GUILLERMO SANDRO",null,"SONCO CASANI GUILLERMO SANDRO",48585128]
[46640721,"SORIA DIAZ LUIS GUSTAVO",null,"SORIA DIAZ LUIS GUSTAVO",46640721]
[30837868,"SOSA ARENAS SILVIO VIDAL",null,"SOSA ARENAS SILVIO VIDAL",30837868]
[4648286,"SOTELO CORNEJO RAUL RICARDO",null,"SOTELO CORNEJO RAUL RICARDO",4648286]
[30863586,"SOTERO BARRIOS MERCEDES LUZ MARINA",null,"SOTERO BARRIOS MERCEDES LUZ MARINA",30863586]
[4629630,"SOTO ALFARO RUPERTO",null,"SOTO ALFARO RUPERTO",4629630]
[4623547,"SOTO RAVELO JAVIER",null,"SOTO RAVELO JAVIER",4623547]
[45077426,"SOTO SALAS JHONATAN GIANCARLO",null,"SOTO SALAS JHONATAN GIANCARLO",45077426]
[44962639,"SOTO TORRES CARLOS ALEXIS",null,"SOTO TORRES CARLOS ALEXIS",44962639]
[41603140,"SUCASACA HUAMAN HUGO",null,"SUCASACA HUAMAN HUGO",41603140]
[75070067,"SULCA SEGOVIA JERSON FERNANDO",null,"SULCA SEGOVIA JERSON FERNANDO",75070067]
[30837759,"SUPO ANCCO SAMUEL JORGE",null,"SUPO ANCCO SAMUEL JORGE",30837759]
[9586675,"SUYO IGNACIO MARIA MAGDALENA",null,"SUYO IGNACIO MARIA MAGDALENA",9586675]
[30863338,"TACA RUELAS RAFAEL JOSE",null,"TACA RUELAS RAFAEL JOSE",30863338]
[46462187,"TAIPE ANAHUATINTA YENNY",null,"TAIPE ANAHUATINTA YENNY",46462187]
[30837238,"TAIRO VEGA EDUARDO GIRALDO",null,"TAIRO VEGA EDUARDO GIRALDO",30837238]
[4627296,"TALAVERA FERNANDEZ GILMAR SANTOS",null,"TALAVERA FERNANDEZ GILMAR SANTOS",4627296]
[30829597,"TALAVERA QUEA ALBINO GREGORIO",null,"TALAVERA QUEA ALBINO GREGORIO",30829597]
[42225776,"TAMAYO SALINAS TEDDY HECTOR",null,"TAMAYO SALINAS TEDDY HECTOR",42225776]
[30422201,"TAPIA ROMERO RITA ISABEL",null,"TAPIA ROMERO RITA ISABEL",30422201]
[30836999,"TASSARA CHIRINOS JOSEPH OCTAVIO",null,"TASSARA CHIRINOS JOSEPH OCTAVIO",30836999]
[30825267,"TEJADA ALVAREZ ALVARO ANDRES",null,"TEJADA ALVAREZ ALVARO ANDRES",30825267]
[30826332,"TEJADA ALVAREZ DOMINGO JUAN GUILLERMO",null,"TEJADA ALVAREZ DOMINGO JUAN GUILLERMO",30826332]
[30824343,"TEJADA ALVAREZ PEDRO ROBERTO",null,"TEJADA ALVAREZ PEDRO ROBERTO",30824343]
[70760098,"TEJADA CHAVEZ VLADIMIR ALEXANDER",null,"TEJADA CHAVEZ VLADIMIR ALEXANDER",70760098]
[30842647,"TERNERO GAMBOA VICENTE ALEJANDRO",null,"TERNERO GAMBOA VICENTE ALEJANDRO",30842647]
[44473225,"TERNERO GUERRA HEYSON ALEJANDRO",null,"TERNERO GUERRA HEYSON ALEJANDRO",44473225]
[46735970,"TERNERO GUERRA JUAN MANUEL",null,"TERNERO GUERRA JUAN MANUEL",46735970]
[30830136,"TICONA ANTEZANA RAUL JERONIMO",null,"TICONA ANTEZANA RAUL JERONIMO",30830136]
[4748137,"TICONA MAMANI NELSON OSWALDO",null,"TICONA MAMANI NELSON OSWALDO",4748137]
[30823078,"TICONA NORATTO HUGO ANDRES",null,"TICONA NORATTO HUGO ANDRES",30823078]
[4632115,"TICONA NUÑEZ BRAULIO TEODOCIO",null,"TICONA NUÑEZ BRAULIO TEODOCIO",4632115]
[30837086,"TICONA PRADO FRANCISCO HECTOR",null,"TICONA PRADO FRANCISCO HECTOR",30837086]
[30836997,"TICONA PRADO HUBERT CARLOS",null,"TICONA PRADO HUBERT CARLOS",30836997]
[76677434,"TICONA PRADO JULIO CESAR",null,"TICONA PRADO JULIO CESAR",76677434]
[42333709,"TIPO MANCILLA YUDITH ESMERALDA",null,"TIPO MANCILLA YUDITH ESMERALDA",42333709]
[30863363,"TISNADO CHURA DE ALIAGA MARGARITA CRISTINA",null,"TISNADO CHURA DE ALIAGA MARGARITA CRISTINA",30863363]
[4646697,"TOALA TOALA CARLOS ELMER",null,"TOALA TOALA CARLOS ELMER",4646697]
[70815664,"TORRE ILACAMA JUNIOR AGUSTIN",null,"TORRE ILACAMA JUNIOR AGUSTIN",70815664]
[62811537,"TORREALVA PARQUE YAIR",null,"TORREALVA PARQUE YAIR",62811537]
[30846881,"TORRES APAZA JOSE FERNANDO",null,"TORRES APAZA JOSE FERNANDO",30846881]
[40040443,"TORRES BENITES GIANCARLO",null,"TORRES BENITES GIANCARLO",40040443]
[30857231,"TORRES BUSTAMANTE MARCELO ALEJANDRO",null,"TORRES BUSTAMANTE MARCELO ALEJANDRO",30857231]
[42640150,"TORRES CLAVERIAS CRISTHIAN FERNANDO",null,"TORRES CLAVERIAS CRISTHIAN FERNANDO",42640150]
[4649039,"TORRES CRUZ CARLOS ENRIQUE",null,"TORRES CRUZ CARLOS ENRIQUE",4649039]
[32971198,"TORRES MACHACA ALBERTO FRANCISCO",null,"TORRES MACHACA ALBERTO FRANCISCO",32971198]
[23958501,"TORRES RODRIGUEZ REONIL HOMERO",null,"TORRES RODRIGUEZ REONIL HOMERO",23958501]
[40569213,"TORRES TARQUE JUAN CARLOS",null,"TORRES TARQUE JUAN CARLOS",40569213]
[4629398,"TRAUCO MALDONADO EDGAR",null,"TRAUCO MALDONADO EDGAR",4629398]
[46348103,"TREVIÑO MENACHO NORKA NELLY",null,"TREVIÑO MENACHO NORKA NELLY",46348103]
[42015616,"TTITO GUTIERREZ NEVEZA",null,"TTITO GUTIERREZ NEVEZA",42015616]
[4629214,"UGARTE LEANDRO ROLANDO",null,"UGARTE LEANDRO ROLANDO",4629214]
[44174653,"UNGARO CURASI CARLOS ALBERTO",null,"UNGARO CURASI CARLOS ALBERTO",44174653]
[47185921,"URQUIA ROJAS MARINA EUGENIA",null,"URQUIA ROJAS MARINA EUGENIA",47185921]
[25714332,"URRUTIA NEYRA JUAN JOSE",null,"URRUTIA NEYRA JUAN JOSE",25714332]
[16570832,"VALDERRAMA SALAS SEGUNDO MANUEL",null,"VALDERRAMA SALAS SEGUNDO MANUEL",16570832]
[40842798,"VALDEZ ACARAPI ELIZABETH JULIANA",null,"VALDEZ ACARAPI ELIZABETH JULIANA",40842798]
[43183495,"VALDEZ FLORES DARWIN SALVADOR",null,"VALDEZ FLORES DARWIN SALVADOR",43183495]
[4628381,"VALDEZ MARTINEZ JESUS MARCELINO",null,"VALDEZ MARTINEZ JESUS MARCELINO",4628381]
[41333318,"VALDEZ MEZA ERIC DIONICIO",null,"VALDEZ MEZA ERIC DIONICIO",41333318]
[4629118,"VALDIVIA ASCAÑO LUIS APOLINAR",null,"VALDIVIA ASCAÑO LUIS APOLINAR",4629118]
[70480225,"VALDIVIA CARDENAS CARLOS ALBERTO",null,"VALDIVIA CARDENAS CARLOS ALBERTO",70480225]
[41494242,"VALDIVIA CUTIRE ADOLFO MANUEL",null,"VALDIVIA CUTIRE ADOLFO MANUEL",41494242]
[40998453,"VALDIVIA GONZALES ROMEL MANUEL",null,"VALDIVIA GONZALES ROMEL MANUEL",40998453]
[30827232,"VALDIVIA MONTES LUIS ALONSO",null,"VALDIVIA MONTES LUIS ALONSO",30827232]
[30833555,"VALDIVIA MOSTAJO JOSE LUIS",null,"VALDIVIA MOSTAJO JOSE LUIS",30833555]
[30822851,"VALDIVIA PACHECO JOSE LUIS",null,"VALDIVIA PACHECO JOSE LUIS",30822851]
[30825748,"VALDIVIA PALACIOS JUAN FRANCISCO",null,"VALDIVIA PALACIOS JUAN FRANCISCO",30825748]
[30826290,"VALDIVIA PALACIOS MANUEL IGNACIO",null,"VALDIVIA PALACIOS MANUEL IGNACIO",30826290]
[4631678,"VALDIVIA PAZ MANUEL LEONCIO",null,"VALDIVIA PAZ MANUEL LEONCIO",4631678]
[30826732,"VALDIVIA PEREZ LUIS ENRIQUE MELECIO",null,"VALDIVIA PEREZ LUIS ENRIQUE MELECIO",30826732]
[30836204,"VALDIVIA SANCHEZ FREDY ROLANDO",null,"VALDIVIA SANCHEZ FREDY ROLANDO",30836204]
[30823632,"VALDIVIA TRILLO JOSE PEDRO HENRRY",null,"VALDIVIA TRILLO JOSE PEDRO HENRRY",30823632]
[30835296,"VALDIVIA VILLAVICENCIO VERONICA YVONNE",null,"VALDIVIA VILLAVICENCIO VERONICA YVONNE",30835296]
[30822822,"VALDIVIA VIZCARRA JAIME HENRRY",null,"VALDIVIA VIZCARRA JAIME HENRRY",30822822]
[30835556,"VALDIVIA ZEVALLOS JOSE LUIS",null,"VALDIVIA ZEVALLOS JOSE LUIS",30835556]
[30823222,"VALENZUELA CHACON JORGE EUSEBIO",null,"VALENZUELA CHACON JORGE EUSEBIO",30823222]
[30863448,"VALERIANO MOJO CAROLINA ELIANA",null,"VALERIANO MOJO CAROLINA ELIANA",30863448]
[29514926,"VALERIANO MOJO TERESA",null,"VALERIANO MOJO TERESA",29514926]
[74054337,"VALERIANO VALERIANO DANIELA JEANNETH",null,"VALERIANO VALERIANO DANIELA JEANNETH",74054337]
[74053716,"VALERIANO VALERIANO MONICA DEL PILAR",null,"VALERIANO VALERIANO MONICA DEL PILAR",74053716]
[4622117,"VARGAS ALMESTAR VICTOR RAUL",null,"VARGAS ALMESTAR VICTOR RAUL",4622117]
[2414377,"VARGAS GOMEZ RICHARDS ALEXANDER",null,"VARGAS GOMEZ RICHARDS ALEXANDER",2414377]
[30820425,"VARGAS NEYRA ISMAEL GRIMALDO",null,"VARGAS NEYRA ISMAEL GRIMALDO",30820425]
[30824948,"VARGAS ROJAS ARMANDO",null,"VARGAS ROJAS ARMANDO",30824948]
[4626677,"VARGAS ROJAS REYNALDO CRISTOBAL",null,"VARGAS ROJAS REYNALDO CRISTOBAL",4626677]
[30830013,"VARGAS TEJADA ALEJANDRO SABINO",null,"VARGAS TEJADA ALEJANDRO SABINO",30830013]
[30863524,"VARGAS TIRADO ANA TEODORA",null,"VARGAS TIRADO ANA TEODORA",30863524]
[80423634,"VARGAS VARGAS LUIS ARMANDO",null,"VARGAS VARGAS LUIS ARMANDO",80423634]
[40327726,"VASQUEZ HUARACHA JENNY ROCIO",null,"VASQUEZ HUARACHA JENNY ROCIO",40327726]
[4650914,"VASQUEZ PORRAS HUGO ROBERTO",null,"VASQUEZ PORRAS HUGO ROBERTO",4650914]
[41893352,"VASQUEZ ROJAS ROBERTO CARLOS",null,"VASQUEZ ROJAS ROBERTO CARLOS",41893352]
[30821167,"VEGA DELGADO CESAR LUIS",null,"VEGA DELGADO CESAR LUIS",30821167]
[30825663,"VEGA DELGADO EFRAIN DOMINGO",null,"VEGA DELGADO EFRAIN DOMINGO",30825663]
[30846781,"VELA VILLEGAS JORGE ANTONIO",null,"VELA VILLEGAS JORGE ANTONIO",30846781]
[43053799,"VELARDE CASAVERDE JUAN CARLOS",null,"VELARDE CASAVERDE JUAN CARLOS",43053799]
[30830101,"VELASQUEZ APAZA JULIO RENE",null,"VELASQUEZ APAZA JULIO RENE",30830101]
[76774956,"VELASQUEZ CRUZ YUDY DOMINGA",null,"VELASQUEZ CRUZ YUDY DOMINGA",76774956]
[73652068,"VELASQUEZ FERNANDEZ ESTEFANI",null,"VELASQUEZ FERNANDEZ ESTEFANI",73652068]
[4631557,"VELASQUEZ LAGUNA JOSE PERCY",null,"VELASQUEZ LAGUNA JOSE PERCY",4631557]
[30856883,"VELASQUEZ MOSCOSO MARCO ANTONIO",null,"VELASQUEZ MOSCOSO MARCO ANTONIO",30856883]
[30821805,"VELASQUEZ ROSADO JESUS GUILLERMO",null,"VELASQUEZ ROSADO JESUS GUILLERMO",30821805]
[4646267,"VELASQUEZ VILDOSO CESAR ENRIQUE",null,"VELASQUEZ VILDOSO CESAR ENRIQUE",4646267]
[30856809,"VELEZ CESPEDES ROBERTH LEONARDO",null,"VELEZ CESPEDES ROBERTH LEONARDO",30856809]
[42983406,"VENTURA VELASQUEZ LUISA LISSET",null,"VENTURA VELASQUEZ LUISA LISSET",42983406]
[71093691,"VERA ACOSTA SEBASTIAN ALEXANDER",null,"VERA ACOSTA SEBASTIAN ALEXANDER",71093691]
[30856763,"VERA ALBARRACIN MARCO ANTONIO",null,"VERA ALBARRACIN MARCO ANTONIO",30856763]
[30820235,"VERA ASTORGA PERCY ACISCLO",null,"VERA ASTORGA PERCY ACISCLO",30820235]
[30834662,"VERA RODRIGUEZ VICTOR JAVIER",null,"VERA RODRIGUEZ VICTOR JAVIER",30834662]
[70915046,"VERA VILLAVICENCIO KELLER JEFFRE",null,"VERA VILLAVICENCIO KELLER JEFFRE",70915046]
[45049442,"VERA VILLAVICENCIO KRISTEL JAHAYRA",null,"VERA VILLAVICENCIO KRISTEL JAHAYRA",45049442]
[30823734,"VERSACE CABRERA CESAR GUIDO",null,"VERSACE CABRERA CESAR GUIDO",30823734]
[30856823,"VERSACE PAJUELO PAULO CESAR AUGUSTO",null,"VERSACE PAJUELO PAULO CESAR AUGUSTO",30856823]
[4652901,"VICENTE LUYO EVERTH EDWIN",null,"VICENTE LUYO EVERTH EDWIN",4652901]
[45984863,"VIDAL PAUCAR DIANA",null,"VIDAL PAUCAR DIANA",45984863]
[30826690,"VILCA BEJAR SILVERIO DONATO",null,"VILCA BEJAR SILVERIO DONATO",30826690]
[30833939,"VILCA CASTILLO UBALDO JUAN",null,"VILCA CASTILLO UBALDO JUAN",30833939]
[30830976,"VILCA NUÑEZ ROGER CANCIO",null,"VILCA NUÑEZ ROGER CANCIO",30830976]
[29734817,"VILCA SANCHO PIERINA DIANA",null,"VILCA SANCHO PIERINA DIANA",29734817]
[2360101,"VILCA VILCA MANUEL ABAD",null,"VILCA VILCA MANUEL ABAD",2360101]
[30823281,"VILCAZAN QUISPE CECILIO HIPOLITO",null,"VILCAZAN QUISPE CECILIO HIPOLITO",30823281]
[80608976,"VILCHEZ CHUCTAYA MILAGROS PAOLA",null,"VILCHEZ CHUCTAYA MILAGROS PAOLA",80608976]
[40924612,"VILCHEZ CHUCTAYA VERONICA MARIA",null,"VILCHEZ CHUCTAYA VERONICA MARIA",40924612]
[70762869,"VILCHEZ DEL PINO CARLOS ISAAC",null,"VILCHEZ DEL PINO CARLOS ISAAC",70762869]
[2898075,"VILCHEZ GOMEZ ELSA",null,"VILCHEZ GOMEZ ELSA",2898075]
[2727473,"VILCHEZ GOMEZ SUSANA",null,"VILCHEZ GOMEZ SUSANA",2727473]
[30831751,"VILCHEZ HUARACHE JUAN DE DIOS",null,"VILCHEZ HUARACHE JUAN DE DIOS",30831751]
[71124772,"VILCHEZ IPANAQUE JAVIER",null,"VILCHEZ IPANAQUE JAVIER",71124772]
[9594136,"VILCHEZ PINTO HJILMAR RICARDO",null,"VILCHEZ PINTO HJILMAR RICARDO",9594136]
[45760012,"VILCHEZ QUISPE EDWIN JESUS",null,"VILCHEZ QUISPE EDWIN JESUS",45760012]
[73235431,"VILDOSO CESPEDES CAMILA AZUCENA",null,"VILDOSO CESPEDES CAMILA AZUCENA",73235431]
[30863223,"VILLA PARI GRISELDA CELELIA",null,"VILLA PARI GRISELDA CELELIA",30863223]
[46258315,"VILLAFUERTE VELASQUEZ GUIDO MANUEL",null,"VILLAFUERTE VELASQUEZ GUIDO MANUEL",46258315]
[73145674,"VILLAFUERTE VELASQUEZ WILDER ADRIEL",null,"VILLAFUERTE VELASQUEZ WILDER ADRIEL",73145674]
[4625417,"VILLALOBOS ASCAÑO SILVIA DEOLINDA",null,"VILLALOBOS ASCAÑO SILVIA DEOLINDA",4625417]
[43843885,"VILLANUEVA ASCAÑO DAVID JOSIMAR",null,"VILLANUEVA ASCAÑO DAVID JOSIMAR",43843885]
[30824556,"VILLAVICENCIO DE PAREDES GENNY FRANCISCA",null,"VILLAVICENCIO DE PAREDES GENNY FRANCISCA",30824556]
[30831474,"VILLAVICENCIO FLORES EDWING ANTONIO",null,"VILLAVICENCIO FLORES EDWING ANTONIO",30831474]
[9279704,"VILLENA VILCHES EDDY ADOLFO",null,"VILLENA VILCHES EDDY ADOLFO",9279704]
[30829600,"VIVEROS VALVERDE JAVIER RAUL",null,"VIVEROS VALVERDE JAVIER RAUL",30829600]
[30833819,"VIZCARRA CONDORI EVA VERONICA",null,"VIZCARRA CONDORI EVA VERONICA",30833819]
[42042643,"YANA CAIRA JULIA",null,"YANA CAIRA JULIA",42042643]
[44318034,"YANQUI VASQUEZ ALAN ENRIQUE",null,"YANQUI VASQUEZ ALAN ENRIQUE",44318034]
[40059393,"YAÑEZ PEQARANDA SUSANA PATRICIA",null,"YAÑEZ PEQARANDA SUSANA PATRICIA",40059393]
[30830902,"YAÑEZ VALDIVIA CARLOS ENRIQUE",null,"YAÑEZ VALDIVIA CARLOS ENRIQUE",30830902]
[30857045,"YAÑEZ ZUÑIGA CARLOS ALBERTO",null,"YAÑEZ ZUÑIGA CARLOS ALBERTO",30857045]
[41819188,"YNGA MORE JULIO CESAR",null,"YNGA MORE JULIO CESAR",41819188]
[80171374,"YNGA YNGA DOLORES",null,"YNGA YNGA DOLORES",80171374]
[30857316,"YOVERA BELZO ALVARO FABRIZZIO",null,"YOVERA BELZO ALVARO FABRIZZIO",30857316]
[30856678,"YOVERA BELZO HELBERT OMAR",null,"YOVERA BELZO HELBERT OMAR",30856678]
[47999201,"YOVERA JUAREZ JUAN",null,"YOVERA JUAREZ JUAN",47999201]
[9579644,"YOVERA MARTINEZ GABRIEL",null,"YOVERA MARTINEZ GABRIEL",9579644]
[46834773,"YUCRA ARQUE FREDY ERNESTO",null,"YUCRA ARQUE FREDY ERNESTO",46834773]
[72741028,"YUCRA CRUZ YOEL HOWARD",null,"YUCRA CRUZ YOEL HOWARD",72741028]
[4653549,"YUCRA ESTUCO AMERICO RICARDO",null,"YUCRA ESTUCO AMERICO RICARDO",4653549]
[4620521,"YUCRA ESTUCO ELDER HUGO",null,"YUCRA ESTUCO ELDER HUGO",4620521]
[71391224,"YUPANQUI HIDALGO MANUELA",null,"YUPANQUI HIDALGO MANUELA",71391224]
[4633760,"ZABALA ZEBALLOS RAUL ESTEBAN",null,"ZABALA ZEBALLOS RAUL ESTEBAN",4633760]
[30836035,"ZAPANA ATASI JUAN CARLOS",null,"ZAPANA ATASI JUAN CARLOS",30836035]
[3893368,"ZAPATA FALLA GLADYS",null,"ZAPATA FALLA GLADYS",3893368]
[29466045,"ZAVALA QUISPE ZENOVIO LEON",null,"ZAVALA QUISPE ZENOVIO LEON",29466045]
[22301110,"ZAVALETA DE LA TORRE EDWUARDO HUGO",null,"ZAVALETA DE LA TORRE EDWUARDO HUGO",22301110]
[43160639,"ZAVALETA GARCIA ROSA LUZ",null,"ZAVALETA GARCIA ROSA LUZ",43160639]
[29611012,"ZEBALLOS CAMPOS RONAL VIDAL",null,"ZEBALLOS CAMPOS RONAL VIDAL",29611012]
[4627551,"ZEGARRA CARBAJAL JULIO MOISES",null,"ZEGARRA CARBAJAL JULIO MOISES",4627551]
[4628754,"ZEGARRA LUNA DANIEL SATURNINO",null,"ZEGARRA LUNA DANIEL SATURNINO",4628754]
[45611207,"ZELA QUIROGA ALESSANDRO WILMAR",null,"ZELA QUIROGA ALESSANDRO WILMAR",45611207]
[30856059,"ZELA QUISPE LEONARDO JULIO",null,"ZELA QUISPE LEONARDO JULIO",30856059]
[30826987,"ZELAYA BUSTOS JUAN CARLOS",null,"ZELAYA BUSTOS JUAN CARLOS",30826987]
[46923472,"ZENTENO QUILLA MARIA LUISA",null,"ZENTENO QUILLA MARIA LUISA",46923472]
[30833137,"ZEVALLOS CARDENAS ENRIQUE VIDAL",null,"ZEVALLOS CARDENAS ENRIQUE VIDAL",30833137]
[30827756,"ZEVALLOS CARDENAS RUFINO JOSE",null,"ZEVALLOS CARDENAS RUFINO JOSE",30827756]
[4629488,"ZEVALLOS ESPINOZA RAUL ARCIBIADES",null,"ZEVALLOS ESPINOZA RAUL ARCIBIADES",4629488]
[45323901,"ZEVALLOS HUAMANI ELBA",null,"ZEVALLOS HUAMANI ELBA",45323901]
[30829811,"ZEVALLOS PAREDES FREDDY JESUS MANUEL",null,"ZEVALLOS PAREDES FREDDY JESUS MANUEL",30829811]
[30821722,"ZEVALLOS PAREDES PEDRO ADOLFO",null,"ZEVALLOS PAREDES PEDRO ADOLFO",30821722]
[41382355,"ZEVALLOS VERGARA ADOLFO PABLO",null,"ZEVALLOS VERGARA ADOLFO PABLO",41382355]
[30835693,"ZEVALLOS YAÑEZ JOSE CARLOS",null,"ZEVALLOS YAÑEZ JOSE CARLOS",30835693]
[40238493,"ZUBIZARRETA VERA OMAR CRISTIAN",null,"ZUBIZARRETA VERA OMAR CRISTIAN",40238493]
[30831447,"ZULOAGA CACERES LEONARDO JESUS",null,"ZULOAGA CACERES LEONARDO JESUS",30831447]
[30824293,"ZUÑIGA CIBANA GUILLERMO CESAR",null,"ZUÑIGA CIBANA GUILLERMO CESAR",30824293]
[18206359,"ZUÑIGA PALMA EDUARDO BERNARDO",null,"ZUÑIGA PALMA EDUARDO BERNARDO",18206359]
[30836508,"ZUÑIGA RODRIGUEZ EDGAR LUIS",null,"ZUÑIGA RODRIGUEZ EDGAR LUIS",30836508]
[29626289,"ZUÑIGA RODRIGUEZ MANUEL REYMUNDO",null,"ZUÑIGA RODRIGUEZ MANUEL REYMUNDO",29626289]
[48854994,"ZURITA IPANAQUE TATIANA MERCEDES",null,"ZURITA IPANAQUE TATIANA MERCEDES",48854994]

{"sheet":"BASE","index":3,"n_rows":1100,"n_cols":17,"rows_kept":1100,"cut":false,"hidden":false,"merged":[]}
["DNI","TRABAJADOR","FECHA","TONELAJE","TURNO","ESPECIALIDAD","PERMISO","ASIG FAMILIAR"]
[30825449,"ABRIL MEDINA WILLIAM MARCELO","2019-07-01",0,"1: 06.00/12.00","1: WINCHERO",null,null,{"$f":"IF(A2=\"\",\"\",A2)","v":30825449},{"$f":"IF(B2=\"\",\"\",B2)","v":"ABRIL MEDINA WILLIAM MARCELO"},{"$f":"IF(C2=\"\",\"\",C2)","v":"2019-07-01"},{"$f":"IF(F2=\"\",\"\",IF(F2=$Q$6,0,IF(F2=$Q$6,0,D2)))","v":0},{"$f":"IF(E2=\"\",\"\",VALUE(TRIM(MID(E2,1,1))))","v":1},{"$f":"IF(F2=\"\",\"\",VALUE(TRIM(MID(F2,1,1))))","v":1},{"$f":"IF(G2=\"SI\",1,IF(G2=\"\",0))","v":0},null,"1: WINCHERO"]
[30961524,"ADRIAZOLA ESQUIVEL CESAR MICHAEL","2019-07-01",0,"2: 12.00/18.00","2: PORTALONERO",null,null,30961524,{"$f":"IF(B3=\"\",\"\",B3)","v":"ADRIAZOLA ESQUIVEL CESAR MICHAEL"},{"$f":"IF(C3=\"\",\"\",C3)","v":"2019-07-01"},{"$f":"IF(F3=\"\",\"\",IF(F3=$Q$6,0,IF(F3=$Q$6,0,D3)))","v":0},{"$f":"IF(E3=\"\",\"\",VALUE(TRIM(MID(E3,1,1))))","v":2},{"$f":"IF(F3=\"\",\"\",VALUE(TRIM(MID(F3,1,1))))","v":2},{"$f":"IF(G3=\"SI\",1,IF(G3=\"\",0))","v":0},null,"2: PORTALONERO"]
[30825449,"ABRIL MEDINA WILLIAM MARCELO","2019-07-01",0,"1: 06.00/12.00","1: WINCHERO",null,null,30825449,"ABRIL MEDINA WILLIAM MARCELO","2019-07-01",0,1,1,0,null,"3: TARJADOR"]
[null,null,null,null,null,null,null,null,"","","","","","",0,null,"4: BODEGUERO"]
[null,null,null,null,null,null,null,null,"","","","","","",0,null,"5: MANIOBRISTA"]
[null,null,null,null,null,null,null,null,"","","","","","",0]
[null,null,null,null,null,null,null,null,"","","","","","",0]
[null,null,null,null,null,null,null,null,"","","","","","",0]
[null,null,null,null,null,null,null,null,"","","","","","",0]
[null,null,null,null,null,null,null,null,"","","","","","",0]
[null,null,null,null,null,null,null,null,"","","","","","",0]
[null,null,null,null,null,null,null,null,"","","","","","",0]
[null,null,null,null,null,null,null,null,"","","","","","",0]
[null,null,null,null,null,null,null,null,"","","","","","",0]
[null,null,null,null,null,null,null,null,"","","","","","",0]
[null,null,null,null,null,null,null,null,"","","","","","",0]
[null,null,null,null,null,null,null,null,"","","",{"$f":"IF(F18=\"\",\"\",IF(F18=Q22,0,IF(F18=Q22,0,D18)))","v":""},"","",0]
[null,null,null,null,null,null,null,null,"","","","","","",0]
[null,null,null,null,null,null,null,null,"","","","","","",0]
[null,null,null,null,null,null,null,null,"","","","","","",0]
[null,null,null,null,null,null,null,null,"","","","","","",0]
[null,null,null,null,null,null,null,null,"","","","","","",0]
[null,null,null,null,null,null,null,null,"","","","","","",0]
[null,null,null,null,null,null,null,null,"","","","","","",0]
[null,null,null,null,null,null,null,null,"","","","","","",0]
[null,null,null,null,null,null,null,null,"","","","","","",0]
[null,null,null,null,null,null,null,null,"","","","","","",0]
[null,null,null,null,null,null,null,null,"","","","","","",0]
[null,null,null,null,null,null,null,null,"","","","","","",0]
[null,null,null,null,null,null,null,null,"","","","","","",0]
[null,null,null,null,null,null,null,null,"","","","","","",0]
[null,null,null,null,null,null,null,null,"","","","","","",0]
[null,null,null,null,null,null,null,null,"","","","","","",0]
[null,null,null,null,null,null,null,null,"","","","","","",0]
[null,null,null,null,null,null,null,null,"","","","","","",0]
[null,null,null,null,null,null,null,null,"","","","","","",0]
[null,null,null,null,null,null,null,null,"","","","","","",0]
[null,null,null,null,null,null,null,null,"","","","","","",0]
[null,null,null,null,null,null,null,null,"","","","","","",0]
[null,null,null,null,null,null,null,null,"","","","","","",0]
[null,null,null,null,null,null,null,null,"","","","","","",0]
[null,null,null,null,null,null,null,null,"","","","","","",0]
[null,null,null,null,null,null,null,null,"","","","","","",0]
[null,null,null,null,null,null,null,null,"","","","","","",0]
[null,null,null,null,null,null,null,null,"","","","","","",0]
[null,null,null,null,null,null,null,null,"","","","","","",0]
[null,null,null,null,null,null,null,null,"","","","","","",0]
[null,null,null,null,null,null,null,null,"","","","","","",0]
[null,null,null,null,null,null,null,null,"","","","","","",0]
[null,null,null,null,null,null,null,null,"","","","","","",0]
[null,null,null,null,null,null,null,null,"","","","","","",0]
[null,null,null,null,null,null,null,null,"","","","","","",0]
[null,null,null,null,null,null,null,null,"","","","","","",0]
[null,null,null,null,null,null,null,null,"","","","","","",0]
[null,null,null,null,null,null,null,null,"","","","","","",0]
[null,null,null,null,null,null,null,null,"","","","","","",0]
[null,null,null,null,null,null,null,null,"","","","","","",0]
[null,null,null,null,null,null,null,null,"","","","","","",0]
[null,null,null,null,null,null,null,null,"","","","","","",0]
[null,null,null,null,null,null,null,null,"","","","","","",0]
[null,null,null,null,null,null,null,null,"","","","","","",0]
[null,null,null,null,null,null,null,null,"","","","","","",0]
[null,null,null,null,null,null,null,null,"","","","","","",0]
[null,null,null,null,null,null,null,null,"","","","","","",0]
[null,null,null,null,null,null,null,null,"","","",{"$f":"IF(F66=\"\",\"\",IF(F66=Q70,0,IF(F66=Q70,0,D66)))","v":""},"","",0]
[null,null,null,null,null,null,null,null,{"$f":"IF(A67=\"\",\"\",A67)","v":""},{"$f":"IF(B67=\"\",\"\",B67)","v":""},{"$f":"IF(C67=\"\",\"\",C67)","v":""},"",{"$f":"IF(E67=\"\",\"\",VALUE(TRIM(MID(E67,1,1))))","v":""},{"$f":"IF(F67=\"\",\"\",VALUE(TRIM(MID(F67,1,1))))","v":""},{"$f":"IF(G67=\"SI\",1,IF(G67=\"\",0))","v":0}]
[null,null,null,null,null,null,null,null,"","","","","","",0]
[null,null,null,null,null,null,null,null,"","","","","","",0]
[null,null,null,null,null,null,null,null,"","","","","","",0]
[null,null,null,null,null,null,null,null,"","","","","","",0]
[null,null,null,null,null,null,null,null,"","","","","","",0]
[null,null,null,null,null,null,null,null,"","","","","","",0]
[null,null,null,null,null,null,null,null,"","","","","","",0]
[null,null,null,null,null,null,null,null,"","","","","","",0]
[null,null,null,null,null,null,null,null,"","","","","","",0]
[null,null,null,null,null,null,null,null,"","","","","","",0]
[null,null,null,null,null,null,null,null,"","","","","","",0]
[null,null,null,null,null,null,null,null,"","","","","","",0]
[null,null,null,null,null,null,null,null,"","","","","","",0]
[null,null,null,null,null,null,null,null,"","","","","","",0]
[null,null,null,null,null,null,null,null,"","","","","","",0]
[null,null,null,null,null,null,null,null,"","","","","","",0]
[null,null,null,null,null,null,null,null,"","","","","","",0]
[null,null,null,null,null,null,null,null,"","","","","","",0]
[null,null,null,null,null,null,null,null,"","","","","","",0]
[null,null,null,null,null,null,null,null,"","","","","","",0]
[null,null,null,null,null,null,null,null,"","","","","","",0]
[null,null,null,null,null,null,null,null,"","","","","","",0]
[null,null,null,null,null,null,null,null,"","","","","","",0]
[null,null,null,null,null,null,null,null,"","","","","","",0]
[null,null,null,null,null,null,null,null,"","","","","","",0]
[null,null,null,null,null,null,null,null,"","","","","","",0]
[null,null,null,null,null,null,null,null,"","","","","","",0]
[null,null,null,null,null,null,null,null,"","","","","","",0]
[null,null,null,null,null,null,null,null,"","","","","","",0]
[null,null,null,null,null,null,null,null,"","","","","","",0]
[null,null,null,null,null,null,null,null,"","","","","","",0]
[null,null,null,null,null,null,null,null,"","","","","","",0]
[null,null,null,null,null,null,null,null,"","","","","","",0]
[null,null,null,null,null,null,null,null,"","","","","","",0]
[null,null,null,null,null,null,null,null,"","","","","","",0]
[null,null,null,null,null,null,null,null,"","","","","","",0]
[null,null,null,null,null,null,null,null,"","","","","","",0]
[null,null,null,null,null,null,null,null,"","","","","","",0]
[null,null,null,null,null,null,null,null,"","","","","","",0]
[null,null,null,null,null,null,null,null,"","","","","","",0]
[null,null,null,null,null,null,null,null,"","","","","","",0]
[null,null,null,null,null,null,null,null,"","","","","","",0]
[null,null,null,null,null,null,null,null,"","","","","","",0]
[null,null,null,null,null,null,null,null,"","","","","","",0]
[null,null,null,null,null,null,null,null,"","","","","","",0]
[null,null,null,null,null,null,null,null,"","","","","","",0]
[null,null,null,null,null,null,null,null,"","","","","","",0]
[null,null,null,null,null,null,null,null,"","","","","","",0]
[null,null,null,null,null,null,null,null,"","","","","","",0]
[null,null,null,null,null,null,null,null,"","","","","","",0]
[null,null,null,null,null,null,null,null,"","","","","","",0]
[null,null,null,null,null,null,null,null,"","","","","","",0]
[null,null,null,null,null,null,null,null,"","","","","","",0]
[null,null,null,null,null,null,null,null,"","","","","","",0]
[null,null,null,null,null,null,null,null,"","","","","","",0]
[null,null,null,null,null,null,null,null,"","","","","","",0]
[null,null,null,null,null,null,null,null,"","","","","","",0]
[null,null,null,null,null,null,null,null,"","","","","","",0]
[null,null,null,null,null,null,null,null,"","","","","","",0]
[null,null,null,null,null,null,null,null,"","","","","","",0]
[null,null,null,null,null,null,null,null,"","","","","","",0]
[null,null,null,null,null,null,null,null,"","","","","","",0]
[null,null,null,null,null,null,null,null,"","","",{"$f":"IF(F130=\"\",\"\",IF(F130=Q134,0,IF(F130=Q134,0,D130)))","v":""},"","",0]
[null,null,null,null,null,null,null,null,{"$f":"IF(A131=\"\",\"\",A131)","v":""},{"$f":"IF(B131=\"\",\"\",B131)","v":""},{"$f":"IF(C131=\"\",\"\",C131)","v":""},"",{"$f":"IF(E131=\"\",\"\",VALUE(TRIM(MID(E131,1,1))))","v":""},{"$f":"IF(F131=\"\",\"\",VALUE(TRIM(MID(F131,1,1))))","v":""},{"$f":"IF(G131=\"SI\",1,IF(G131=\"\",0))","v":0}]
[null,null,null,null,null,null,null,null,"","","","","","",0]
[null,null,null,null,null,null,null,null,"","","","","","",0]
[null,null,null,null,null,null,null,null,"","","","","","",0]
[null,null,null,null,null,null,null,null,"","","","","","",0]
[null,null,null,null,null,null,null,null,"","","","","","",0]
[null,null,null,null,null,null,null,null,"","","","","","",0]
[null,null,null,null,null,null,null,null,"","","","","","",0]
[null,null,null,null,null,null,null,null,"","","","","","",0]
[null,null,null,null,null,null,null,null,"","","","","","",0]
[null,null,null,null,null,null,null,null,"","","","","","",0]
[null,null,null,null,null,null,null,null,"","","","","","",0]
[null,null,null,null,null,null,null,null,"","","","","","",0]
[null,null,null,null,null,null,null,null,"","","","","","",0]
[null,null,null,null,null,null,null,null,"","","","","","",0]
[null,null,null,null,null,null,null,null,"","","","","","",0]
[null,null,null,null,null,null,null,null,"","","","","","",0]
[null,null,null,null,null,null,null,null,"","","","","","",0]
[null,null,null,null,null,null,null,null,"","","","","","",0]
[null,null,null,null,null,null,null,null,"","","","","","",0]
[null,null,null,null,null,null,null,null,"","","","","","",0]
[null,null,null,null,null,null,null,null,"","","","","","",0]
[null,null,null,null,null,null,null,null,"","","","","","",0]
[null,null,null,null,null,null,null,null,"","","","","","",0]
[null,null,null,null,null,null,null,null,"","","","","","",0]
[null,null,null,null,null,null,null,null,"","","","","","",0]
[null,null,null,null,null,null,null,null,"","","","","","",0]
[null,null,null,null,null,null,null,null,"","","","","","",0]
[null,null,null,null,null,null,null,null,"","","","","","",0]
[null,null,null,null,null,null,null,null,"","","","","","",0]
[null,null,null,null,null,null,null,null,"","","","","","",0]
[null,null,null,null,null,null,null,null,"","","","","","",0]
[null,null,null,null,null,null,null,null,"","","","","","",0]
[null,null,null,null,null,null,null,null,"","","","","","",0]
[null,null,null,null,null,null,null,null,"","","","","","",0]
[null,null,null,null,null,null,null,null,"","","","","","",0]
[null,null,null,null,null,null,null,null,"","","","","","",0]
[null,null,null,null,null,null,null,null,"","","","","","",0]
[null,null,null,null,null,null,null,null,"","","","","","",0]
[null,null,null,null,null,null,null,null,"","","","","","",0]
[null,null,null,null,null,null,null,null,"","","","","","",0]
[null,null,null,null,null,null,null,null,"","","","","","",0]
[null,null,null,null,null,null,null,null,"","","","","","",0]
[null,null,null,null,null,null,null,null,"","","","","","",0]
[null,null,null,null,null,null,null,null,"","","","","","",0]
[null,null,null,null,null,null,null,null,"","","","","","",0]
[null,null,null,null,null,null,null,null,"","","","","","",0]
[null,null,null,null,null,null,null,null,"","","","","","",0]
[null,null,null,null,null,null,null,null,"","","","","","",0]
[null,null,null,null,null,null,null,null,"","","","","","",0]
[null,null,null,null,null,null,null,null,"","","","","","",0]
[null,null,null,null,null,null,null,null,"","","","","","",0]
[null,null,null,null,null,null,null,null,"","","","","","",0]
[null,null,null,null,null,null,null,null,"","","","","","",0]
[null,null,null,null,null,null,null,null,"","","","","","",0]
[null,null,null,null,null,null,null,null,"","","","","","",0]
[null,null,null,null,null,null,null,null,"","","","","","",0]
[null,null,null,null,null,null,null,null,"","","","","","",0]
[null,null,null,null,null,null,null,null,"","","","","","",0]
[null,null,null,null,null,null,null,null,"","","","","","",0]
[null,null,null,null,null,null,null,null,"","","","","","",0]
[null,null,null,null,null,null,null,null,"","","","","","",0]
[null,null,null,null,null,null,null,null,"","","","","","",0]
[null,null,null,null,null,null,null,null,"","","",{"$f":"IF(F194=\"\",\"\",IF(F194=Q198,0,IF(F194=Q198,0,D194)))","v":""},"","",0]
[null,null,null,null,null,null,null,null,{"$f":"IF(A195=\"\",\"\",A195)","v":""},{"$f":"IF(B195=\"\",\"\",B195)","v":""},{"$f":"IF(C195=\"\",\"\",C195)","v":""},"",{"$f":"IF(E195=\"\",\"\",VALUE(TRIM(MID(E195,1,1))))","v":""},{"$f":"IF(F195=\"\",\"\",VALUE(TRIM(MID(F195,1,1))))","v":""},{"$f":"IF(G195=\"SI\",1,IF(G195=\"\",0))","v":0}]
[null,null,null,null,null,null,null,null,"","","","","","",0]
[null,null,null,null,null,null,null,null,"","","","","","",0]
[null,null,null,null,null,null,null,null,"","","","","","",0]
[null,null,null,null,null,null,null,null,"","","","","","",0]
[null,null,null,null,null,null,null,null,"","","","","","",0]
[null,null,null,null,null,null,null,null,"","","","","","",0]
[null,null,null,null,null,null,null,null,"","","","","","",0]
[null,null,null,null,null,null,null,null,"","","","","","",0]
[null,null,null,null,null,null,null,null,"","","","","","",0]
[null,null,null,null,null,null,null,null,"","","","","","",0]
[null,null,null,null,null,null,null,null,"","","","","","",0]
[null,null,null,null,null,null,null,null,"","","","","","",0]
[null,null,null,null,null,null,null,null,"","","","","","",0]
[null,null,null,null,null,null,null,null,"","","","","","",0]
[null,null,null,null,null,null,null,null,"","","","","","",0]
[null,null,null,null,null,null,null,null,"","","","","","",0]
[null,null,null,null,null,null,null,null,"","","","","","",0]
[null,null,null,null,null,null,null,null,"","","","","","",0]
[null,null,null,null,null,null,null,null,"","","","","","",0]
[null,null,null,null,null,null,null,null,"","","","","","",0]
[null,null,null,null,null,null,null,null,"","","","","","",0]
[null,null,null,null,null,null,null,null,"","","","","","",0]
[null,null,null,null,null,null,null,null,"","","","","","",0]
[null,null,null,null,null,null,null,null,"","","","","","",0]
[null,null,null,null,null,null,null,null,"","","","","","",0]
[null,null,null,null,null,null,null,null,"","","","","","",0]
[null,null,null,null,null,null,null,null,"","","","","","",0]
[null,null,null,null,null,null,null,null,"","","","","","",0]
[null,null,null,null,null,null,null,null,"","","","","","",0]
[null,null,null,null,null,null,null,null,"","","","","","",0]
[null,null,null,null,null,null,null,null,"","","","","","",0]
[null,null,null,null,null,null,null,null,"","","","","","",0]
[null,null,null,null,null,null,null,null,"","","","","","",0]
[null,null,null,null,null,null,null,null,"","","","","","",0]
[null,null,null,null,null,null,null,null,"","","","","","",0]
[null,null,null,null,null,null,null,null,"","","","","","",0]
[null,null,null,null,null,null,null,null,"","","","","","",0]
[null,null,null,null,null,null,null,null,"","","","","","",0]
[null,null,null,null,null,null,null,null,"","","","","","",0]
[null,null,null,null,null,null,null,null,"","","","","","",0]
[null,null,null,null,null,null,null,null,"","","","","","",0]
[null,null,null,null,null,null,null,null,"","","","","","",0]
[null,null,null,null,null,null,null,null,"","","","","","",0]
[null,null,null,null,null,null,null,null,"","","","","","",0]
[null,null,null,null,null,null,null,null,"","","","","","",0]
[null,null,null,null,null,null,null,null,"","","","","","",0]
[null,null,null,null,null,null,null,null,"","","","","","",0]
[null,null,null,null,null,null,null,null,"","","","","","",0]
[null,null,null,null,null,null,null,null,"","","","","","",0]
[null,null,null,null,null,null,null,null,"","","","","","",0]
[null,null,null,null,null,null,null,null,"","","","","","",0]
[null,null,null,null,null,null,null,null,"","","","","","",0]
[null,null,null,null,null,null,null,null,"","","","","","",0]
[null,null,null,null,null,null,null,null,"","","","","","",0]
[null,null,null,null,null,null,null,null,"","","","","","",0]
[null,null,null,null,null,null,null,null,"","","","","","",0]
[null,null,null,null,null,null,null,null,"","","","","","",0]
[null,null,null,null,null,null,null,null,"","","","","","",0]
[null,null,null,null,null,null,null,null,"","","","","","",0]
[null,null,null,null,null,null,null,null,"","","","","","",0]
[null,null,null,null,null,null,null,null,"","","","","","",0]
[null,null,null,null,null,null,null,null,"","","","","","",0]
[null,null,null,null,null,null,null,null,"","","",{"$f":"IF(F258=\"\",\"\",IF(F258=Q262,0,IF(F258=Q262,0,D258)))","v":""},"","",0]
[null,null,null,null,null,null,null,null,{"$f":"IF(A259=\"\",\"\",A259)","v":""},{"$f":"IF(B259=\"\",\"\",B259)","v":""},{"$f":"IF(C259=\"\",\"\",C259)","v":""},"",{"$f":"IF(E259=\"\",\"\",VALUE(TRIM(MID(E259,1,1))))","v":""},{"$f":"IF(F259=\"\",\"\",VALUE(TRIM(MID(F259,1,1))))","v":""},{"$f":"IF(G259=\"SI\",1,IF(G259=\"\",0))","v":0}]
[null,null,null,null,null,null,null,null,"","","","","","",0]
[null,null,null,null,null,null,null,null,"","","","","","",0]
[null,null,null,null,null,null,null,null,"","","","","","",0]
[null,null,null,null,null,null,null,null,"","","","","","",0]
[null,null,null,null,null,null,null,null,"","","","","","",0]
[null,null,null,null,null,null,null,null,"","","","","","",0]
[null,null,null,null,null,null,null,null,"","","","","","",0]
[null,null,null,null,null,null,null,null,"","","","","","",0]
[null,null,null,null,null,null,null,null,"","","","","","",0]
[null,null,null,null,null,null,null,null,"","","","","","",0]
[null,null,null,null,null,null,null,null,"","","","","","",0]
[null,null,null,null,null,null,null,null,"","","","","","",0]
[null,null,null,null,null,null,null,null,"","","","","","",0]
[null,null,null,null,null,null,null,null,"","","","","","",0]
[null,null,null,null,null,null,null,null,"","","","","","",0]
[null,null,null,null,null,null,null,null,"","","","","","",0]
[null,null,null,null,null,null,null,null,"","","","","","",0]
[null,null,null,null,null,null,null,null,"","","","","","",0]
[null,null,null,null,null,null,null,null,"","","","","","",0]
[null,null,null,null,null,null,null,null,"","","","","","",0]
[null,null,null,null,null,null,null,null,"","","","","","",0]
[null,null,null,null,null,null,null,null,"","","","","","",0]
[null,null,null,null,null,null,null,null,"","","","","","",0]
[null,null,null,null,null,null,null,null,"","","","","","",0]
[null,null,null,null,null,null,null,null,"","","","","","",0]
[null,null,null,null,null,null,null,null,"","","","","","",0]
[null,null,null,null,null,null,null,null,"","","","","","",0]
[null,null,null,null,null,null,null,null,"","","","","","",0]
[null,null,null,null,null,null,null,null,"","","","","","",0]
[null,null,null,null,null,null,null,null,"","","","","","",0]
[null,null,null,null,null,null,null,null,"","","","","","",0]
[null,null,null,null,null,null,null,null,"","","","","","",0]
[null,null,null,null,null,null,null,null,"","","","","","",0]
[null,null,null,null,null,null,null,null,"","","","","","",0]
[null,null,null,null,null,null,null,null,"","","","","","",0]
[null,null,null,null,null,null,null,null,"","","","","","",0]
[null,null,null,null,null,null,null,null,"","","","","","",0]
[null,null,null,null,null,null,null,null,"","","","","","",0]
[null,null,null,null,null,null,null,null,"","","","","","",0]
[null,null,null,null,null,null,null,null,"","","","","","",0]
[null,null,null,null,null,null,null,null,"","","","","","",0]
[null,null,null,null,null,null,null,null,"","","","","","",0]
[null,null,null,null,null,null,null,null,"","","","","","",0]
[null,null,null,null,null,null,null,null,"","","","","","",0]
[null,null,null,null,null,null,null,null,"","","","","","",0]
[null,null,null,null,null,null,null,null,"","","","","","",0]
[null,null,null,null,null,null,null,null,"","","","","","",0]
[null,null,null,null,null,null,null,null,"","","","","","",0]
[null,null,null,null,null,null,null,null,"","","","","","",0]
[null,null,null,null,null,null,null,null,"","","","","","",0]
[null,null,null,null,null,null,null,null,"","","","","","",0]
[null,null,null,null,null,null,null,null,"","","","","","",0]
[null,null,null,null,null,null,null,null,"","","","","","",0]
[null,null,null,null,null,null,null,null,"","","","","","",0]
[null,null,null,null,null,null,null,null,"","","","","","",0]
[null,null,null,null,null,null,null,null,"","","","","","",0]
[null,null,null,null,null,null,null,null,"","","","","","",0]
[null,null,null,null,null,null,null,null,"","","","","","",0]
[null,null,null,null,null,null,null,null,"","","","","","",0]
[null,null,null,null,null,null,null,null,"","","","","","",0]
[null,null,null,null,null,null,null,null,"","","","","","",0]
[null,null,null,null,null,null,null,null,"","","","","","",0]
[null,null,null,null,null,null,null,null,"","","",{"$f":"IF(F322=\"\",\"\",IF(F322=Q326,0,IF(F322=Q326,0,D322)))","v":""},"","",0]
[null,null,null,null,null,null,null,null,{"$f":"IF(A323=\"\",\"\",A323)","v":""},{"$f":"IF(B323=\"\",\"\",B323)","v":""},{"$f":"IF(C323=\"\",\"\",C323)","v":""},"",{"$f":"IF(E323=\"\",\"\",VALUE(TRIM(MID(E323,1,1))))","v":""},{"$f":"IF(F323=\"\",\"\",VALUE(TRIM(MID(F323,1,1))))","v":""},{"$f":"IF(G323=\"SI\",1,IF(G323=\"\",0))","v":0}]
[null,null,null,null,null,null,null,null,"","","","","","",0]
[null,null,null,null,null,null,null,null,"","","","","","",0]
[null,null,null,null,null,null,null,null,"","","","","","",0]
[null,null,null,null,null,null,null,null,"","","","","","",0]
[null,null,null,null,null,null,null,null,"","","","","","",0]
[null,null,null,null,null,null,null,null,"","","","","","",0]
[null,null,null,null,null,null,null,null,"","","","","","",0]
[null,null,null,null,null,null,null,null,"","","","","","",0]
[null,null,null,null,null,null,null,null,"","","","","","",0]
[null,null,null,null,null,null,null,null,"","","","","","",0]
[null,null,null,null,null,null,null,null,"","","","","","",0]
[null,null,null,null,null,null,null,null,"","","","","","",0]
[null,null,null,null,null,null,null,null,"","","","","","",0]
[null,null,null,null,null,null,null,null,"","","","","","",0]
[null,null,null,null,null,null,null,null,"","","","","","",0]
[null,null,null,null,null,null,null,null,"","","","","","",0]
[null,null,null,null,null,null,null,null,"","","","","","",0]
[null,null,null,null,null,null,null,null,"","","","","","",0]
[null,null,null,null,null,null,null,null,"","","","","","",0]
[null,null,null,null,null,null,null,null,"","","","","","",0]
[null,null,null,null,null,null,null,null,"","","","","","",0]
[null,null,null,null,null,null,null,null,"","","","","","",0]
[null,null,null,null,null,null,null,null,"","","","","","",0]
[null,null,null,null,null,null,null,null,"","","","","","",0]
[null,null,null,null,null,null,null,null,"","","","","","",0]
[null,null,null,null,null,null,null,null,"","","","","","",0]
[null,null,null,null,null,null,null,null,"","","","","","",0]
[null,null,null,null,null,null,null,null,"","","","","","",0]
[null,null,null,null,null,null,null,null,"","","","","","",0]
[null,null,null,null,null,null,null,null,"","","","","","",0]
[null,null,null,null,null,null,null,null,"","","","","","",0]
[null,null,null,null,null,null,null,null,"","","","","","",0]
[null,null,null,null,null,null,null,null,"","","","","","",0]
[null,null,null,null,null,null,null,null,"","","","","","",0]
[null,null,null,null,null,null,null,null,"","","","","","",0]
[null,null,null,null,null,null,null,null,"","","","","","",0]
[null,null,null,null,null,null,null,null,"","","","","","",0]
[null,null,null,null,null,null,null,null,"","","","","","",0]
[null,null,null,null,null,null,null,null,"","","","","","",0]
[null,null,null,null,null,null,null,null,"","","","","","",0]
[null,null,null,null,null,null,null,null,"","","","","","",0]
[null,null,null,null,null,null,null,null,"","","","","","",0]
[null,null,null,null,null,null,null,null,"","","","","","",0]
[null,null,null,null,null,null,null,null,"","","","","","",0]
[null,null,null,null,null,null,null,null,"","","","","","",0]
[null,null,null,null,null,null,null,null,"","","","","","",0]
[null,null,null,null,null,null,null,null,"","","","","","",0]
[null,null,null,null,null,null,null,null,"","","","","","",0]
[null,null,null,null,null,null,null,null,"","","","","","",0]
[null,null,null,null,null,null,null,null,"","","","","","",0]
[null,null,null,null,null,null,null,null,"","","","","","",0]
[null,null,null,null,null,null,null,null,"","","","","","",0]
[null,null,null,null,null,null,null,null,"","","","","","",0]
[null,null,null,null,null,null,null,null,"","","","","","",0]
[null,null,null,null,null,null,null,null,"","","","","","",0]
[null,null,null,null,null,null,null,null,"","","","","","",0]
[null,null,null,null,null,null,null,null,"","","","","","",0]
[null,null,null,null,null,null,null,null,"","","","","","",0]
[null,null,null,null,null,null,null,null,"","","","","","",0]
[null,null,null,null,null,null,null,null,"","","","","","",0]
[null,null,null,null,null,null,null,null,"","","","","","",0]
[null,null,null,null,null,null,null,null,"","","","","","",0]
[null,null,null,null,null,null,null,null,"","","",{"$f":"IF(F386=\"\",\"\",IF(F386=Q390,0,IF(F386=Q390,0,D386)))","v":""},"","",0]
[null,null,null,null,null,null,null,null,{"$f":"IF(A387=\"\",\"\",A387)","v":""},{"$f":"IF(B387=\"\",\"\",B387)","v":""},{"$f":"IF(C387=\"\",\"\",C387)","v":""},"",{"$f":"IF(E387=\"\",\"\",VALUE(TRIM(MID(E387,1,1))))","v":""},{"$f":"IF(F387=\"\",\"\",VALUE(TRIM(MID(F387,1,1))))","v":""},{"$f":"IF(G387=\"SI\",1,IF(G387=\"\",0))","v":0}]
[null,null,null,null,null,null,null,null,"","","","","","",0]
[null,null,null,null,null,null,null,null,"","","","","","",0]
[null,null,null,null,null,null,null,null,"","","","","","",0]
[null,null,null,null,null,null,null,null,"","","","","","",0]
[null,null,null,null,null,null,null,null,"","","","","","",0]
[null,null,null,null,null,null,null,null,"","","","","","",0]
[null,null,null,null,null,null,null,null,"","","","","","",0]
[null,null,null,null,null,null,null,null,"","","","","","",0]
[null,null,null,null,null,null,null,null,"","","","","","",0]
[null,null,null,null,null,null,null,null,"","","","","","",0]
[null,null,null,null,null,null,null,null,"","","","","","",0]
[null,null,null,null,null,null,null,null,"","","","","","",0]
[null,null,null,null,null,null,null,null,"","","","","","",0]
[null,null,null,null,null,null,null,null,"","","","","","",0]
[null,null,null,null,null,null,null,null,"","","","","","",0]
[null,null,null,null,null,null,null,null,"","","","","","",0]
[null,null,null,null,null,null,null,null,"","","","","","",0]
[null,null,null,null,null,null,null,null,"","","","","","",0]
[null,null,null,null,null,null,null,null,"","","","","","",0]
[null,null,null,null,null,null,null,null,"","","","","","",0]
[null,null,null,null,null,null,null,null,"","","","","","",0]
[null,null,null,null,null,null,null,null,"","","","","","",0]
[null,null,null,null,null,null,null,null,"","","","","","",0]
[null,null,null,null,null,null,null,null,"","","","","","",0]
[null,null,null,null,null,null,null,null,"","","","","","",0]
[null,null,null,null,null,null,null,null,"","","","","","",0]
[null,null,null,null,null,null,null,null,"","","","","","",0]
[null,null,null,null,null,null,null,null,"","","","","","",0]
[null,null,null,null,null,null,null,null,"","","","","","",0]
[null,null,null,null,null,null,null,null,"","","","","","",0]
[null,null,null,null,null,null,null,null,"","","","","","",0]
[null,null,null,null,null,null,null,null,"","","","","","",0]
[null,null,null,null,null,null,null,null,"","","","","","",0]
[null,null,null,null,null,null,null,null,"","","","","","",0]
[null,null,null,null,null,null,null,null,"","","","","","",0]
[null,null,null,null,null,null,null,null,"","","","","","",0]
[null,null,null,null,null,null,null,null,"","","","","","",0]
[null,null,null,null,null,null,null,null,"","","","","","",0]
[null,null,null,null,null,null,null,null,"","","","","","",0]
[null,null,null,null,null,null,null,null,"","","","","","",0]
[null,null,null,null,null,null,null,null,"","","","","","",0]
[null,null,null,null,null,null,null,null,"","","","","","",0]
[null,null,null,null,null,null,null,null,"","","","","","",0]
[null,null,null,null,null,null,null,null,"","","","","","",0]
[null,null,null,null,null,null,null,null,"","","","","","",0]
[null,null,null,null,null,null,null,null,"","","","","","",0]
[null,null,null,null,null,null,null,null,"","","","","","",0]
[null,null,null,null,null,null,null,null,"","","","","","",0]
[null,null,null,null,null,null,null,null,"","","","","","",0]
[null,null,null,null,null,null,null,null,"","","","","","",0]
[null,null,null,null,null,null,null,null,"","","","","","",0]
[null,null,null,null,null,null,null,null,"","","","","","",0]
[null,null,null,null,null,null,null,null,"","","","","","",0]
[null,null,null,null,null,null,null,null,"","","","","","",0]
[null,null,null,null,null,null,null,null,"","","","","","",0]
[null,null,null,null,null,null,null,null,"","","","","","",0]
[null,null,null,null,null,null,null,null,"","","","","","",0]
[null,null,null,null,null,null,null,null,"","","","","","",0]
[null,null,null,null,null,null,null,null,"","","","","","",0]
[null,null,null,null,null,null,null,null,"","","","","","",0]
[null,null,null,null,null,null,null,null,"","","","","","",0]
[null,null,null,null,null,null,null,null,"","","","","","",0]
[null,null,null,null,null,null,null,null,"","","",{"$f":"IF(F450=\"\",\"\",IF(F450=Q454,0,IF(F450=Q454,0,D450)))","v":""},"","",0]
[null,null,null,null,null,null,null,null,{"$f":"IF(A451=\"\",\"\",A451)","v":""},{"$f":"IF(B451=\"\",\"\",B451)","v":""},{"$f":"IF(C451=\"\",\"\",C451)","v":""},"",{"$f":"IF(E451=\"\",\"\",VALUE(TRIM(MID(E451,1,1))))","v":""},{"$f":"IF(F451=\"\",\"\",VALUE(TRIM(MID(F451,1,1))))","v":""},{"$f":"IF(G451=\"SI\",1,IF(G451=\"\",0))","v":0}]
[null,null,null,null,null,null,null,null,"","","","","","",0]
[null,null,null,null,null,null,null,null,"","","","","","",0]
[null,null,null,null,null,null,null,null,"","","","","","",0]
[null,null,null,null,null,null,null,null,"","","","","","",0]
[null,null,null,null,null,null,null,null,"","","","","","",0]
[null,null,null,null,null,null,null,null,"","","","","","",0]
[null,null,null,null,null,null,null,null,"","","","","","",0]
[null,null,null,null,null,null,null,null,"","","","","","",0]
[null,null,null,null,null,null,null,null,"","","","","","",0]
[null,null,null,null,null,null,null,null,"","","","","","",0]
[null,null,null,null,null,null,null,null,"","","","","","",0]
[null,null,null,null,null,null,null,null,"","","","","","",0]
[null,null,null,null,null,null,null,null,"","","","","","",0]
[null,null,null,null,null,null,null,null,"","","","","","",0]
[null,null,null,null,null,null,null,null,"","","","","","",0]
[null,null,null,null,null,null,null,null,"","","","","","",0]
[null,null,null,null,null,null,null,null,"","","","","","",0]
[null,null,null,null,null,null,null,null,"","","","","","",0]
[null,null,null,null,null,null,null,null,"","","","","","",0]
[null,null,null,null,null,null,null,null,"","","","","","",0]
[null,null,null,null,null,null,null,null,"","","","","","",0]
[null,null,null,null,null,null,null,null,"","","","","","",0]
[null,null,null,null,null,null,null,null,"","","","","","",0]
[null,null,null,null,null,null,null,null,"","","","","","",0]
[null,null,null,null,null,null,null,null,"","","","","","",0]
[null,null,null,null,null,null,null,null,"","","","","","",0]
[null,null,null,null,null,null,null,null,"","","","","","",0]
[null,null,null,null,null,null,null,null,"","","","","","",0]
[null,null,null,null,null,null,null,null,"","","","","","",0]
[null,null,null,null,null,null,null,null,"","","","","","",0]
[null,null,null,null,null,null,null,null,"","","","","","",0]
[null,null,null,null,null,null,null,null,"","","","","","",0]
[null,null,null,null,null,null,null,null,"","","","","","",0]
[null,null,null,null,null,null,null,null,"","","","","","",0]
[null,null,null,null,null,null,null,null,"","","","","","",0]
[null,null,null,null,null,null,null,null,"","","","","","",0]
[null,null,null,null,null,null,null,null,"","","","","","",0]
[null,null,null,null,null,null,null,null,"","","","","","",0]
[null,null,null,null,null,null,null,null,"","","","","","",0]
[null,null,null,null,null,null,null,null,"","","","","","",0]
[null,null,null,null,null,null,null,null,"","","","","","",0]
[null,null,null,null,null,null,null,null,"","","","","","",0]
[null,null,null,null,null,null,null,null,"","","","","","",0]
[null,null,null,null,null,null,null,null,"","","","","","",0]
[null,null,null,null,null,null,null,null,"","","","","","",0]
[null,null,null,null,null,null,null,null,"","","","","","",0]
[null,null,null,null,null,null,null,null,"","","","","","",0]
[null,null,null,null,null,null,null,null,"","","","","","",0]
[null,null,null,null,null,null,null,null,"","","","","","",0]
[null,null,null,null,null,null,null,null,"","","","","","",0]
[null,null,null,null,null,null,null,null,"","","","","","",0]
[null,null,null,null,null,null,null,null,"","","","","","",0]
[null,null,null,null,null,null,null,null,"","","","","","",0]
[null,null,null,null,null,null,null,null,"","","","","","",0]
[null,null,null,null,null,null,null,null,"","","","","","",0]
[null,null,null,null,null,null,null,null,"","","","","","",0]
[null,null,null,null,null,null,null,null,"","","","","","",0]
[null,null,null,null,null,null,null,null,"","","","","","",0]
[null,null,null,null,null,null,null,null,"","","","","","",0]
[null,null,null,null,null,null,null,null,"","","","","","",0]
[null,null,null,null,null,null,null,null,"","","","","","",0]
[null,null,null,null,null,null,null,null,"","","","","","",0]
[null,null,null,null,null,null,null,null,"","","",{"$f":"IF(F514=\"\",\"\",IF(F514=Q518,0,IF(F514=Q518,0,D514)))","v":""},"","",0]
[null,null,null,null,null,null,null,null,{"$f":"IF(A515=\"\",\"\",A515)","v":""},{"$f":"IF(B515=\"\",\"\",B515)","v":""},{"$f":"IF(C515=\"\",\"\",C515)","v":""},"",{"$f":"IF(E515=\"\",\"\",VALUE(TRIM(MID(E515,1,1))))","v":""},{"$f":"IF(F515=\"\",\"\",VALUE(TRIM(MID(F515,1,1))))","v":""},{"$f":"IF(G515=\"SI\",1,IF(G515=\"\",0))","v":0}]
[null,null,null,null,null,null,null,null,"","","","","","",0]
[null,null,null,null,null,null,null,null,"","","","","","",0]
[null,null,null,null,null,null,null,null,"","","","","","",0]
[null,null,null,null,null,null,null,null,"","","","","","",0]
[null,null,null,null,null,null,null,null,"","","","","","",0]
[null,null,null,null,null,null,null,null,"","","","","","",0]
[null,null,null,null,null,null,null,null,"","","","","","",0]
[null,null,null,null,null,null,null,null,"","","","","","",0]
[null,null,null,null,null,null,null,null,"","","","","","",0]
[null,null,null,null,null,null,null,null,"","","","","","",0]
[null,null,null,null,null,null,null,null,"","","","","","",0]
[null,null,null,null,null,null,null,null,"","","","","","",0]
[null,null,null,null,null,null,null,null,"","","","","","",0]
[null,null,null,null,null,null,null,null,"","","","","","",0]
[null,null,null,null,null,null,null,null,"","","","","","",0]
[null,null,null,null,null,null,null,null,"","","","","","",0]
[null,null,null,null,null,null,null,null,"","","","","","",0]
[null,null,null,null,null,null,null,null,"","","","","","",0]
[null,null,null,null,null,null,null,null,"","","","","","",0]
[null,null,null,null,null,null,null,null,"","","","","","",0]
[null,null,null,null,null,null,null,null,"","","","","","",0]
[null,null,null,null,null,null,null,null,"","","","","","",0]
[null,null,null,null,null,null,null,null,"","","","","","",0]
[null,null,null,null,null,null,null,null,"","","","","","",0]
[null,null,null,null,null,null,null,null,"","","","","","",0]
[null,null,null,null,null,null,null,null,"","","","","","",0]
[null,null,null,null,null,null,null,null,"","","","","","",0]
[null,null,null,null,null,null,null,null,"","","","","","",0]
[null,null,null,null,null,null,null,null,"","","","","","",0]
[null,null,null,null,null,null,null,null,"","","","","","",0]
[null,null,null,null,null,null,null,null,"","","","","","",0]
[null,null,null,null,null,null,null,null,"","","","","","",0]
[null,null,null,null,null,null,null,null,"","","","","","",0]
[null,null,null,null,null,null,null,null,"","","","","","",0]
[null,null,null,null,null,null,null,null,"","","","","","",0]
[null,null,null,null,null,null,null,null,"","","","","","",0]
[null,null,null,null,null,null,null,null,"","","","","","",0]
[null,null,null,null,null,null,null,null,"","","","","","",0]
[null,null,null,null,null,null,null,null,"","","","","","",0]
[null,null,null,null,null,null,null,null,"","","","","","",0]
[null,null,null,null,null,null,null,null,"","","","","","",0]
[null,null,null,null,null,null,null,null,"","","","","","",0]
[null,null,null,null,null,null,null,null,"","","","","","",0]
[null,null,null,null,null,null,null,null,"","","","","","",0]
[null,null,null,null,null,null,null,null,"","","","","","",0]
[null,null,null,null,null,null,null,null,"","","","","","",0]
[null,null,null,null,null,null,null,null,"","","","","","",0]
[null,null,null,null,null,null,null,null,"","","","","","",0]
[null,null,null,null,null,null,null,null,"","","","","","",0]
[null,null,null,null,null,null,null,null,"","","","","","",0]
[null,null,null,null,null,null,null,null,"","","","","","",0]
[null,null,null,null,null,null,null,null,"","","","","","",0]
[null,null,null,null,null,null,null,null,"","","","","","",0]
[null,null,null,null,null,null,null,null,"","","","","","",0]
[null,null,null,null,null,null,null,null,"","","","","","",0]
[null,null,null,null,null,null,null,null,"","","","","","",0]
[null,null,null,null,null,null,null,null,"","","","","","",0]
[null,null,null,null,null,null,null,null,"","","","","","",0]
[null,null,null,null,null,null,null,null,"","","","","","",0]
[null,null,null,null,null,null,null,null,"","","","","","",0]
[null,null,null,null,null,null,null,null,"","","","","","",0]
[null,null,null,null,null,null,null,null,"","","","","","",0]
[null,null,null,null,null,null,null,null,"","","",{"$f":"IF(F578=\"\",\"\",IF(F578=Q582,0,IF(F578=Q582,0,D578)))","v":""},"","",0]
[null,null,null,null,null,null,null,null,{"$f":"IF(A579=\"\",\"\",A579)","v":""},{"$f":"IF(B579=\"\",\"\",B579)","v":""},{"$f":"IF(C579=\"\",\"\",C579)","v":""},"",{"$f":"IF(E579=\"\",\"\",VALUE(TRIM(MID(E579,1,1))))","v":""},{"$f":"IF(F579=\"\",\"\",VALUE(TRIM(MID(F579,1,1))))","v":""},{"$f":"IF(G579=\"SI\",1,IF(G579=\"\",0))","v":0}]
[null,null,null,null,null,null,null,null,"","","","","","",0]
[null,null,null,null,null,null,null,null,"","","","","","",0]
[null,null,null,null,null,null,null,null,"","","","","","",0]
[null,null,null,null,null,null,null,null,"","","","","","",0]
[null,null,null,null,null,null,null,null,"","","","","","",0]
[null,null,null,null,null,null,null,null,"","","","","","",0]
[null,null,null,null,null,null,null,null,"","","","","","",0]
[null,null,null,null,null,null,null,null,"","","","","","",0]
[null,null,null,null,null,null,null,null,"","","","","","",0]
[null,null,null,null,null,null,null,null,"","","","","","",0]
[null,null,null,null,null,null,null,null,"","","","","","",0]
[null,null,null,null,null,null,null,null,"","","","","","",0]
[null,null,null,null,null,null,null,null,"","","","","","",0]
[null,null,null,null,null,null,null,null,"","","","","","",0]
[null,null,null,null,null,null,null,null,"","","","","","",0]
[null,null,null,null,null,null,null,null,"","","","","","",0]
[null,null,null,null,null,null,null,null,"","","","","","",0]
[null,null,null,null,null,null,null,null,"","","","","","",0]
[null,null,null,null,null,null,null,null,"","","","","","",0]
[null,null,null,null,null,null,null,null,"","","","","","",0]
[null,null,null,null,null,null,null,null,"","","","","","",0]
[null,null,null,null,null,null,null,null,"","","","","","",0]
[null,null,null,null,null,null,null,null,"","","","","","",0]
[null,null,null,null,null,null,null,null,"","","","","","",0]
[null,null,null,null,null,null,null,null,"","","","","","",0]
[null,null,null,null,null,null,null,null,"","","","","","",0]
[null,null,null,null,null,null,null,null,"","","","","","",0]
[null,null,null,null,null,null,null,null,"","","","","","",0]
[null,null,null,null,null,null,null,null,"","","","","","",0]
[null,null,null,null,null,null,null,null,"","","","","","",0]
[null,null,null,null,null,null,null,null,"","","","","","",0]
[null,null,null,null,null,null,null,null,"","","","","","",0]
[null,null,null,null,null,null,null,null,"","","","","","",0]
[null,null,null,null,null,null,null,null,"","","","","","",0]
[null,null,null,null,null,null,null,null,"","","","","","",0]
[null,null,null,null,null,null,null,null,"","","","","","",0]
[null,null,null,null,null,null,null,null,"","","","","","",0]
[null,null,null,null,null,null,null,null,"","","","","","",0]
[null,null,null,null,null,null,null,null,"","","","","","",0]
[null,null,null,null,null,null,null,null,"","","","","","",0]
[null,null,null,null,null,null,null,null,"","","","","","",0]
[null,null,null,null,null,null,null,null,"","","","","","",0]
[null,null,null,null,null,null,null,null,"","","","","","",0]
[null,null,null,null,null,null,null,null,"","","","","","",0]
[null,null,null,null,null,null,null,null,"","","","","","",0]
[null,null,null,null,null,null,null,null,"","","","","","",0]
[null,null,null,null,null,null,null,null,"","","","","","",0]
[null,null,null,null,null,null,null,null,"","","","","","",0]
[null,null,null,null,null,null,null,null,"","","","","","",0]
[null,null,null,null,null,null,null,null,"","","","","","",0]
[null,null,null,null,null,null,null,null,"","","","","","",0]
[null,null,null,null,null,null,null,null,"","","","","","",0]
[null,null,null,null,null,null,null,null,"","","","","","",0]
[null,null,null,null,null,null,null,null,"","","","","","",0]
[null,null,null,null,null,null,null,null,"","","","","","",0]
[null,null,null,null,null,null,null,null,"","","","","","",0]
[null,null,null,null,null,null,null,null,"","","","","","",0]
[null,null,null,null,null,null,null,null,"","","","","","",0]
[null,null,null,null,null,null,null,null,"","","","","","",0]
[null,null,null,null,null,null,null,null,"","","","","","",0]
[null,null,null,null,null,null,null,null,"","","","","","",0]
[null,null,null,null,null,null,null,null,"","","","","","",0]
[null,null,null,null,null,null,null,null,"","","",{"$f":"IF(F642=\"\",\"\",IF(F642=Q646,0,IF(F642=Q646,0,D642)))","v":""},"","",0]
[null,null,null,null,null,null,null,null,{"$f":"IF(A643=\"\",\"\",A643)","v":""},{"$f":"IF(B643=\"\",\"\",B643)","v":""},{"$f":"IF(C643=\"\",\"\",C643)","v":""},"",{"$f":"IF(E643=\"\",\"\",VALUE(TRIM(MID(E643,1,1))))","v":""},{"$f":"IF(F643=\"\",\"\",VALUE(TRIM(MID(F643,1,1))))","v":""},{"$f":"IF(G643=\"SI\",1,IF(G643=\"\",0))","v":0}]
[null,null,null,null,null,null,null,null,"","","","","","",0]
[null,null,null,null,null,null,null,null,"","","","","","",0]
[null,null,null,null,null,null,null,null,"","","","","","",0]
[null,null,null,null,null,null,null,null,"","","","","","",0]
[null,null,null,null,null,null,null,null,"","","","","","",0]
[null,null,null,null,null,null,null,null,"","","","","","",0]
[null,null,null,null,null,null,null,null,"","","","","","",0]
[null,null,null,null,null,null,null,null,"","","","","","",0]
[null,null,null,null,null,null,null,null,"","","","","","",0]
[null,null,null,null,null,null,null,null,"","","","","","",0]
[null,null,null,null,null,null,null,null,"","","","","","",0]
[null,null,null,null,null,null,null,null,"","","","","","",0]
[null,null,null,null,null,null,null,null,"","","","","","",0]
[null,null,null,null,null,null,null,null,"","","","","","",0]
[null,null,null,null,null,null,null,null,"","","","","","",0]
[null,null,null,null,null,null,null,null,"","","","","","",0]
[null,null,null,null,null,null,null,null,"","","","","","",0]
[null,null,null,null,null,null,null,null,"","","","","","",0]
[null,null,null,null,null,null,null,null,"","","","","","",0]
[null,null,null,null,null,null,null,null,"","","","","","",0]
[null,null,null,null,null,null,null,null,"","","","","","",0]
[null,null,null,null,null,null,null,null,"","","","","","",0]
[null,null,null,null,null,null,null,null,"","","","","","",0]
[null,null,null,null,null,null,null,null,"","","","","","",0]
[null,null,null,null,null,null,null,null,"","","","","","",0]
[null,null,null,null,null,null,null,null,"","","","","","",0]
[null,null,null,null,null,null,null,null,"","","","","","",0]
[null,null,null,null,null,null,null,null,"","","","","","",0]
[null,null,null,null,null,null,null,null,"","","","","","",0]
[null,null,null,null,null,null,null,null,"","","","","","",0]
[null,null,null,null,null,null,null,null,"","","","","","",0]
[null,null,null,null,null,null,null,null,"","","","","","",0]
[null,null,null,null,null,null,null,null,"","","","","","",0]
[null,null,null,null,null,null,null,null,"","","","","","",0]
[null,null,null,null,null,null,null,null,"","","","","","",0]
[null,null,null,null,null,null,null,null,"","","","","","",0]
[null,null,null,null,null,null,null,null,"","","","","","",0]
[null,null,null,null,null,null,null,null,"","","","","","",0]
[null,null,null,null,null,null,null,null,"","","","","","",0]
[null,null,null,null,null,null,null,null,"","","","","","",0]
[null,null,null,null,null,null,null,null,"","","","","","",0]
[null,null,null,null,null,null,null,null,"","","","","","",0]
[null,null,null,null,null,null,null,null,"","","","","","",0]
[null,null,null,null,null,null,null,null,"","","","","","",0]
[null,null,null,null,null,null,null,null,"","","","","","",0]
[null,null,null,null,null,null,null,null,"","","","","","",0]
[null,null,null,null,null,null,null,null,"","","","","","",0]
[null,null,null,null,null,null,null,null,"","","","","","",0]
[null,null,null,null,null,null,null,null,"","","","","","",0]
[null,null,null,null,null,null,null,null,"","","","","","",0]
[null,null,null,null,null,null,null,null,"","","","","","",0]
[null,null,null,null,null,null,null,null,"","","","","","",0]
[null,null,null,null,null,null,null,null,"","","","","","",0]
[null,null,null,null,null,null,null,null,"","","","","","",0]
[null,null,null,null,null,null,null,null,"","","","","","",0]
[null,null,null,null,null,null,null,null,"","","","","","",0]
[null,null,null,null,null,null,null,null,"","","","","","",0]
[null,null,null,null,null,null,null,null,"","","","","","",0]
[null,null,null,null,null,null,null,null,"","","","","","",0]
[null,null,null,null,null,null,null,null,"","","","","","",0]
[null,null,null,null,null,null,null,null,"","","","","","",0]
[null,null,null,null,null,null,null,null,"","","","","","",0]
[null,null,null,null,null,null,null,null,"","","",{"$f":"IF(F706=\"\",\"\",IF(F706=Q710,0,IF(F706=Q710,0,D706)))","v":""},"","",0]
[null,null,null,null,null,null,null,null,{"$f":"IF(A707=\"\",\"\",A707)","v":""},{"$f":"IF(B707=\"\",\"\",B707)","v":""},{"$f":"IF(C707=\"\",\"\",C707)","v":""},"",{"$f":"IF(E707=\"\",\"\",VALUE(TRIM(MID(E707,1,1))))","v":""},{"$f":"IF(F707=\"\",\"\",VALUE(TRIM(MID(F707,1,1))))","v":""},{"$f":"IF(G707=\"SI\",1,IF(G707=\"\",0))","v":0}]
[null,null,null,null,null,null,null,null,"","","","","","",0]
[null,null,null,null,null,null,null,null,"","","","","","",0]
[null,null,null,null,null,null,null,null,"","","","","","",0]
[null,null,null,null,null,null,null,null,"","","","","","",0]
[null,null,null,null,null,null,null,null,"","","","","","",0]
[null,null,null,null,null,null,null,null,"","","","","","",0]
[null,null,null,null,null,null,null,null,"","","","","","",0]
[null,null,null,null,null,null,null,null,"","","","","","",0]
[null,null,null,null,null,null,null,null,"","","","","","",0]
[null,null,null,null,null,null,null,null,"","","","","","",0]
[null,null,null,null,null,null,null,null,"","","","","","",0]
[null,null,null,null,null,null,null,null,"","","","","","",0]
[null,null,null,null,null,null,null,null,"","","","","","",0]
[null,null,null,null,null,null,null,null,"","","","","","",0]
[null,null,null,null,null,null,null,null,"","","","","","",0]
[null,null,null,null,null,null,null,null,"","","","","","",0]
[null,null,null,null,null,null,null,null,"","","","","","",0]
[null,null,null,null,null,null,null,null,"","","","","","",0]
[null,null,null,null,null,null,null,null,"","","","","","",0]
[null,null,null,null,null,null,null,null,"","","","","","",0]
[null,null,null,null,null,null,null,null,"","","","","","",0]
[null,null,null,null,null,null,null,null,"","","","","","",0]
[null,null,null,null,null,null,null,null,"","","","","","",0]
[null,null,null,null,null,null,null,null,"","","","","","",0]
[null,null,null,null,null,null,null,null,"","","","","","",0]
[null,null,null,null,null,null,null,null,"","","","","","",0]
[null,null,null,null,null,null,null,null,"","","","","","",0]
[null,null,null,null,null,null,null,null,"","","","","","",0]
[null,null,null,null,null,null,null,null,"","","","","","",0]
[null,null,null,null,null,null,null,null,"","","","","","",0]
[null,null,null,null,null,null,null,null,"","","","","","",0]
[null,null,null,null,null,null,null,null,"","","","","","",0]
[null,null,null,null,null,null,null,null,"","","","","","",0]
[null,null,null,null,null,null,null,null,"","","","","","",0]
[null,null,null,null,null,null,null,null,"","","","","","",0]
[null,null,null,null,null,null,null,null,"","","","","","",0]
[null,null,null,null,null,null,null,null,"","","","","","",0]
[null,null,null,null,null,null,null,null,"","","","","","",0]
[null,null,null,null,null,null,null,null,"","","","","","",0]
[null,null,null,null,null,null,null,null,"","","","","","",0]
[null,null,null,null,null,null,null,null,"","","","","","",0]
[null,null,null,null,null,null,null,null,"","","","","","",0]
[null,null,null,null,null,null,null,null,"","","","","","",0]
[null,null,null,null,null,null,null,null,"","","","","","",0]
[null,null,null,null,null,null,null,null,"","","","","","",0]
[null,null,null,null,null,null,null,null,"","","","","","",0]
[null,null,null,null,null,null,null,null,"","","","","","",0]
[null,null,null,null,null,null,null,null,"","","","","","",0]
[null,null,null,null,null,null,null,null,"","","","","","",0]
[null,null,null,null,null,null,null,null,"","","","","","",0]
[null,null,null,null,null,null,null,null,"","","","","","",0]
[null,null,null,null,null,null,null,null,"","","","","","",0]
[null,null,null,null,null,null,null,null,"","","","","","",0]
[null,null,null,null,null,null,null,null,"","","","","","",0]
[null,null,null,null,null,null,null,null,"","","","","","",0]
[null,null,null,null,null,null,null,null,"","","","","","",0]
[null,null,null,null,null,null,null,null,"","","","","","",0]
[null,null,null,null,null,null,null,null,"","","","","","",0]
[null,null,null,null,null,null,null,null,"","","","","","",0]
[null,null,null,null,null,null,null,null,"","","","","","",0]
[null,null,null,null,null,null,null,null,"","","","","","",0]
[null,null,null,null,null,null,null,null,"","","","","","",0]
[null,null,null,null,null,null,null,null,"","","",{"$f":"IF(F770=\"\",\"\",IF(F770=Q774,0,IF(F770=Q774,0,D770)))","v":""},"","",0]
[null,null,null,null,null,null,null,null,{"$f":"IF(A771=\"\",\"\",A771)","v":""},{"$f":"IF(B771=\"\",\"\",B771)","v":""},{"$f":"IF(C771=\"\",\"\",C771)","v":""},"",{"$f":"IF(E771=\"\",\"\",VALUE(TRIM(MID(E771,1,1))))","v":""},{"$f":"IF(F771=\"\",\"\",VALUE(TRIM(MID(F771,1,1))))","v":""},{"$f":"IF(G771=\"SI\",1,IF(G771=\"\",0))","v":0}]
[null,null,null,null,null,null,null,null,"","","","","","",0]
[null,null,null,null,null,null,null,null,"","","","","","",0]
[null,null,null,null,null,null,null,null,"","","","","","",0]
[null,null,null,null,null,null,null,null,"","","","","","",0]
[null,null,null,null,null,null,null,null,"","","","","","",0]
[null,null,null,null,null,null,null,null,"","","","","","",0]
[null,null,null,null,null,null,null,null,"","","","","","",0]
[null,null,null,null,null,null,null,null,"","","","","","",0]
[null,null,null,null,null,null,null,null,"","","","","","",0]
[null,null,null,null,null,null,null,null,"","","","","","",0]
[null,null,null,null,null,null,null,null,"","","","","","",0]
[null,null,null,null,null,null,null,null,"","","","","","",0]
[null,null,null,null,null,null,null,null,"","","","","","",0]
[null,null,null,null,null,null,null,null,"","","","","","",0]
[null,null,null,null,null,null,null,null,"","","","","","",0]
[null,null,null,null,null,null,null,null,"","","","","","",0]
[null,null,null,null,null,null,null,null,"","","","","","",0]
[null,null,null,null,null,null,null,null,"","","","","","",0]
[null,null,null,null,null,null,null,null,"","","","","","",0]
[null,null,null,null,null,null,null,null,"","","","","","",0]
[null,null,null,null,null,null,null,null,"","","","","","",0]
[null,null,null,null,null,null,null,null,"","","","","","",0]
[null,null,null,null,null,null,null,null,"","","","","","",0]
[null,null,null,null,null,null,null,null,"","","","","","",0]
[null,null,null,null,null,null,null,null,"","","","","","",0]
[null,null,null,null,null,null,null,null,"","","","","","",0]
[null,null,null,null,null,null,null,null,"","","","","","",0]
[null,null,null,null,null,null,null,null,"","","","","","",0]
[null,null,null,null,null,null,null,null,"","","","","","",0]
[null,null,null,null,null,null,null,null,"","","","","","",0]
[null,null,null,null,null,null,null,null,"","","","","","",0]
[null,null,null,null,null,null,null,null,"","","","","","",0]
[null,null,null,null,null,null,null,null,"","","","","","",0]
[null,null,null,null,null,null,null,null,"","","","","","",0]
[null,null,null,null,null,null,null,null,"","","","","","",0]
[null,null,null,null,null,null,null,null,"","","","","","",0]
[null,null,null,null,null,null,null,null,"","","","","","",0]
[null,null,null,null,null,null,null,null,"","","","","","",0]
[null,null,null,null,null,null,null,null,"","","","","","",0]
[null,null,null,null,null,null,null,null,"","","","","","",0]
[null,null,null,null,null,null,null,null,"","","","","","",0]
[null,null,null,null,null,null,null,null,"","","","","","",0]
[null,null,null,null,null,null,null,null,"","","","","","",0]
[null,null,null,null,null,null,null,null,"","","","","","",0]
[null,null,null,null,null,null,null,null,"","","","","","",0]
[null,null,null,null,null,null,null,null,"","","","","","",0]
[null,null,null,null,null,null,null,null,"","","","","","",0]
[null,null,null,null,null,null,null,null,"","","","","","",0]
[null,null,null,null,null,null,null,null,"","","","","","",0]
[null,null,null,null,null,null,null,null,"","","","","","",0]
[null,null,null,null,null,null,null,null,"","","","","","",0]
[null,null,null,null,null,null,null,null,"","","","","","",0]
[null,null,null,null,null,null,null,null,"","","","","","",0]
[null,null,null,null,null,null,null,null,"","","","","","",0]
[null,null,null,null,null,null,null,null,"","","","","","",0]
[null,null,null,null,null,null,null,null,"","","","","","",0]
[null,null,null,null,null,null,null,null,"","","","","","",0]
[null,null,null,null,null,null,null,null,"","","","","","",0]
[null,null,null,null,null,null,null,null,"","","","","","",0]
[null,null,null,null,null,null,null,null,"","","","","","",0]
[null,null,null,null,null,null,null,null,"","","","","","",0]
[null,null,null,null,null,null,null,null,"","","","","","",0]
[null,null,null,null,null,null,null,null,"","","",{"$f":"IF(F834=\"\",\"\",IF(F834=Q838,0,IF(F834=Q838,0,D834)))","v":""},"","",0]
[null,null,null,null,null,null,null,null,{"$f":"IF(A835=\"\",\"\",A835)","v":""},{"$f":"IF(B835=\"\",\"\",B835)","v":""},{"$f":"IF(C835=\"\",\"\",C835)","v":""},"",{"$f":"IF(E835=\"\",\"\",VALUE(TRIM(MID(E835,1,1))))","v":""},{"$f":"IF(F835=\"\",\"\",VALUE(TRIM(MID(F835,1,1))))","v":""},{"$f":"IF(G835=\"SI\",1,IF(G835=\"\",0))","v":0}]
[null,null,null,null,null,null,null,null,"","","","","","",0]
[null,null,null,null,null,null,null,null,"","","","","","",0]
[null,null,null,null,null,null,null,null,"","","","","","",0]
[null,null,null,null,null,null,null,null,"","","","","","",0]
[null,null,null,null,null,null,null,null,"","","","","","",0]
[null,null,null,null,null,null,null,null,"","","","","","",0]
[null,null,null,null,null,null,null,null,"","","","","","",0]
[null,null,null,null,null,null,null,null,"","","","","","",0]
[null,null,null,null,null,null,null,null,"","","","","","",0]
[null,null,null,null,null,null,null,null,"","","","","","",0]
[null,null,null,null,null,null,null,null,"","","","","","",0]
[null,null,null,null,null,null,null,null,"","","","","","",0]
[null,null,null,null,null,null,null,null,"","","","","","",0]
[null,null,null,null,null,null,null,null,"","","","","","",0]
[null,null,null,null,null,null,null,null,"","","","","","",0]
[null,null,null,null,null,null,null,null,"","","","","","",0]
[null,null,null,null,null,null,null,null,"","","","","","",0]
[null,null,null,null,null,null,null,null,"","","","","","",0]
[null,null,null,null,null,null,null,null,"","","","","","",0]
[null,null,null,null,null,null,null,null,"","","","","","",0]
[null,null,null,null,null,null,null,null,"","","","","","",0]
[null,null,null,null,null,null,null,null,"","","","","","",0]
[null,null,null,null,null,null,null,null,"","","","","","",0]
[null,null,null,null,null,null,null,null,"","","","","","",0]
[null,null,null,null,null,null,null,null,"","","","","","",0]
[null,null,null,null,null,null,null,null,"","","","","","",0]
[null,null,null,null,null,null,null,null,"","","","","","",0]
[null,null,null,null,null,null,null,null,"","","","","","",0]
[null,null,null,null,null,null,null,null,"","","","","","",0]
[null,null,null,null,null,null,null,null,"","","","","","",0]
[null,null,null,null,null,null,null,null,"","","","","","",0]
[null,null,null,null,null,null,null,null,"","","","","","",0]
[null,null,null,null,null,null,null,null,"","","","","","",0]
[null,null,null,null,null,null,null,null,"","","","","","",0]
[null,null,null,null,null,null,null,null,"","","","","","",0]
[null,null,null,null,null,null,null,null,"","","","","","",0]
[null,null,null,null,null,null,null,null,"","","","","","",0]
[null,null,null,null,null,null,null,null,"","","","","","",0]
[null,null,null,null,null,null,null,null,"","","","","","",0]
[null,null,null,null,null,null,null,null,"","","","","","",0]
[null,null,null,null,null,null,null,null,"","","","","","",0]
[null,null,null,null,null,null,null,null,"","","","","","",0]
[null,null,null,null,null,null,null,null,"","","","","","",0]
[null,null,null,null,null,null,null,null,"","","","","","",0]
[null,null,null,null,null,null,null,null,"","","","","","",0]
[null,null,null,null,null,null,null,null,"","","","","","",0]
[null,null,null,null,null,null,null,null,"","","","","","",0]
[null,null,null,null,null,null,null,null,"","","","","","",0]
[null,null,null,null,null,null,null,null,"","","","","","",0]
[null,null,null,null,null,null,null,null,"","","","","","",0]
[null,null,null,null,null,null,null,null,"","","","","","",0]
[null,null,null,null,null,null,null,null,"","","","","","",0]
[null,null,null,null,null,null,null,null,"","","","","","",0]
[null,null,null,null,null,null,null,null,"","","","","","",0]
[null,null,null,null,null,null,null,null,"","","","","","",0]
[null,null,null,null,null,null,null,null,"","","","","","",0]
[null,null,null,null,null,null,null,null,"","","","","","",0]
[null,null,null,null,null,null,null,null,"","","","","","",0]
[null,null,null,null,null,null,null,null,"","","","","","",0]
[null,null,null,null,null,null,null,null,"","","","","","",0]
[null,null,null,null,null,null,null,null,"","","","","","",0]
[null,null,null,null,null,null,null,null,"","","","","","",0]
[null,null,null,null,null,null,null,null,"","","",{"$f":"IF(F898=\"\",\"\",IF(F898=Q902,0,IF(F898=Q902,0,D898)))","v":""},"","",0]
[null,null,null,null,null,null,null,null,{"$f":"IF(A899=\"\",\"\",A899)","v":""},{"$f":"IF(B899=\"\",\"\",B899)","v":""},{"$f":"IF(C899=\"\",\"\",C899)","v":""},"",{"$f":"IF(E899=\"\",\"\",VALUE(TRIM(MID(E899,1,1))))","v":""},{"$f":"IF(F899=\"\",\"\",VALUE(TRIM(MID(F899,1,1))))","v":""},{"$f":"IF(G899=\"SI\",1,IF(G899=\"\",0))","v":0}]
[null,null,null,null,null,null,null,null,"","","","","","",0]
[null,null,null,null,null,null,null,null,"","","","","","",0]
[null,null,null,null,null,null,null,null,"","","","","","",0]
[null,null,null,null,null,null,null,null,"","","","","","",0]
[null,null,null,null,null,null,null,null,"","","","","","",0]
[null,null,null,null,null,null,null,null,"","","","","","",0]
[null,null,null,null,null,null,null,null,"","","","","","",0]
[null,null,null,null,null,null,null,null,"","","","","","",0]
[null,null,null,null,null,null,null,null,"","","","","","",0]
[null,null,null,null,null,null,null,null,"","","","","","",0]
[null,null,null,null,null,null,null,null,"","","","","","",0]
[null,null,null,null,null,null,null,null,"","","","","","",0]
[null,null,null,null,null,null,null,null,"","","","","","",0]
[null,null,null,null,null,null,null,null,"","","","","","",0]
[null,null,null,null,null,null,null,null,"","","","","","",0]
[null,null,null,null,null,null,null,null,"","","","","","",0]
[null,null,null,null,null,null,null,null,"","","","","","",0]
[null,null,null,null,null,null,null,null,"","","","","","",0]
[null,null,null,null,null,null,null,null,"","","","","","",0]
[null,null,null,null,null,null,null,null,"","","","","","",0]
[null,null,null,null,null,null,null,null,"","","","","","",0]
[null,null,null,null,null,null,null,null,"","","","","","",0]
[null,null,null,null,null,null,null,null,"","","","","","",0]
[null,null,null,null,null,null,null,null,"","","","","","",0]
[null,null,null,null,null,null,null,null,"","","","","","",0]
[null,null,null,null,null,null,null,null,"","","","","","",0]
[null,null,null,null,null,null,null,null,"","","","","","",0]
[null,null,null,null,null,null,null,null,"","","","","","",0]
[null,null,null,null,null,null,null,null,"","","","","","",0]
[null,null,null,null,null,null,null,null,"","","","","","",0]
[null,null,null,null,null,null,null,null,"","","","","","",0]
[null,null,null,null,null,null,null,null,"","","","","","",0]
[null,null,null,null,null,null,null,null,"","","","","","",0]
[null,null,null,null,null,null,null,null,"","","","","","",0]
[null,null,null,null,null,null,null,null,"","","","","","",0]
[null,null,null,null,null,null,null,null,"","","","","","",0]
[null,null,null,null,null,null,null,null,"","","","","","",0]
[null,null,null,null,null,null,null,null,"","","","","","",0]
[null,null,null,null,null,null,null,null,"","","","","","",0]
[null,null,null,null,null,null,null,null,"","","","","","",0]
[null,null,null,null,null,null,null,null,"","","","","","",0]
[null,null,null,null,null,null,null,null,"","","","","","",0]
[null,null,null,null,null,null,null,null,"","","","","","",0]
[null,null,null,null,null,null,null,null,"","","","","","",0]
[null,null,null,null,null,null,null,null,"","","","","","",0]
[null,null,null,null,null,null,null,null,"","","","","","",0]
[null,null,null,null,null,null,null,null,"","","","","","",0]
[null,null,null,null,null,null,null,null,"","","","","","",0]
[null,null,null,null,null,null,null,null,"","","","","","",0]
[null,null,null,null,null,null,null,null,"","","","","","",0]
[null,null,null,null,null,null,null,null,"","","","","","",0]
[null,null,null,null,null,null,null,null,"","","","","","",0]
[null,null,null,null,null,null,null,null,"","","","","","",0]
[null,null,null,null,null,null,null,null,"","","","","","",0]
[null,null,null,null,null,null,null,null,"","","","","","",0]
[null,null,null,null,null,null,null,null,"","","","","","",0]
[null,null,null,null,null,null,null,null,"","","","","","",0]
[null,null,null,null,null,null,null,null,"","","","","","",0]
[null,null,null,null,null,null,null,null,"","","","","","",0]
[null,null,null,null,null,null,null,null,"","","","","","",0]
[null,null,null,null,null,null,null,null,"","","","","","",0]
[null,null,null,null,null,null,null,null,"","","","","","",0]
[null,null,null,null,null,null,null,null,"","","",{"$f":"IF(F962=\"\",\"\",IF(F962=Q966,0,IF(F962=Q966,0,D962)))","v":""},"","",0]
[null,null,null,null,null,null,null,null,{"$f":"IF(A963=\"\",\"\",A963)","v":""},{"$f":"IF(B963=\"\",\"\",B963)","v":""},{"$f":"IF(C963=\"\",\"\",C963)","v":""},"",{"$f":"IF(E963=\"\",\"\",VALUE(TRIM(MID(E963,1,1))))","v":""},{"$f":"IF(F963=\"\",\"\",VALUE(TRIM(MID(F963,1,1))))","v":""},{"$f":"IF(G963=\"SI\",1,IF(G963=\"\",0))","v":0}]
[null,null,null,null,null,null,null,null,"","","","","","",0]
[null,null,null,null,null,null,null,null,"","","","","","",0]
[null,null,null,null,null,null,null,null,"","","","","","",0]
[null,null,null,null,null,null,null,null,"","","","","","",0]
[null,null,null,null,null,null,null,null,"","","","","","",0]
[null,null,null,null,null,null,null,null,"","","","","","",0]
[null,null,null,null,null,null,null,null,"","","","","","",0]
[null,null,null,null,null,null,null,null,"","","","","","",0]
[null,null,null,null,null,null,null,null,"","","","","","",0]
[null,null,null,null,null,null,null,null,"","","","","","",0]
[null,null,null,null,null,null,null,null,"","","","","","",0]
[null,null,null,null,null,null,null,null,"","","","","","",0]
[null,null,null,null,null,null,null,null,"","","","","","",0]
[null,null,null,null,null,null,null,null,"","","","","","",0]
[null,null,null,null,null,null,null,null,"","","","","","",0]
[null,null,null,null,null,null,null,null,"","","","","","",0]
[null,null,null,null,null,null,null,null,"","","","","","",0]
[null,null,null,null,null,null,null,null,"","","","","","",0]
[null,null,null,null,null,null,null,null,"","","","","","",0]
[null,null,null,null,null,null,null,null,"","","","","","",0]
[null,null,null,null,null,null,null,null,"","","","","","",0]
[null,null,null,null,null,null,null,null,"","","","","","",0]
[null,null,null,null,null,null,null,null,"","","","","","",0]
[null,null,null,null,null,null,null,null,"","","","","","",0]
[null,null,null,null,null,null,null,null,"","","","","","",0]
[null,null,null,null,null,null,null,null,"","","","","","",0]
[null,null,null,null,null,null,null,null,"","","","","","",0]
[null,null,null,null,null,null,null,null,"","","","","","",0]
[null,null,null,null,null,null,null,null,"","","","","","",0]
[null,null,null,null,null,null,null,null,"","","","","","",0]
[null,null,null,null,null,null,null,null,"","","","","","",0]
[null,null,null,null,null,null,null,null,"","","","","","",0]
[null,null,null,null,null,null,null,null,"","","","","","",0]
[null,null,null,null,null,null,null,null,"","","","","","",0]
[null,null,null,null,null,null,null,null,"","","","","","",0]
[null,null,null,null,null,null,null,null,"","","","","","",0]
[null,null,null,null,null,null,null,null,"","","","","","",0]
[null,null,null,null,null,null,null,null,"","","","","","",0]
[null,null,null,null,null,null,null,null,"","","","","","",0]
[null,null,null,null,null,null,null,null,"","","","","","",0]
[null,null,null,null,null,null,null,null,"","","","","","",0]
[null,null,null,null,null,null,null,null,"","","","","","",0]
[null,null,null,null,null,null,null,null,"","","","","","",0]
[null,null,null,null,null,null,null,null,"","","","","","",0]
[null,null,null,null,null,null,null,null,"","","","","","",0]
[null,null,null,null,null,null,null,null,"","","","","","",0]
[null,null,null,null,null,null,null,null,"","","","","","",0]
[null,null,null,null,null,null,null,null,"","","","","","",0]
[null,null,null,null,null,null,null,null,"","","","","","",0]
[null,null,null,null,null,null,null,null,"","","","","","",0]
[null,null,null,null,null,null,null,null,"","","","","","",0]
[null,null,null,null,null,null,null,null,"","","","","","",0]
[null,null,null,null,null,null,null,null,"","","","","","",0]
[null,null,null,null,null,null,null,null,"","","","","","",0]
[null,null,null,null,null,null,null,null,"","","","","","",0]
[null,null,null,null,null,null,null,null,"","","","","","",0]
[null,null,null,null,null,null,null,null,"","","","","","",0]
[null,null,null,null,null,null,null,null,"","","","","","",0]
[null,null,null,null,null,null,null,null,"","","","","","",0]
[null,null,null,null,null,null,null,null,"","","","","","",0]
[null,null,null,null,null,null,null,null,"","","","","","",0]
[null,null,null,null,null,null,null,null,"","","","","","",0]
[null,null,null,null,null,null,null,null,"","","",{"$f":"IF(F1026=\"\",\"\",IF(F1026=Q1030,0,IF(F1026=Q1030,0,D1026)))","v":""},"","",0]
[null,null,null,null,null,null,null,null,{"$f":"IF(A1027=\"\",\"\",A1027)","v":""},{"$f":"IF(B1027=\"\",\"\",B1027)","v":""},{"$f":"IF(C1027=\"\",\"\",C1027)","v":""},"",{"$f":"IF(E1027=\"\",\"\",VALUE(TRIM(MID(E1027,1,1))))","v":""},{"$f":"IF(F1027=\"\",\"\",VALUE(TRIM(MID(F1027,1,1))))","v":""},{"$f":"IF(G1027=\"SI\",1,IF(G1027=\"\",0))","v":0}]
[null,null,null,null,null,null,null,null,"","","","","","",0]
[null,null,null,null,null,null,null,null,"","","","","","",0]
[null,null,null,null,null,null,null,null,"","","","","","",0]
[null,null,null,null,null,null,null,null,"","","","","","",0]
[null,null,null,null,null,null,null,null,"","","","","","",0]
[null,null,null,null,null,null,null,null,"","","","","","",0]
[null,null,null,null,null,null,null,null,"","","","","","",0]
[null,null,null,null,null,null,null,null,"","","","","","",0]
[null,null,null,null,null,null,null,null,"","","","","","",0]
[null,null,null,null,null,null,null,null,"","","","","","",0]
[null,null,null,null,null,null,null,null,"","","","","","",0]
[null,null,null,null,null,null,null,null,"","","","","","",0]
[null,null,null,null,null,null,null,null,"","","","","","",0]
[null,null,null,null,null,null,null,null,"","","","","","",0]
[null,null,null,null,null,null,null,null,"","","","","","",0]
[null,null,null,null,null,null,null,null,"","","","","","",0]
[null,null,null,null,null,null,null,null,"","","","","","",0]
[null,null,null,null,null,null,null,null,"","","","","","",0]
[null,null,null,null,null,null,null,null,"","","","","","",0]
[null,null,null,null,null,null,null,null,"","","","","","",0]
[null,null,null,null,null,null,null,null,"","","","","","",0]
[null,null,null,null,null,null,null,null,"","","","","","",0]
[null,null,null,null,null,null,null,null,"","","","","","",0]
[null,null,null,null,null,null,null,null,"","","","","","",0]
[null,null,null,null,null,null,null,null,"","","","","","",0]
[null,null,null,null,null,null,null,null,"","","","","","",0]
[null,null,null,null,null,null,null,null,"","","","","","",0]
[null,null,null,null,null,null,null,null,"","","","","","",0]
[null,null,null,null,null,null,null,null,"","","","","","",0]
[null,null,null,null,null,null,null,null,"","","","","","",0]
[null,null,null,null,null,null,null,null,"","","","","","",0]
[null,null,null,null,null,null,null,null,"","","","","","",0]
[null,null,null,null,null,null,null,null,"","","","","","",0]
[null,null,null,null,null,null,null,null,"","","","","","",0]
[null,null,null,null,null,null,null,null,"","","","","","",0]
[null,null,null,null,null,null,null,null,"","","","","","",0]
[null,null,null,null,null,null,null,null,"","","","","","",0]
[null,null,null,null,null,null,null,null,"","","","","","",0]
[null,null,null,null,null,null,null,null,"","","","","","",0]
[null,null,null,null,null,null,null,null,"","","","","","",0]
[null,null,null,null,null,null,null,null,"","","","","","",0]
[null,null,null,null,null,null,null,null,"","","","","","",0]
[null,null,null,null,null,null,null,null,"","","","","","",0]
[null,null,null,null,null,null,null,null,"","","","","","",0]
[null,null,null,null,null,null,null,null,"","","","","","",0]
[null,null,null,null,null,null,null,null,"","","","","","",0]
[null,null,null,null,null,null,null,null,"","","","","","",0]
[null,null,null,null,null,null,null,null,"","","","","","",0]
[null,null,null,null,null,null,null,null,"","","","","","",0]
[null,null,null,null,null,null,null,null,"","","","","","",0]
[null,null,null,null,null,null,null,null,"","","","","","",0]
[null,null,null,null,null,null,null,null,"","","","","","",0]
[null,null,null,null,null,null,null,null,"","","","","","",0]
[null,null,null,null,null,null,null,null,"","","","","","",0]
[null,null,null,null,null,null,null,null,"","","","","","",0]
[null,null,null,null,null,null,null,null,"","","","","","",0]
[null,null,null,null,null,null,null,null,"","","","","","",0]
[null,null,null,null,null,null,null,null,"","","","","","",0]
[null,null,null,null,null,null,null,null,"","","","","","",0]
[null,null,null,null,null,null,null,null,"","","","","","",0]
[null,null,null,null,null,null,null,null,"","","","","","",0]
[null,null,null,null,null,null,null,null,"","","","","","",0]
[null,null,null,null,null,null,null,null,"","","",{"$f":"IF(F1090=\"\",\"\",IF(F1090=Q1094,0,IF(F1090=Q1094,0,D1090)))","v":""},"","",0]
[null,null,null,null,null,null,null,null,{"$f":"IF(A1091=\"\",\"\",A1091)","v":""},{"$f":"IF(B1091=\"\",\"\",B1091)","v":""},{"$f":"IF(C1091=\"\",\"\",C1091)","v":""},"",{"$f":"IF(E1091=\"\",\"\",VALUE(TRIM(MID(E1091,1,1))))","v":""},{"$f":"IF(F1091=\"\",\"\",VALUE(TRIM(MID(F1091,1,1))))","v":""},{"$f":"IF(G1091=\"SI\",1,IF(G1091=\"\",0))","v":0}]
[null,null,null,null,null,null,null,null,"","","","","","",0]
[null,null,null,null,null,null,null,null,"","","","","","",0]
[null,null,null,null,null,null,null,null,"","","","","","",0]
[null,null,null,null,null,null,null,null,"","","","","","",0]
[null,null,null,null,null,null,null,null,"","","","","","",0]
[null,null,null,null,null,null,null,null,"","","","","","",0]
[null,null,null,null,null,null,null,null,"","","","","","",0]
[null,null,null,null,null,null,null,null,"","","","","","",0]
[null,null,null,null,null,null,null,null,"","","","","","",0]

{"sheet":"Calendario1","index":4,"n_rows":31,"n_cols":23,"rows_kept":31,"cut":false,"hidden":false,"merged":[[1,1,1,7],[2,1,2,7],[3,1,3,7]]}
[null,null,null,null,null,null,null,null,null,null,null,null,null,null,"Inicializar Calendario 1.- Hoy 2.- Fecha seleccionada:",null,null,null,1]
[null,2019,null,null,null,null,null,null,null,"Enero",1,"Enero"]
[null,{"$f":"DATE(B2,VLOOKUP(B4,$J$2:$K$13,2,FALSE),1)","v":"2019-07-01"},null,null,null,null,null,null,null,"Febrero",2,"Febrero",null,"Abril","*****      INICIALIZANDO FECHA ACTUAL   *****",null,null,null,null,null,"DIAS FESTIVOS"]
[null,"Julio",null,null,null,null,null,null,null,"Marzo",3,"Marzo",null,null,"Hoy","Dia","Mes Numero","Mes","Año",null,"Dias ","Descripcion","Dia Laborable"]
[null,"D","L","M","M","J","V","S",null,"Abril",4,"Abril",null,null,{"$f":"TODAY()","v":"2019-07-02"},{"$f":"DAY(O5)","v":2},{"$f":"MONTH(O5)","v":7},{"$f":"VLOOKUP(Q5,K2:L13,2)","v":"Julio"},{"$f":"YEAR(O5)","v":2019},null,"2018-01-01","Año nuevo","NO"]
[null,{"$f":"IF(MONTH(DATE($B$2,MONTH(B3),1))<>MONTH(DATE($B$2,MONTH(B3),1)-(WEEKDAY(DATE($B$2,MONTH(B3),1))-1)+{0;1;2;3;4;5}*7+{1,2,3,4,5,6,7}-1),\"\",DATE($B$2,MONTH(B3),1)-(WEEKDAY(DATE($B$2,MONTH(B3),1))-1)+{0;1;2;3;4;5}*7+{1,2,3,4,5,6,7}-1)","v":""},"2019-07-01","2019-07-02","2019-07-03","2019-07-04","2019-07-05","2019-07-06",null,"Mayo",5,"Mayo",null,null,null,null,null,null,null,null,"2018-01-06","Dia de Reyes Magos","SI"]
[null,"2019-07-07","2019-07-08","2019-07-09","2019-07-10","2019-07-11","2019-07-12","2019-07-13",null,"Junio",6,"Junio",null,null,"*** INICIALIZANDO POR FECHA SELECCIONADA ***",null,null,null,null,null,"2018-02-05","Dia de la Constitución Mexicana","NO"]
[null,"2019-07-14","2019-07-15","2019-07-16","2019-07-17","2019-07-18","2019-07-19","2019-07-20",null,"Julio",7,"Julio",null,null,"Fecha Actual","Dia","Mes Numero","Mes","Año",null,"2018-02-14","Dia de San Valentin","SI"]
[null,"2019-07-21","2019-07-22","2019-07-23","2019-07-24","2019-07-25","2019-07-26","2019-07-27",null,"Agosto",8,"Agosto",null,null,{"$f":"DATE(B2,MATCH(B4,L2:L13,0),IF(P9=\"\",1,P9))","v":"2019-07-01"},1,{"$f":"MONTH(O9)","v":7},{"$f":"VLOOKUP(Q9,K2:L13,2)","v":"Julio"},{"$f":"YEAR(O9)","v":2019},null,"2018-02-24","Dia de la Bandera Mexicana","SI"]
[null,"2019-07-28","2019-07-29","2019-07-30","2019-07-31","","","",null,"Septiembre",9,"Septiembre",null,null,null,null,null,null,null,null,"2018-03-19","Natalicio de Benito Juarez","NO"]
[null,"","","","","","","",null,"Octubre",10,"Octubre",null,null,"*****   CONTROL SPINNER Y TEXTBOX DEL MES  ******",null,null,null,null,null,"2018-03-29","Jueves Santo","SI"]
[null,null,null,null,null,null,null,null,null,"Noviembre",11,"Noviembre",null,null,"Mes Num","Mes dia","P/Textbox","P/Spinner",null,null,"2018-03-30","Viernes Santo","SI"]
[null,null,null,null,null,null,null,null,null,"Diciembre",12,"Diciembre",null,null,7,"Julio",{"$f":"IF(ISERROR(MATCH(P13,L2:L13,0)),\"\",MATCH(P13,L2:L13,0))","v":7},{"$f":"VLOOKUP(O13,K2:L13,2)","v":"Julio"},null,null,"2018-04-01","Domingo de Resurreción","SI"]
[null,null,null,null,null,null,null,null,null,null,null,null,null,null,null,null,null,null,null,null,"2018-04-30","Dia del niño","SI"]
[null,null,null,null,null,null,null,null,null,null,null,null,null,null,"*****  DIAS FESTIVOS *****",null,null,null,null,null,"2018-05-01","Dia del trabajo","NO"]
[null,null,null,null,null,null,null,null,null,"Llamadas (Donde fue invocado el calendario):   ",null,null,null,null,"Dia actual","Coincidir","Descripcion","Laborable",null,null,"2018-05-05","Batalla de Puebla","SI"]
[null,null,null,null,null,null,null,null,1,"Cambiar Periodo (Fecha)",null,null,null,null,"2019-07-31",{"$f":"IF(ISERROR(MATCH(O17,U5:U100,0)),\"\",MATCH(O17,U5:U100,0))","v":""},{"$f":"IF(P17<>\"\",INDIRECT(\"V\" & P17+4),\"\")","v":""},{"$f":"IF(P17<>\"\",INDIRECT(\"W\" & P17+4),\"\")","v":""},null,null,"2018-05-10","Dia de las Madres","SI"]
[null,null,null,null,null,null,null,null,2,"fecha Adq de Ftos Reg Civil",null,null,null,null,null,null,null,null,null,null,"2018-06-17","Dia del Padre","SI"]
[null,null,null,null,null,null,null,null,3,"fecha cancelacion Ftos Reg Civ",null,null,null,null,"**** DATOS COMPLEMENTARIOS DE FECHA SELECCIONADA ****",null,null,null,null,null,"2018-09-16","Dia de la Independencia","NO"]
[null,null,null,null,null,null,null,null,4,"ActiveCell",null,null,null,null,"Inicio Mes","Fin Mes","Día Semana",null,null,null,"2018-10-23","Cumple Nayo","SI"]
[null,null,null,null,null,null,null,null,5,null,null,null,null,null,{"$f":"DATE(B2,MATCH(B4,L2:L13,0),1)","v":"2019-07-01"},{"$f":"EOMONTH(DATE(B2,MATCH(B4,L2:L13,0),1),0)","v":"2019-07-31"},{"$f":"PROPER(TEXT(WEEKDAY(O9),\"DDDDDDDDD\"))","v":"Lunes"},null,null,null,"2018-11-02","Dia de los Muertos","SI"]
[null,null,null,null,null,null,null,null,6,null,null,null,null,null,null,null,null,null,null,null,"2018-11-19","Revolución Mexicana","NO"]
[null,null,null,null,null,null,null,null,7,null,null,null,null,null,"*** DATOS DE FECHA HOY ******",null,null,null,null,null,"2018-12-01","Dia de la Virgen de Guadalupe","SI"]
[null,null,null,null,null,null,null,null,8,null,null,null,null,null,"Inicio Mes","Fin Mes","Día Semana",null,null,null,"2018-12-24","Noche Buena","SI"]
[null,null,null,null,null,null,null,null,9,null,null,null,null,null,null,null,null,null,null,null,"2018-12-25","Dia de Navidad","NO"]
[null,null,null,null,null,null,null,null,10]
[null,null,null,null,null,null,null,null,null,null,null,null,null,null,"*** PERIODO ***"]
[null,null,null,null,null,null,null,null,null,null,null,null,null,null,"Fecha Actual","Dia","Mes Numero","Mes","Año"]
[null,null,null,null,null,null,null,null,null,null,null,null,null,null,"2018-06-23",{"$f":"DAY(O29)","v":23},{"$f":"MONTH(O29)","v":6},{"$f":"VLOOKUP(Q29,$K$2:$L$13,2)","v":"Junio"},{"$f":"YEAR(O29)","v":2018}]
[null,null,null,null,null,null,null,null,null,null,null,null,null,null,"Dia Semana"]
[null,null,null,null,null,null,null,null,null,null,null,null,null,null,{"$f":"PROPER(TEXT(WEEKDAY(O29),\"DDDDDDDDD\"))","v":"Sábado"}]